Workbook

Sheet Notes
A1: ReversingMACDSequel.xlsm
A2: Coded beginning 2013-Sept-06 by Ronald McAllister (rpmac_xltt@sprynet.com)
A4: This Workbook demonstrates an EXCEL version of the ideas presented
A5: by Johnny Dough in an article titled "Reversing MACD: The Sequel"
A6: which appears in the November 2013 issue of
A7: "Technical Analysis of Stocks and Commodities" magazine.
A9: CalculationsAndCharts construction Notes for the November 2013 TTip:
B11: The computations used in this TTip spreadsheet are straight forward translations from the Amibroker example to columns of EXCEL cell formulas.
C12: The contents of column J (Which set of Price values) are determined by the user setting in cell A16.
C13: All of the remaining calculations which require a price as input reference column J.
C14: Columns K:R contain the calculations based on (EMA) Exponential Moving Averages.
C15: Columns S:Z contain the calculations based on (SMA) Simple Moving Averages.
C16: The Periods (lengths) for the Moving Averages may be specified in cells A17:A19.
C17: "Intermediate Values" are calculated from the user supplied Moving Average Periods and are located near C15
C18: This saves a little compute time: Calculate once, use the results many places in the calculations in columns K:Z
C20: Chart plots of the resulting indicators are based on columns AA:AH. The values in columns AA:AH are pulled from columns K:R or S:Z based
C21: on the current settings of the two toggle buttons located to the right of the charts.
C23: As used here, each toggle button requires a cell to hold the current toggle value. This allows formulas in other cells to easily reference to the current value.
C24: To save visual space (and prevent accidental alteration of cell content) these holding cells are located either behind their respective buttons or behind the charts.
C26: To replicate the charts shown in figures 2 and 3 of the article, use symbol AAPL with charting dates 6/5/2012 thru 9/24/2012 .
C27: Then apply the toggle buttons.
C29: Note: Alternating between SMA and EMA with the toggle button will also cause the chart to rescale vertically so that our indicator lines fit inside the plot area
A31: New Features for the basic TradersTips Template
A32: 1 | C32: Added a new button "<== Chart These Dates", near the section labeled "Help! I would like to plot data".
C33: Use this button to set the charts to match the dates specified left of the button.
C34: Under the covers, this button sets cells A11:A12 with the values found in C24:C25 and then calls the same routine as the Set Chart button.
C36: Moved the old button to the D12 area. Changed button text to "<==Set Chart".
C37: This button will still set the charts to match a manual specification in cells A11:A12
A39: 2 | C39: New as of the September 2013 Traders Tip: Direct download from Yahoo Finance to the InputPriceData tab.
C40: Unlike the previous traders tips which required on to Import price data from a disk based CSV file (capability still in this version),
C41: pre-downloading of intermediary disk files is no longer absolutely required.
C42: To support this capability I have resurrected some VBA code I wrote in September of 2010 which explored the possibility of
C43: downloading price history data from Yahoo Finance directly into a spreadsheet tab.
C44: That old VBA code required several modifications to get it to place the resulting price history data
C45: on the InputPriceData tab. Also needed some "user friendly" in the way of a couple of simple error handlers to support
C46: query building, and query execution faults.
C47: I also added a query to the Yahoo fundamentals URL to retrieve the company name and exchange name.
C48: The result is a pair of web URL direct to spreadsheet tab queries.
C49: The data is just what we ask for, so no VBA code is necessary to perform screen scraping:
C50: No effort spent to remove extraneous web page artifact bits we do not want or need.
C51: Minimal subsequent formatting and a simple set of cell formulations to compute close adjusted prices.
C53: Usage: On the InputPriceData tab the user enters the same 4 items one would provide on the YAHOO history page.
C54: Enter a stock or index symbol, two dates specifying beginning and end of the historical interval of interest, and a data type.
C55: Then click the "Get Historical Data" Button
C57: While dividends and splits are interesting data points, they are of no particular use to this traders tip workbook.
C58: I have included the capability only for completeness of this direct to worksheet data retrieval example.
A60: Data for this EXCEL example:
A62: Price history for various STOCK symbols and some INDEX symbols may be available for downloaded
A63: as .csv formatted files from Yahoo Finance: http://finance.yahoo.com
A64: Enter a symbol and select "Historical Prices" from the left margin.
A65: Hint: You might want to copy the name and symbol text from the top of the history page to use as
A66: your downloaded file name (via Paste).
A67: Then go to the bottom of the page and click "Download to Spreadsheet".
A68: Use the "Save As" option to name and save the file to your drive for later input processing. (See
A69: Automated data import below)
A70: Note: The resulting .csv file is in date-descending sequence (most recent first) and may be used in
A71: this spread sheet with out sorting.
A73: Automated data import
A74: The InputPriceData tab now has a button that will automate importing Price History data which you
A75: have previously downloaded to your hard drive from Yahoo Finance (.csv format please!)
A76: The VBA macro code behind this button uses the standard EXCEL file open dialog to allow you to
A77: navigate to the directory where you have stored the downloaded history files. You may then select the
A78: file you are interested in.
A79: Subsequent processing will adjust the Open, High, Low, and Close prices as indicated by the
B80: Adjusted Close values provided in the downloaded file.
A81: Both the Raw and the Adjusted data will be copied to the InputPriceData tab for use in this workbook.
A82: However, YOU must enter the symbol and description in cell A1 of the InputPriceData tab after you
A83: use the button: YAHOO history files DO NOT contain the symbol or a description!
A84: If you used the name and symbol copied from the top of the history page as your file name you may not
A85: need to adjust A1.
A86: Note: After the data has been transferred to this workbook, the source history file will be closed
A87: with out saving it so that it remains unchanged for future uses.
A89: Development Notes:
A90: 1 | C90: This workbook contains and uses VBA macros.
A91: 2 | C91: Input Data
C92: The data in this workbook is sorted date descending (most recent date at the top). All formulas and
C93: VBA routines are built accordingly.
A94: Calculation and Chart Worksheet Usage Comments:
A95: 1 | C95: In General, Items in Bolded BLUE are items you may freely change to play what-if games.
C96: Be sure to have a backup copy of the spreadsheet before you alter anything else.
A97: 2 | C97: Several of the column formulas begin with "IF" logic that determines when there is sufficient data
C98: available for the subsequent calculations to be relevant. The cell will calculate to blank or the
C99: result of the calculation.
C100: In a couple of cases, this "IF" logic also sets starter values for subsequent smoothing calculations.
A101: 3 | C101: Data windowing can be performed by changing cell A11. Positive values logically "Pan" the
C102: data window represented by the Calculation sheet down the input sheet and back in time.
C103: This can have two side effects: First, data may fall outside of the fixed Y-axis scales and be clipped
C104: or fall well inside the Y-axis scales wasting a lot of chart vertical space. Second, you may move far
C105: enough back that you do not have sufficient data points to fill the left of the chart.
A106: 4 | C106: The VBA macros behind the SetChart button address these Data Windowing problems and also
C107: resizes and vertically aligns all charts on the work sheet to match the Price chart and then
C108: horizontally adjusts the X-axis positions of all charts on the work sheet so that the corresponding
C109: data points align vertically.
C110: The macros behind the SetChart button are sensitive to the user control values in cells A11 and
C111: A12, and also uses the computed values in cells A8, F11, and F12

Sheet InputPriceData
A1: Apple Inc. (AAPL) -NasdaqNM | L1: Notes: | M1: Online Yahoo Finance Query Interfaces used in the VBA code to obtain this data:
M2: A.) Price History Only: "http://ichart.finance.yahoo.com/table.csv"
A3: Request Online Yahoo History for: | M3: B.) Price History w/ imbedded divs n splits: "http://ichart.finance.yahoo.com/x"
A4: Symbol | B4: aapl | D4: Valid
A5: From | B5: 1960-01-01 | D5: Data | M5: C.) Fundamentals (in this case name and exchange):
A6: To | B6: =TODAY() -> 2013-09-12 | D6: Types | E6: =VLOOKUP(B7,D7:E10,2,FALSE) -> d | M6: "http://download.finance.yahoo.com/d/quotes.csv?"
A7: Data Type | B7: Daily | D7: Daily | E7: d | M7: For some how-to doc regarding this particular interface, including a list of the
D8: Weekly | E8: w | M8: specific fields you can include in a request to this interface see:
A9: Available Data | D9: Monthly | E9: m | M9: http://www.gummy-stuff.org/Yahoo-data.htm
A10: Bar Count: | B10: =COUNTA(B16:B64985) -> 7315 | D10: Div/Split | E10: v | M10: This web site includes a downloadable working EXCEL/VBA example
A11: From: | B11: =IF(B10<=0,"",OFFSET(B15,B10,IF(HistReqDataType="v",1,0),1,1)) -> 1984-09-07 | M11: of the capabilities of this interface.
A12: To: | B12: =IF(B10<=0,"",IF(HistReqDataType="v",OFFSET(B15,2,1,1,1),OFFSET(B15,1,0,1,1))) -> 2013-09-10
B14: Raw Data Values | H14: Adjusted | I14: Adjustment | J14: Adjusted Values
A15: RelRow | B15: Date | C15: Open | D15: High | E15: Low | F15: Close | G15: Volume | H15: Adj Close | I15: Factor | J15: Open | K15: High | L15: Low | M15: Close
A16: 1 | B16: 2013-09-10 | C16: 506.2 | D16: 507.45 | E16: 489.5 | F16: 494.64 | G16: 26490200 | H16: 494.64 | I16: =H16/F16 -> 1 | J16: =ROUND($I16*C16,2) -> 506.2 | K16: =ROUND($I16*D16,2) -> 507.45 | L16: 489.5 | M16: 494.64
A17: 2 | B17: 2013-09-09 | C17: 505 | D17: 507.92 | E17: 503.48 | F17: 506.17 | G17: 12116200 | H17: 506.17 | I17: =H17/F17 -> 1 | J17: =ROUND($I17*C17,2) -> 505 | K17: =ROUND($I17*D17,2) -> 507.92 | L17: =ROUND($I17*E17,2) -> 503.48 | M17: =ROUND($I17*F17,2) -> 506.17
A18: 3 | B18: 2013-09-06 | C18: 498.44 | D18: 499.38 | E18: 489.95 | F18: 498.22 | G18: 12788700 | H18: 498.22 | I18: 1 | J18: 498.44 | K18: 499.38 | L18: 489.95 | M18: 498.22
A19: 4 | B19: 2013-09-05 | C19: 500.25 | D19: 500.68 | E19: 493.64 | F19: 495.27 | G19: 8402100 | H19: 495.27 | I19: 1 | J19: 500.25 | K19: 500.68 | L19: 493.64 | M19: 495.27
A20: 5 | B20: 2013-09-04 | C20: 499.56 | D20: 502.24 | E20: 496.28 | F20: 498.69 | G20: 12299300 | H20: 498.69 | I20: 1 | J20: 499.56 | K20: 502.24 | L20: 496.28 | M20: 498.69
A21: 6 | B21: 2013-09-03 | C21: 493.1 | D21: 500.6 | E21: 487.35 | F21: 488.58 | G21: 11854600 | H21: 488.58 | I21: 1 | J21: 493.1 | K21: 500.6 | L21: 487.35 | M21: 488.58
A22: 7 | B22: 2013-08-30 | C22: 492 | D22: 492.95 | E22: 486.5 | F22: 487.22 | G22: 9724900 | H22: 487.22 | I22: 1 | J22: 492 | K22: 492.95 | L22: 486.5 | M22: 487.22
A23: 8 | B23: 2013-08-29 | C23: 491.65 | D23: 496.5 | E23: 491.13 | F23: 491.7 | G23: 8559200 | H23: 491.7 | I23: 1 | J23: 491.65 | K23: 496.5 | L23: 491.13 | M23: 491.7
A24: 9 | B24: 2013-08-28 | C24: 486 | D24: 495.8 | E24: 486 | F24: 490.9 | G24: 10986000 | H24: 490.9 | I24: 1 | J24: 486 | K24: 495.8 | L24: 486 | M24: 490.9
A25: 10 | B25: 2013-08-27 | C25: 498 | D25: 502.51 | E25: 486.3 | F25: 488.59 | G25: 15149600 | H25: 488.59 | I25: 1 | J25: 498 | K25: 502.51 | L25: 486.3 | M25: 488.59
A26: 11 | B26: 2013-08-26 | C26: 500.75 | D26: 510.2 | E26: 500.5 | F26: 502.97 | G26: 11820200 | H26: 502.97 | I26: 1 | J26: 500.75 | K26: 510.2 | L26: 500.5 | M26: 502.97
A27: 12 | B27: 2013-08-23 | C27: 503.27 | D27: 503.35 | E27: 499.35 | F27: 501.02 | G27: 7954700 | H27: 501.02 | I27: 1 | J27: 503.27 | K27: 503.35 | L27: 499.35 | M27: 501.02
A28: 13 | B28: 2013-08-22 | C28: 504.98 | D28: 505.59 | E28: 498.2 | F28: 502.96 | G28: 8721700 | H28: 502.96 | I28: 1 | J28: 504.98 | K28: 505.59 | L28: 498.2 | M28: 502.96
A29: 14 | B29: 2013-08-21 | C29: 503.59 | D29: 507.15 | E29: 501.2 | F29: 502.36 | G29: 11995700 | H29: 502.36 | I29: 1 | J29: 503.59 | K29: 507.15 | L29: 501.2 | M29: 502.36
A30: 15 | B30: 2013-08-20 | C30: 509.71 | D30: 510.57 | E30: 500.82 | F30: 501.07 | G30: 12810300 | H30: 501.07 | I30: 1 | J30: 509.71 | K30: 510.57 | L30: 500.82 | M30: 501.07
A31: 16 | B31: 2013-08-19 | C31: 504.34 | D31: 513.74 | E31: 504 | F31: 507.74 | G31: 18232800 | H31: 507.74 | I31: 1 | J31: 504.34 | K31: 513.74 | L31: 504 | M31: 507.74
A32: 17 | B32: 2013-08-16 | C32: 500.15 | D32: 502.94 | E32: 498.86 | F32: 502.33 | G32: 12939500 | H32: 502.33 | I32: 1 | J32: 500.15 | K32: 502.94 | L32: 498.86 | M32: 502.33
A33: 18 | B33: 2013-08-15 | C33: 496.42 | D33: 502.4 | E33: 489.08 | F33: 497.91 | G33: 17510500 | H33: 497.91 | I33: 1 | J33: 496.42 | K33: 502.4 | L33: 489.08 | M33: 497.91
A34: 19 | B34: 2013-08-14 | C34: 497.88 | D34: 504.25 | E34: 493.4 | F34: 498.5 | G34: 27013300 | H34: 498.5 | I34: 1 | J34: 497.88 | K34: 504.25 | L34: 493.4 | M34: 498.5
A35: 20 | B35: 2013-08-13 | C35: 470.94 | D35: 494.66 | E35: 468.05 | F35: 489.57 | G35: 31497900 | H35: 489.57 | I35: 1 | J35: 470.94 | K35: 494.66 | L35: 468.05 | M35: 489.57
A36: 21 | B36: 2013-08-12 | C36: 456.86 | D36: 468.65 | E36: 456.63 | F36: 467.36 | G36: 13015500 | H36: 467.36 | I36: 1 | J36: 456.86 | K36: 468.65 | L36: 456.63 | M36: 467.36
A37: 22 | B37: 2013-08-09 | C37: 458.64 | D37: 460.46 | E37: 453.65 | F37: 454.45 | G37: 9530900 | H37: 454.45 | I37: 1 | J37: 458.64 | K37: 460.46 | L37: 453.65 | M37: 454.45
A38: 23 | B38: 2013-08-08 | C38: 463.86 | D38: 464.1 | E38: 457.95 | F38: 461.01 | G38: 9134900 | H38: 461.01 | I38: 1 | J38: 463.86 | K38: 464.1 | L38: 457.95 | M38: 461.01
A39: 24 | B39: 2013-08-07 | C39: 463.8 | D39: 467 | E39: 461.77 | F39: 464.98 | G39: 10673500 | H39: 461.93 | I39: 0.9934405781 | J39: 460.76 | K39: 463.94 | L39: 458.74 | M39: 461.93
A40: 25 | B40: 2013-08-06 | C40: 468.02 | D40: 471.89 | E40: 462.17 | F40: 465.25 | G40: 11959200 | H40: 462.2 | I40: 0.9934443847 | J40: 464.95 | K40: 468.8 | L40: 459.14 | M40: 462.2
A41: 26 | B41: 2013-08-05 | C41: 464.69 | D41: 470.67 | E41: 462.15 | F41: 469.45 | G41: 11387700 | H41: 466.37 | I41: 0.9934391309 | J41: 461.64 | K41: 467.58 | L41: 459.12 | M41: 466.37
A42: 27 | B42: 2013-08-02 | C42: 458.01 | D42: 462.85 | E42: 456.66 | F42: 462.54 | G42: 9813700 | H42: 459.51 | I42: 0.9934492152 | J42: 455.01 | K42: 459.82 | L42: 453.67 | M42: 459.51
A43: 28 | B43: 2013-08-01 | C43: 455.75 | D43: 456.8 | E43: 453.26 | F43: 456.68 | G43: 7366100 | H43: 453.68 | I43: 0.9934308487 | J43: 452.76 | K43: 453.8 | L43: 450.28 | M43: 453.68
A44: 29 | B44: 2013-07-31 | C44: 454.99 | D44: 457.34 | E44: 449.43 | F44: 452.53 | G44: 11534200 | H44: 449.56 | I44: 0.9934368992 | J44: 452 | K44: 454.34 | L44: 446.48 | M44: 449.56
A45: 30 | B45: 2013-07-30 | C45: 449.96 | D45: 457.15 | E45: 449.23 | F45: 453.32 | G45: 11050800 | H45: 450.35 | I45: 0.9934483367 | J45: 447.01 | K45: 454.15 | L45: 446.29 | M45: 450.35
A46: 31 | B46: 2013-07-29 | C46: 440.8 | D46: 449.99 | E46: 440.2 | F46: 447.79 | G46: 8859200 | H46: 444.85 | I46: 0.9934344224 | J46: 437.91 | K46: 447.04 | L46: 437.31 | M46: 444.85
A47: 32 | B47: 2013-07-26 | C47: 435.3 | D47: 441.04 | E47: 434.34 | F47: 440.99 | G47: 7148300 | H47: 438.1 | I47: 0.9934465634 | J47: 432.45 | K47: 438.15 | L47: 431.49 | M47: 438.1
A48: 33 | B48: 2013-07-25 | C48: 440.7 | D48: 441.4 | E48: 435.81 | F48: 438.5 | G48: 8196200 | H48: 435.62 | I48: 0.9934321551 | J48: 437.81 | K48: 438.5 | L48: 432.95 | M48: 435.62
A49: 34 | B49: 2013-07-24 | C49: 438.93 | D49: 444.59 | E49: 435.26 | F49: 440.51 | G49: 21140600 | H49: 437.62 | I49: 0.9934394225 | J49: 436.05 | K49: 441.67 | L49: 432.4 | M49: 437.62
A50: 35 | B50: 2013-07-23 | C50: 426 | D50: 426.96 | E50: 418.71 | F50: 418.99 | G50: 13192700 | H50: 416.24 | I50: 0.9934365975 | J50: 423.2 | K50: 424.16 | L50: 415.96 | M50: 416.24
A51: 36 | B51: 2013-07-22 | C51: 429.46 | D51: 429.75 | E51: 425.47 | F51: 426.31 | G51: 7421300 | H51: 423.51 | I51: 0.9934320096 | J51: 426.64 | K51: 426.93 | L51: 422.68 | M51: 423.51
A52: 37 | B52: 2013-07-19 | C52: 433.1 | D52: 433.98 | E52: 424.35 | F52: 424.95 | G52: 9597200 | H52: 422.16 | I52: 0.9934345217 | J52: 430.26 | K52: 431.13 | L52: 421.56 | M52: 422.16
A53: 38 | B53: 2013-07-18 | C53: 433.38 | D53: 434.87 | E53: 430.61 | F53: 431.76 | G53: 7817100 | H53: 428.93 | I53: 0.9934454326 | J53: 430.54 | K53: 432.02 | L53: 427.79 | M53: 428.93
A54: 39 | B54: 2013-07-17 | C54: 429.7 | D54: 432.22 | E54: 428.22 | F54: 430.31 | G54: 7106800 | H54: 427.49 | I54: 0.993446585 | J54: 426.88 | K54: 429.39 | L54: 425.41 | M54: 427.49
A55: 40 | B55: 2013-07-16 | C55: 426.52 | D55: 430.71 | E55: 424.17 | F55: 430.2 | G55: 7733500 | H55: 427.38 | I55: 0.9934449093 | J55: 423.72 | K55: 427.89 | L55: 421.39 | M55: 427.38
A56: 41 | B56: 2013-07-15 | C56: 425.01 | D56: 431.46 | E56: 424.8 | F56: 427.44 | G56: 8639900 | H56: 424.64 | I56: 0.993449373 | J56: 422.23 | K56: 428.63 | L56: 422.02 | M56: 424.64
A57: 42 | B57: 2013-07-12 | C57: 427.65 | D57: 429.79 | E57: 423.41 | F57: 426.51 | G57: 9984400 | H57: 423.71 | I57: 0.9934350894 | J57: 424.84 | K57: 426.97 | L57: 420.63 | M57: 423.71
A58: 43 | B58: 2013-07-11 | C58: 422.95 | D58: 428.25 | E58: 421.17 | F58: 427.29 | G58: 11653300 | H58: 424.49 | I58: 0.9934470734 | J58: 420.18 | K58: 425.44 | L58: 418.41 | M58: 424.49
A59: 44 | B59: 2013-07-10 | C59: 419.6 | D59: 424.8 | E59: 418.25 | F59: 420.73 | G59: 10050200 | H59: 417.97 | I59: 0.9934399734 | J59: 416.85 | K59: 422.01 | L59: 415.51 | M59: 417.97
A60: 45 | B60: 2013-07-09 | C60: 413.6 | D60: 423.5 | E60: 410.38 | F60: 422.35 | G60: 12592300 | H60: 419.58 | I60: 0.9934414585 | J60: 410.89 | K60: 420.72 | L60: 407.69 | M60: 419.58
A61: 46 | B61: 2013-07-08 | C61: 420.11 | D61: 421 | E61: 410.65 | F61: 415.05 | G61: 10647800 | H61: 412.33 | I61: 0.9934465727 | J61: 417.36 | K61: 418.24 | L61: 407.96 | M61: 412.33
A62: 47 | B62: 2013-07-05 | C62: 420.39 | D62: 423.29 | E62: 415.35 | F62: 417.42 | G62: 9786600 | H62: 414.68 | I62: 0.993435868 | J62: 417.63 | K62: 420.51 | L62: 412.62 | M62: 414.68
A63: 48 | B63: 2013-07-03 | C63: 420.86 | D63: 422.98 | E63: 417.45 | F63: 420.8 | G63: 8604600 | H63: 418.04 | I63: 0.9934410646 | J63: 418.1 | K63: 420.21 | L63: 414.71 | M63: 418.04
A64: 49 | B64: 2013-07-02 | C64: 409.96 | D64: 421.63 | E64: 409.47 | F64: 418.49 | G64: 16780900 | H64: 415.74 | I64: 0.9934287558 | J64: 407.27 | K64: 418.86 | L64: 406.78 | M64: 415.74
A65: 50 | B65: 2013-07-01 | C65: 402.69 | D65: 412.27 | E65: 401.22 | F65: 409.22 | G65: 13966200 | H65: 406.54 | I65: 0.9934509555 | J65: 400.05 | K65: 409.57 | L65: 398.59 | M65: 406.54
A66: 51 | B66: 2013-06-28 | C66: 391.36 | D66: 400.27 | E66: 388.87 | F66: 396.53 | G66: 20661300 | H66: 393.93 | I66: 0.9934431191 | J66: 388.79 | K66: 397.65 | L66: 386.32 | M66: 393.93
A67: 52 | B67: 2013-06-27 | C67: 399.25 | D67: 401.39 | E67: 393.54 | F67: 393.78 | G67: 12044500 | H67: 391.2 | I67: 0.9934481182 | J67: 396.63 | K67: 398.76 | L67: 390.96 | M67: 391.2
A68: 53 | B68: 2013-06-26 | C68: 403.9 | D68: 404.79 | E68: 395.66 | F68: 398.07 | G68: 13133000 | H68: 395.46 | I68: 0.9934433642 | J68: 401.25 | K68: 402.14 | L68: 393.07 | M68: 395.46
A69: 54 | B69: 2013-06-25 | C69: 405.7 | D69: 407.79 | E69: 398.83 | F69: 402.63 | G69: 11220100 | H69: 399.99 | I69: 0.9934431115 | J69: 403.04 | K69: 405.12 | L69: 396.21 | M69: 399.99
A70: 55 | B70: 2013-06-24 | C70: 407.4 | D70: 408.66 | E70: 398.05 | F70: 402.54 | G70: 17169500 | H70: 399.9 | I70: 0.9934416456 | J70: 404.73 | K70: 405.98 | L70: 395.44 | M70: 399.9
A71: 56 | B71: 2013-06-21 | C71: 418.49 | D71: 420 | E71: 408.1 | F71: 413.5 | G71: 17182800 | H71: 410.79 | I71: 0.9934461911 | J71: 415.75 | K71: 417.25 | L71: 405.43 | M71: 410.79
A72: 57 | B72: 2013-06-20 | C72: 419.3 | D72: 425.98 | E72: 415.17 | F72: 416.84 | G72: 12761100 | H72: 414.11 | I72: 0.9934507245 | J72: 416.55 | K72: 423.19 | L72: 412.45 | M72: 414.11
A73: 58 | B73: 2013-06-19 | C73: 431.4 | D73: 431.66 | E73: 423 | F73: 423 | G73: 11105000 | H73: 420.23 | I73: 0.9934515366 | J73: 428.57 | K73: 428.83 | L73: 420.23 | M73: 420.23
A74: 59 | B74: 2013-06-18 | C74: 431.56 | D74: 434.9 | E74: 430.21 | F74: 431.77 | G74: 6965200 | H74: 428.94 | I74: 0.9934455845 | J74: 428.73 | K74: 432.05 | L74: 427.39 | M74: 428.94
A75: 60 | B75: 2013-06-17 | C75: 431.44 | D75: 435.7 | E75: 430.36 | F75: 432 | G75: 9264800 | H75: 429.17 | I75: 0.9934490741 | J75: 428.61 | K75: 432.85 | L75: 427.54 | M75: 429.17
A76: 61 | B76: 2013-06-14 | C76: 435.4 | D76: 436.29 | E76: 428.5 | F76: 430.05 | G76: 9709500 | H76: 427.23 | I76: 0.993442623 | J76: 432.54 | K76: 433.43 | L76: 425.69 | M76: 427.23
A77: 62 | B77: 2013-06-13 | C77: 432.5 | D77: 437.14 | E77: 428.75 | F77: 435.96 | G77: 10208300 | H77: 433.1 | I77: 0.9934397651 | J77: 429.66 | K77: 434.27 | L77: 425.94 | M77: 433.1
A78: 63 | B78: 2013-06-12 | C78: 439.5 | D78: 441.25 | E78: 431.5 | F78: 432.19 | G78: 9472400 | H78: 429.36 | I78: 0.993451954 | J78: 436.62 | K78: 438.36 | L78: 428.67 | M78: 429.36
A79: 64 | B79: 2013-06-11 | C79: 435.74 | D79: 442.76 | E79: 433.32 | F79: 437.6 | G79: 10218300 | H79: 434.73 | I79: 0.9934414991 | J79: 432.88 | K79: 439.86 | L79: 430.48 | M79: 434.73
A80: 65 | B80: 2013-06-10 | C80: 444.73 | D80: 449.08 | E80: 436.8 | F80: 438.89 | G80: 16076900 | H80: 436.01 | I80: 0.9934379913 | J80: 441.81 | K80: 446.13 | L80: 433.93 | M80: 436.01
A81: 66 | B81: 2013-06-07 | C81: 436.5 | D81: 443.24 | E81: 432.77 | F81: 441.81 | G81: 14447700 | H81: 438.91 | I81: =H81/F81 -> 0.9934360924 | J81: =ROUND($I81*C81,2) -> 433.63 | K81: =ROUND($I81*D81,2) -> 440.33 | L81: =ROUND($I81*E81,2) -> 429.93 | M81: =ROUND($I81*F81,2) -> 438.91
A82: 67 | B82: 2013-06-06 | C82: 445.47 | D82: 447 | E82: 434.05 | F82: 438.46 | G82: 14890500 | H82: 435.58 | I82: 0.9934315559 | J82: 442.54 | K82: 444.06 | L82: 431.2 | M82: 435.58
A83: 68 | B83: 2013-06-05 | C83: 445.65 | D83: 450.72 | E83: 443.71 | F83: 445.11 | G83: 10378200 | H83: 442.19 | I83: 0.9934398239 | J83: 442.73 | K83: 447.76 | L83: 440.8 | M83: 442.19
A84: 69 | B84: 2013-06-04 | C84: 453.22 | D84: 454.43 | E84: 447.39 | F84: 449.31 | G84: 10454600 | H84: 446.36 | I84: 0.9934343772 | J84: 450.24 | K84: 451.45 | L84: 444.45 | M84: 446.36
A85: 70 | B85: 2013-06-03 | C85: 450.73 | D85: 452.36 | E85: 442.48 | F85: 450.72 | G85: 13298300 | H85: 447.76 | I85: 0.9934327299 | J85: 447.77 | K85: 449.39 | L85: 439.57 | M85: 447.76
A86: 71 | B86: 2013-05-31 | C86: 452.5 | D86: 457.1 | E86: 449.5 | F86: 449.73 | G86: 13725100 | H86: 446.78 | I86: 0.9934405087 | J86: 449.53 | K86: 454.1 | L86: 446.55 | M86: 446.78
A87: 72 | B87: 2013-05-30 | C87: 445.65 | D87: 454.5 | E87: 444.51 | F87: 451.58 | G87: 12625700 | H87: 448.62 | I87: 0.9934452367 | J87: 442.73 | K87: 451.52 | L87: 441.6 | M87: 448.62
A88: 73 | B88: 2013-05-29 | C88: 440 | D88: 447.5 | E88: 439.4 | F88: 444.95 | G88: 11806300 | H88: 442.03 | I88: 0.9934374649 | J88: 437.11 | K88: 444.56 | L88: 436.52 | M88: 442.03
A89: 74 | B89: 2013-05-28 | C89: 449.9 | D89: 451.11 | E89: 440.85 | F89: 441.44 | G89: 13790900 | H89: 438.54 | I89: 0.9934305908 | J89: 446.94 | K89: 448.15 | L89: 437.95 | M89: 438.54
A90: 75 | B90: 2013-05-24 | C90: 440.85 | D90: 445.66 | E90: 440.36 | F90: 445.15 | G90: 9863100 | H90: 442.23 | I90: 0.9934404133 | J90: 437.96 | K90: 442.74 | L90: 437.47 | M90: 442.23
A91: 76 | B91: 2013-05-23 | C91: 435.95 | D91: 446.16 | E91: 435.79 | F91: 442.14 | G91: 12607900 | H91: 439.24 | I91: 0.9934409915 | J91: 433.09 | K91: 443.23 | L91: 432.93 | M91: 439.24
A92: 77 | B92: 2013-05-22 | C92: 444.05 | D92: 448.35 | E92: 438.22 | F92: 441.35 | G92: 15822800 | H92: 438.46 | I92: 0.9934519089 | J92: 441.14 | K92: 445.41 | L92: 435.35 | M92: 438.46
A93: 78 | B93: 2013-05-21 | C93: 438.15 | D93: 445.48 | E93: 434.2 | F93: 439.66 | G93: 16286500 | H93: 436.78 | I93: 0.9934494837 | J93: 435.28 | K93: 442.56 | L93: 431.36 | M93: 436.78
A94: 79 | B94: 2013-05-20 | C94: 431.91 | D94: 445.8 | E94: 430.1 | F94: 442.93 | G94: 16127800 | H94: 440.02 | I94: 0.9934301131 | J94: 429.07 | K94: 442.87 | L94: 427.27 | M94: 440.02
A95: 80 | B95: 2013-05-17 | C95: 439.05 | D95: 440.09 | E95: 431.01 | F95: 433.26 | G95: 15282300 | H95: 430.42 | I95: 0.9934450445 | J95: 436.17 | K95: 437.21 | L95: 428.18 | M95: 430.42
A96: 81 | B96: 2013-05-16 | C96: 423.24 | D96: 437.85 | E96: 418.9 | F96: 434.58 | G96: 21543000 | H96: 431.73 | I96: 0.9934419439 | J96: 420.46 | K96: 434.98 | L96: 416.15 | M96: 431.73
A97: 82 | B97: 2013-05-15 | C97: 439.16 | D97: 441 | E97: 422.36 | F97: 428.85 | G97: 26486200 | H97: 426.04 | I97: 0.9934475924 | J97: 436.28 | K97: 438.11 | L97: 419.59 | M97: 426.04
A98: 83 | B98: 2013-05-14 | C98: 453.85 | D98: 455.2 | E98: 442.15 | F98: 443.86 | G98: 15968500 | H98: 440.95 | I98: 0.9934438787 | J98: 450.87 | K98: 452.22 | L98: 439.25 | M98: 440.95
A99: 84 | B99: 2013-05-13 | C99: 451.51 | D99: 457.9 | E99: 451.5 | F99: 454.74 | G99: 11319600 | H99: 451.76 | I99: 0.9934468048 | J99: 448.55 | K99: 454.9 | L99: 448.54 | M99: 451.76
A100: 85 | B100: 2013-05-10 | C100: 457.97 | D100: 459.71 | E100: 450.48 | F100: 452.97 | G100: 11959000 | H100: 450 | I100: 0.9934432744 | J100: 454.97 | K100: 456.7 | L100: 447.53 | M100: 450
A101: 86 | B101: 2013-05-09 | C101: 459.81 | D101: 463 | E101: 455.58 | F101: 456.77 | G101: 14231700 | H101: 453.77 | I101: 0.9934321431 | J101: 456.79 | K101: 459.96 | L101: 452.59 | M101: 453.77
A102: 87 | B102: 2013-05-08 | C102: 459.04 | D102: 465.37 | E102: 455.81 | F102: 463.84 | G102: 16878500 | H102: 457.77 | I102: 0.9869135909 | J102: 453.03 | K102: 459.28 | L102: 449.85 | M102: 457.77
A103: 88 | B103: 2013-05-07 | C103: 464.97 | D103: 465.75 | E103: 453.7 | F103: 458.66 | G103: 17276900 | H103: 452.66 | I103: 0.9869184145 | J103: 458.89 | K103: 459.66 | L103: 447.76 | M103: 452.66
A104: 89 | B104: 2013-05-06 | C104: 455.71 | D104: 462.2 | E104: 454.31 | F104: 460.71 | G104: 17737200 | H104: 454.68 | I104: 0.9869115062 | J104: 449.75 | K104: 456.15 | L104: 448.36 | M104: 454.68
A105: 90 | B105: 2013-05-03 | C105: 451.31 | D105: 453.23 | E105: 449.15 | F105: 449.98 | G105: 12903600 | H105: 444.09 | I105: 0.9869105294 | J105: 445.4 | K105: 447.3 | L105: 443.27 | M105: 444.09
A106: 91 | B106: 2013-05-02 | C106: 441.78 | D106: 448.59 | E106: 440.63 | F106: 445.52 | G106: 15065300 | H106: 439.69 | I106: 0.9869141677 | J106: 436 | K106: 442.72 | L106: 434.86 | M106: 439.69
A107: 92 | B107: 2013-05-01 | C107: 444.46 | D107: 444.93 | E107: 434.39 | F107: 439.29 | G107: 18103900 | H107: 433.54 | I107: 0.9869106968 | J107: 438.64 | K107: 439.11 | L107: 428.7 | M107: 433.54
A108: 93 | B108: 2013-04-30 | C108: 435.1 | D108: 445.25 | E108: 432.07 | F108: 442.78 | G108: 24697800 | H108: 436.98 | I108: 0.986900944 | J108: 429.4 | K108: 439.42 | L108: 426.41 | M108: 436.98
A109: 94 | B109: 2013-04-29 | C109: 420.45 | D109: 433.62 | E109: 420 | F109: 430.12 | G109: 22868800 | H109: 424.49 | I109: 0.9869106296 | J109: 414.95 | K109: 427.94 | L109: 414.5 | M109: 424.49
A110: 95 | B110: 2013-04-26 | C110: 409.81 | D110: 418.77 | E110: 408.25 | F110: 417.2 | G110: 27289200 | H110: 411.74 | I110: 0.9869127517 | J110: 404.45 | K110: 413.29 | L110: 402.91 | M110: 411.74
A111: 96 | B111: 2013-04-25 | C111: 411.23 | D111: 413.94 | E111: 407 | F111: 408.38 | G111: 13744200 | H111: 403.03 | I111: 0.9868994564 | J111: 405.84 | K111: 408.52 | L111: 401.67 | M111: 403.03
A112: 97 | B112: 2013-04-24 | C112: 393.54 | D112: 415.25 | E112: 392.5 | F112: 405.46 | G112: 34630400 | H112: 400.15 | I112: 0.9869037636 | J112: 388.39 | K112: 409.81 | L112: 387.36 | M112: 400.15
A113: 98 | B113: 2013-04-23 | C113: 403.99 | D113: 408.38 | E113: 398.81 | F113: 406.13 | G113: 23722800 | H113: 400.81 | I113: 0.9869007461 | J113: 398.7 | K113: 403.03 | L113: 393.59 | M113: 400.81
A114: 99 | B114: 2013-04-22 | C114: 392.64 | D114: 402.2 | E114: 391.27 | F114: 398.67 | G114: 15354300 | H114: 393.45 | I114: 0.986906464 | J114: 387.5 | K114: 396.93 | L114: 386.15 | M114: 393.45
A115: 100 | B115: 2013-04-19 | C115: 387.97 | D115: 399.6 | E115: 385.1 | F115: 390.53 | G115: 21759800 | H115: 385.42 | I115: 0.9869152178 | J115: 382.89 | K115: 394.37 | L115: 380.06 | M115: 385.42
A116: 101 | B116: 2013-04-18 | C116: 404.99 | D116: 405.79 | E116: 389.74 | F116: 392.05 | G116: 23796400 | H116: 386.92 | I116: 0.9869149343 | J116: 399.69 | K116: 400.48 | L116: 384.64 | M116: 386.92
A117: 102 | B117: 2013-04-17 | C117: 420.27 | D117: 420.6 | E117: 398.11 | F117: 402.8 | G117: 33752000 | H117: 397.53 | I117: 0.9869165839 | J117: 414.77 | K117: 415.1 | L117: 392.9 | M117: 397.53
A118: 103 | B118: 2013-04-16 | C118: 421.57 | D118: 426.61 | E118: 420.57 | F118: 426.24 | G118: 10920400 | H118: 420.66 | I118: 0.9869087838 | J118: 416.05 | K118: 421.03 | L118: 415.06 | M118: 420.66
A119: 104 | B119: 2013-04-15 | C119: 427 | D119: 427.89 | E119: 419.55 | F119: 419.85 | G119: 11340000 | H119: 414.35 | I119: 0.9869000834 | J119: 421.41 | K119: 422.28 | L119: 414.05 | M119: 414.35
A120: 105 | B120: 2013-04-12 | C120: 434.15 | D120: 434.15 | E120: 429.09 | F120: 429.8 | G120: 8521900 | H120: 424.17 | I120: 0.9869008841 | J120: 428.46 | K120: 428.46 | L120: 423.47 | M120: 424.17
A121: 106 | B121: 2013-04-11 | C121: 433.72 | D121: 437.99 | E121: 431.2 | F121: 434.33 | G121: 11727300 | H121: 428.64 | I121: 0.9868993622 | J121: 428.04 | K121: 432.25 | L121: 425.55 | M121: 428.64
A122: 107 | B122: 2013-04-10 | C122: 428.1 | D122: 437.06 | E122: 426.01 | F122: 435.69 | G122: 13426000 | H122: 429.99 | I122: 0.9869173036 | J122: 422.5 | K122: 431.34 | L122: 420.44 | M122: 429.99
A123: 108 | B123: 2013-04-09 | C123: 426.36 | D123: 428.5 | E123: 422.75 | F123: 426.98 | G123: 10950500 | H123: 421.39 | I123: 0.9869080519 | J123: 420.78 | K123: 422.89 | L123: 417.22 | M123: 421.39
A124: 109 | B124: 2013-04-08 | C124: 424.85 | D124: 427.5 | E124: 422.49 | F124: 426.21 | G124: 10743900 | H124: 420.63 | I124: 0.9869078623 | J124: 419.29 | K124: 421.9 | L124: 416.96 | M124: 420.63
A125: 110 | B125: 2013-04-05 | C125: 424.5 | D125: 424.95 | E125: 419.68 | F125: 423.2 | G125: 13703400 | H125: 417.66 | I125: 0.9869092628 | J125: 418.94 | K125: 419.39 | L125: 414.19 | M125: 417.66
A126: 111 | B126: 2013-04-04 | C126: 433.76 | D126: 435 | E126: 425.25 | F126: 427.72 | G126: 12801700 | H126: 422.12 | I126: 0.9869073225 | J126: 428.08 | K126: 429.3 | L126: 419.68 | M126: 422.12
A127: 112 | B127: 2013-04-03 | C127: 431.37 | D127: 437.28 | E127: 430.31 | F127: 431.99 | G127: 12972000 | H127: 426.33 | I127: 0.9868978449 | J127: 425.72 | K127: 431.55 | L127: 424.67 | M127: 426.33
A128: 113 | B128: 2013-04-02 | C128: 427.6 | D128: 438.14 | E128: 426.4 | F128: 429.79 | G128: 18911400 | H128: 424.16 | I128: 0.9869005794 | J128: 422 | K128: 432.4 | L128: 420.81 | M128: 424.16
A129: 114 | B129: 2013-04-01 | C129: 441.9 | D129: 443.7 | E129: 427.74 | F129: 428.91 | G129: 13919000 | H129: 423.29 | I129: 0.986897018 | J129: 436.11 | K129: 437.89 | L129: 422.14 | M129: 423.29
A130: 115 | B130: 2013-03-28 | C130: 449.82 | D130: 451.82 | E130: 441.62 | F130: 442.66 | G130: 15815700 | H130: 436.86 | I130: 0.986897393 | J130: 443.93 | K130: 445.9 | L130: 435.83 | M130: 436.86
A131: 116 | B131: 2013-03-27 | C131: 456.46 | D131: 456.8 | E131: 450.73 | F131: 452.08 | G131: 11829900 | H131: 446.16 | I131: 0.9869049726 | J131: 450.48 | K131: 450.82 | L131: 444.83 | M131: 446.16
A132: 117 | B132: 2013-03-26 | C132: 465.44 | D132: 465.84 | E132: 460.53 | F132: 461.14 | G132: 10510500 | H132: 455.1 | I132: 0.9869020254 | J132: 459.34 | K132: 459.74 | L132: 454.5 | M132: 455.1
A133: 118 | B133: 2013-03-25 | C133: 464.69 | D133: 469.95 | E133: 461.78 | F133: 463.58 | G133: 17897700 | H133: 457.51 | I133: 0.9869062513 | J133: 458.61 | K133: 463.8 | L133: 455.73 | M133: 457.51
A134: 119 | B134: 2013-03-22 | C134: 454.58 | D134: 462.1 | E134: 453.11 | F134: 461.91 | G134: 14110900 | H134: 455.86 | I134: 0.9869022104 | J134: 448.63 | K134: 456.05 | L134: 447.18 | M134: 455.86
A135: 120 | B135: 2013-03-21 | C135: 450.22 | D135: 457.98 | E135: 450.1 | F135: 452.73 | G135: 13687700 | H135: 446.8 | I135: 0.9869016853 | J135: 444.32 | K135: 451.98 | L135: 444.2 | M135: 446.8
A136: 121 | B136: 2013-03-20 | C136: 457.42 | D136: 457.63 | E136: 449.59 | F136: 452.08 | G136: 11023600 | H136: 446.16 | I136: 0.9869049726 | J136: 451.43 | K136: 451.64 | L136: 443.7 | M136: 446.16
A137: 122 | B137: 2013-03-19 | C137: 459.5 | D137: 460.97 | E137: 448.5 | F137: 454.49 | G137: 18813400 | H137: 448.54 | I137: 0.9869084028 | J137: 453.48 | K137: 454.94 | L137: 442.63 | M137: 448.54
A138: 123 | B138: 2013-03-18 | C138: 441.45 | D138: 457.46 | E138: 441.2 | F138: 455.72 | G138: 21649900 | H138: 449.75 | I138: 0.9868998508 | J138: 435.67 | K138: 451.47 | L138: 435.42 | M138: 449.75
A139: 124 | B139: 2013-03-15 | C139: 437.93 | D139: 444.23 | E139: 437.25 | F139: 443.66 | G139: 22998600 | H139: 437.85 | I139: 0.9869043862 | J139: 432.2 | K139: 438.41 | L139: 431.52 | M139: 437.85
A140: 125 | B140: 2013-03-14 | C140: 432.83 | D140: 434.64 | E140: 430.45 | F140: 432.5 | G140: 10852700 | H140: 426.84 | I140: 0.9869132948 | J140: 427.17 | K140: 428.95 | L140: 424.82 | M140: 426.84
A141: 126 | B141: 2013-03-13 | C141: 428.45 | D141: 434.5 | E141: 425.36 | F141: 428.35 | G141: 14483900 | H141: 422.74 | I141: 0.9869032333 | J141: 422.84 | K141: 428.81 | L141: 419.79 | M141: 422.74
A142: 127 | B142: 2013-03-12 | C142: 435.6 | D142: 438.88 | E142: 427.57 | F142: 428.43 | G142: 16639700 | H142: 422.82 | I142: 0.9869056789 | J142: 429.9 | K142: 433.13 | L142: 421.97 | M142: 422.82
A143: 128 | B143: 2013-03-11 | C143: 429.75 | D143: 439.01 | E143: 425.14 | F143: 437.87 | G143: 16937000 | H143: 432.14 | I143: 0.9869139242 | J143: 424.13 | K143: 433.27 | L143: 419.58 | M143: 432.14
A144: 129 | B144: 2013-03-08 | C144: 429.8 | D144: 435.43 | E144: 428.61 | F144: 431.72 | G144: 13981500 | H144: 426.07 | I144: 0.9869128139 | J144: 424.18 | K144: 429.73 | L144: 423 | M144: 426.07
A145: 130 | B145: 2013-03-07 | C145: 424.5 | D145: 432.01 | E145: 421.06 | F145: 430.58 | G145: 16731200 | H145: 424.94 | I145: =H145/F145 -> 0.9869013888 | J145: =ROUND($I145*C145,2) -> 418.94 | K145: =ROUND($I145*D145,2) -> 426.35 | L145: =ROUND($I145*E145,2) -> 415.54 | M145: =ROUND($I145*F145,2) -> 424.94
A146: 131 | B146: 2013-03-06 | C146: 434.51 | D146: 435.25 | E146: 424.43 | F146: 425.66 | G146: 16437500 | H146: 420.09 | I146: 0.9869144388 | J146: 428.82 | K146: 429.55 | L146: 418.88 | M146: 420.09
A147: 132 | B147: 2013-03-05 | C147: 421.48 | D147: 435.19 | E147: 420.75 | F147: 431.14 | G147: 22801200 | H147: 425.5 | I147: 0.9869184024 | J147: 415.97 | K147: 429.5 | L147: 415.25 | M147: 425.5
A148: 133 | B148: 2013-03-04 | C148: 427.8 | D148: 428.2 | E148: 419 | F148: 420.05 | G148: 20812700 | H148: 414.55 | I148: 0.9869063207 | J148: 422.2 | K148: 422.59 | L148: 413.51 | M148: 414.55
A149: 134 | B149: 2013-03-01 | C149: 438 | D149: 438.18 | E149: 429.98 | F149: 430.47 | G149: 19730300 | H149: 424.83 | I149: 0.9868980417 | J149: 432.26 | K149: 432.44 | L149: 424.35 | M149: 424.83
A150: 135 | B150: 2013-02-28 | C150: 444.05 | D150: 447.87 | E150: 441.4 | F150: 441.4 | G150: 11518400 | H150: 435.62 | I150: 0.9869053013 | J150: 438.24 | K150: 442.01 | L150: 435.62 | M150: 435.62
A151: 136 | B151: 2013-02-27 | C151: 448.43 | D151: 452.44 | E151: 440.65 | F151: 444.57 | G151: 20976800 | H151: 438.75 | I151: 0.9869086983 | J151: 442.56 | K151: 446.52 | L151: 434.88 | M151: 438.75
A152: 137 | B152: 2013-02-26 | C152: 443.82 | D152: 451.54 | E152: 437.66 | F152: 448.97 | G152: 17910700 | H152: 443.09 | I152: 0.9869033566 | J152: 438.01 | K152: 445.63 | L152: 431.93 | M152: 443.09
A153: 138 | B153: 2013-02-25 | C153: 453.85 | D153: 455.12 | E153: 442.57 | F153: 442.8 | G153: 13306400 | H153: 437 | I153: 0.9869015357 | J153: 447.91 | K153: 449.16 | L153: 436.77 | M153: 437
A154: 139 | B154: 2013-02-22 | C154: 449.25 | D154: 451.6 | E154: 446.6 | F154: 450.81 | G154: 11809100 | H154: 444.91 | I154: 0.9869124465 | J154: 443.37 | K154: 445.69 | L154: 440.76 | M154: 444.91
A155: 140 | B155: 2013-02-21 | C155: 446 | D155: 449.17 | E155: 442.82 | F155: 446.06 | G155: 15970800 | H155: 440.22 | I155: 0.9869075909 | J155: 440.16 | K155: 443.29 | L155: 437.02 | M155: 440.22
A156: 141 | B156: 2013-02-20 | C156: 457.69 | D156: 457.69 | E156: 448.8 | F156: 448.85 | G156: 17010800 | H156: 442.97 | I156: 0.9868998552 | J156: 451.69 | K156: 451.69 | L156: 442.92 | M156: 442.97
A157: 142 | B157: 2013-02-19 | C157: 461.1 | D157: 462.73 | E157: 453.85 | F157: 459.99 | G157: 15563700 | H157: 453.97 | I157: 0.986912759 | J157: 455.07 | K157: 456.67 | L157: 447.91 | M157: 453.97
A158: 143 | B158: 2013-02-15 | C158: 468.85 | D158: 470.16 | E158: 459.92 | F158: 460.16 | G158: 13990900 | H158: 454.14 | I158: 0.9869175939 | J158: 462.72 | K158: 464.01 | L158: 453.9 | M158: 454.14
A159: 144 | B159: 2013-02-14 | C159: 464.52 | D159: 471.64 | E159: 464.02 | F159: 466.59 | G159: 12688400 | H159: 460.48 | I159: 0.9869049915 | J159: 458.44 | K159: 465.46 | L159: 457.94 | M159: 460.48
A160: 145 | B160: 2013-02-13 | C160: 467.21 | D160: 473.64 | E160: 463.22 | F160: 467.01 | G160: 16971700 | H160: 460.9 | I160: 0.9869167684 | J160: 461.1 | K160: 467.44 | L160: 457.16 | M160: 460.9
A161: 146 | B161: 2013-02-12 | C161: 479.51 | D161: 482.38 | E161: 467.74 | F161: 467.9 | G161: 21751900 | H161: 461.77 | I161: 0.98689891 | J161: 473.23 | K161: 476.06 | L161: 461.61 | M161: 461.77
A162: 147 | B162: 2013-02-11 | C162: 476.5 | D162: 484.94 | E162: 473.25 | F162: 479.93 | G162: 18481800 | H162: 473.65 | I162: 0.9869147584 | J162: 470.26 | K162: 478.59 | L162: 467.06 | M162: 473.65
A163: 148 | B163: 2013-02-08 | C163: 474 | D163: 478.81 | E163: 468.25 | F163: 474.98 | G163: 22612800 | H163: 468.76 | I163: 0.9869047118 | J163: 467.79 | K163: 472.54 | L163: 462.12 | M163: 468.76
A164: 149 | B164: 2013-02-07 | C164: 463.25 | D164: 470 | E164: 454.12 | F164: 468.22 | G164: 25163600 | H164: 462.09 | I164: 0.9869078638 | J164: 457.19 | K164: 463.85 | L164: 448.17 | M164: 462.09
A165: 150 | B165: 2013-02-06 | C165: 456.47 | D165: 466.5 | E165: 452.58 | F165: 457.35 | G165: 21203800 | H165: 448.75 | I165: 0.9811960206 | J165: 447.89 | K165: 457.73 | L165: 444.07 | M165: 448.75
A166: 151 | B166: 2013-02-05 | C166: 444.05 | D166: 459.74 | E166: 442.22 | F166: 457.84 | G166: 20476700 | H166: 449.23 | I166: 0.9811943037 | J166: 435.7 | K166: 451.09 | L166: 433.9 | M166: 449.23
A167: 152 | B167: 2013-02-04 | C167: 453.91 | D167: 455.94 | E167: 442 | F167: 442.32 | G167: 17039900 | H167: 434 | I167: 0.9811900886 | J167: 445.37 | K167: 447.36 | L167: 433.69 | M167: 434
A168: 153 | B168: 2013-02-01 | C168: 459.11 | D168: 459.48 | E168: 448.35 | F168: 453.62 | G168: 19267300 | H168: 445.09 | I168: 0.9811957145 | J168: 450.48 | K168: 450.84 | L168: 439.92 | M168: 445.09
A169: 154 | B169: 2013-01-31 | C169: 456.98 | D169: 459.28 | E169: 454.98 | F169: 455.49 | G169: 11404800 | H169: 446.92 | I169: 0.9811850974 | J169: 448.38 | K169: 450.64 | L169: 446.42 | M169: 446.92
A170: 155 | B170: 2013-01-30 | C170: 457 | D170: 462.6 | E170: 454.5 | F170: 456.83 | G170: 14898400 | H170: 448.24 | I170: 0.9811965064 | J170: 448.41 | K170: 453.9 | L170: 445.95 | M170: 448.24
A171: 156 | B171: 2013-01-29 | C171: 458.5 | D171: 460.2 | E171: 452.12 | F171: 458.27 | G171: 20398500 | H171: 449.65 | I171: 0.9811901281 | J171: 449.88 | K171: 451.54 | L171: 443.62 | M171: 449.65
A172: 157 | B172: 2013-01-28 | C172: 437.83 | D172: 453.21 | E172: 435.86 | F172: 449.83 | G172: 28054200 | H172: 441.37 | I172: 0.9811928951 | J172: 429.6 | K172: 444.69 | L172: 427.66 | M172: 441.37
A173: 158 | B173: 2013-01-25 | C173: 451.69 | D173: 456.23 | E173: 435 | F173: 439.88 | G173: 43143800 | H173: 431.61 | I173: 0.981199418 | J173: 443.2 | K173: 447.65 | L173: 426.82 | M173: 431.61
A174: 159 | B174: 2013-01-24 | C174: 460 | D174: 465.73 | E174: 450.25 | F174: 450.5 | G174: 52173300 | H174: 442.03 | I174: 0.9811986681 | J174: 451.35 | K174: 456.97 | L174: 441.78 | M174: 442.03
A175: 160 | B175: 2013-01-23 | C175: 508.81 | D175: 514.99 | E175: 504.77 | F175: 514.01 | G175: 30768200 | H175: 504.34 | I175: 0.9811871364 | J175: 499.24 | K175: 505.3 | L175: 495.27 | M175: 504.34
A176: 161 | B176: 2013-01-22 | C176: 504.56 | D176: 507.88 | E176: 496.63 | F176: 504.77 | G176: 16483800 | H176: 495.28 | I176: 0.9811993581 | J176: 495.07 | K176: 498.33 | L176: 487.29 | M176: 495.28
A177: 162 | B177: 2013-01-18 | C177: 498.52 | D177: 502.22 | E177: 496.4 | F177: 500 | G177: 16890100 | H177: 490.59 | I177: 0.98118 | J177: 489.14 | K177: 492.77 | L177: 487.06 | M177: 490.59
A178: 163 | B178: 2013-01-17 | C178: 510.31 | D178: 510.75 | E178: 502.03 | F178: 502.68 | G178: 16202800 | H178: 493.22 | I178: 0.9811808705 | J178: 500.71 | K178: 501.14 | L178: 492.58 | M178: 493.22
A179: 164 | B179: 2013-01-16 | C179: 494.64 | D179: 509.44 | E179: 492.5 | F179: 506.09 | G179: 24671600 | H179: 496.57 | I179: 0.9811891166 | J179: 485.34 | K179: 499.86 | L179: 483.24 | M179: 496.57
A180: 165 | B180: 2013-01-15 | C180: 498.3 | D180: 498.99 | E180: 483.38 | F180: 485.92 | G180: 31313300 | H180: 476.78 | I180: 0.9811903194 | J180: 488.93 | K180: 489.6 | L180: 474.29 | M180: 476.78
A181: 166 | B181: 2013-01-14 | C181: 502.68 | D181: 507.5 | E181: 498.51 | F181: 501.75 | G181: 26221700 | H181: 492.31 | I181: 0.9811858495 | J181: 493.22 | K181: 497.95 | L181: 489.13 | M181: 492.31
A182: 167 | B182: 2013-01-11 | C182: 521 | D182: 525.32 | E182: 519.02 | F182: 520.3 | G182: 12518100 | H182: 510.51 | I182: 0.9811839323 | J182: 511.2 | K182: 515.44 | L182: 509.25 | M182: 510.51
A183: 168 | B183: 2013-01-10 | C183: 528.55 | D183: 528.72 | E183: 515.52 | F183: 523.51 | G183: 21469500 | H183: 513.66 | I183: 0.9811846956 | J183: 518.61 | K183: 518.77 | L183: 505.82 | M183: 513.66
A184: 169 | B184: 2013-01-09 | C184: 522.5 | D184: 525.01 | E184: 515.99 | F184: 517.1 | G184: 14557300 | H184: 507.37 | I184: 0.9811835235 | J184: 512.67 | K184: 515.13 | L184: 506.28 | M184: 507.37
A185: 170 | B185: 2013-01-08 | C185: 529.21 | D185: 531.89 | E185: 521.25 | F185: 525.31 | G185: 16382400 | H185: 515.43 | I185: 0.981192058 | J185: 519.26 | K185: 521.89 | L185: 511.45 | M185: 515.43
A186: 171 | B186: 2013-01-07 | C186: 522 | D186: 529.3 | E186: 515.2 | F186: 523.9 | G186: 17291300 | H186: 514.05 | I186: 0.981198702 | J186: 512.19 | K186: 519.35 | L186: 505.51 | M186: 514.05
A187: 172 | B187: 2013-01-04 | C187: 536.97 | D187: 538.63 | E187: 525.83 | F187: 527 | G187: 21226200 | H187: 517.09 | I187: 0.9811954459 | J187: 526.87 | K187: 528.5 | L187: 515.94 | M187: 517.09
A188: 173 | B188: 2013-01-03 | C188: 547.88 | D188: 549.67 | E188: 541 | F188: 542.1 | G188: 12605900 | H188: 531.9 | I188: 0.9811842833 | J188: 537.57 | K188: 539.33 | L188: 530.82 | M188: 531.9
A189: 174 | B189: 2013-01-02 | C189: 553.82 | D189: 555 | E189: 541.63 | F189: 549.03 | G189: 20018500 | H189: 538.7 | I189: 0.981184999 | J189: 543.4 | K189: 544.56 | L189: 531.44 | M189: 538.7
A190: 175 | B190: 2012-12-31 | C190: 510.53 | D190: 535.4 | E190: 509 | F190: 532.17 | G190: 23553300 | H190: 522.16 | I190: 0.9811902212 | J190: 500.93 | K190: 525.33 | L190: 499.43 | M190: 522.16
A191: 176 | B191: 2012-12-28 | C191: 510.29 | D191: 514.48 | E191: 508.12 | F191: 509.59 | G191: 12652800 | H191: 500 | I191: 0.9811809494 | J191: 500.69 | K191: 504.8 | L191: 498.56 | M191: 500
A192: 177 | B192: 2012-12-27 | C192: 513.54 | D192: 516.25 | E192: 504.66 | F192: 515.06 | G192: 16254300 | H192: 505.37 | I192: 0.9811866579 | J192: 503.88 | K192: 506.54 | L192: 495.17 | M192: 505.37
A193: 178 | B193: 2012-12-26 | C193: 519 | D193: 519.46 | E193: 511.12 | F193: 513 | G193: 10801300 | H193: 503.35 | I193: 0.9811890838 | J193: 509.24 | K193: 509.69 | L193: 501.51 | M193: 503.35
A194: 179 | B194: 2012-12-24 | C194: 520.35 | D194: 524.25 | E194: 518.71 | F194: 520.17 | G194: 6276900 | H194: 510.39 | I194: 0.9811984544 | J194: 510.57 | K194: 514.39 | L194: 508.96 | M194: 510.39
A195: 180 | B195: 2012-12-21 | C195: 512.47 | D195: 519.67 | E195: 510.24 | F195: 519.33 | G195: 21295300 | H195: 509.56 | I195: 0.981187299 | J195: 502.83 | K195: 509.89 | L195: 500.64 | M195: 509.56
A196: 181 | B196: 2012-12-20 | C196: 530 | D196: 530.2 | E196: 518.88 | F196: 521.73 | G196: 17203200 | H196: 511.92 | I196: 0.981197171 | J196: 520.03 | K196: 520.23 | L196: 509.12 | M196: 511.92
A197: 182 | B197: 2012-12-19 | C197: 531.47 | D197: 533.7 | E197: 525.5 | F197: 526.31 | G197: 16048900 | H197: 516.41 | I197: 0.9811897931 | J197: 521.47 | K197: 523.66 | L197: 515.62 | M197: 516.41
A198: 183 | B198: 2012-12-18 | C198: 525 | D198: 534.9 | E198: 520.25 | F198: 533.9 | G198: 22345900 | H198: 523.86 | I198: 0.9811949803 | J198: 515.13 | K198: 524.84 | L198: 510.47 | M198: 523.86
A199: 184 | B199: 2012-12-17 | C199: 508.93 | D199: 520 | E199: 501.23 | F199: 518.83 | G199: 27057400 | H199: 509.07 | I199: 0.9811884432 | J199: 499.36 | K199: 510.22 | L199: 491.8 | M199: 509.07
A200: 185 | B200: 2012-12-14 | C200: 514.75 | D200: 518.13 | E200: 505.58 | F200: 509.79 | G200: 36056400 | H200: 500.2 | I200: 0.9811883325 | J200: 505.07 | K200: 508.38 | L200: 496.07 | M200: 500.2
A201: 186 | B201: 2012-12-13 | C201: 531.15 | D201: 537.64 | E201: 525.8 | F201: 529.69 | G201: 22330700 | H201: 519.73 | I201: 0.9811965489 | J201: 521.16 | K201: 527.53 | L201: 515.91 | M201: 519.73
... 7129 more rows

Sheet CalculationsAndCharts
A1: Reversing MACD Sequel
A2: =InputPriceData!A1&B3 -> Apple Inc. (AAPL) -NasdaqNM (EMA calculations using Close. With periods of 12, 26, and 9)
B3: =" ("&IF(K12=1,"EMA","SMA")&" calculations using "&J32&". With periods of "&A17&", "&A18&", and "&A19&")" -> (EMA calculations using Close. With periods of 12, 26, and 9)
A4: User Charting Controls | J4: Price Choice/Index
A5: Data Control | I5: 1 = | J5: Open
A6: =InputPriceData!$B$10 -> 7315 | B6: Available Input Data Rows | E6: Earliest: | F6: =OFFSET(InputPriceData!B15,CalculationsAndCharts!A6,0,1,1) -> 1984-09-07 | I6: 2 = | J6: High
B7: Use Close Adjusted: | C7: TRUE | E7: Latest: | F7: =OFFSET(InputPriceData!B15,1,0,1,1) -> 2013-09-10 | I7: 3 = | J7: Low | K7: Index
A8: =MIN(A6-A11,COUNTA(B33:B9983)) -> 841 | B8: Logically Available for Calc / Plot | I8: 4 = | J8: Close | K8: =MATCH(A16,J5:J8,0) -> 4
A10: Price Chart Windowing Controls | F10: Y-axis Range | J10: MA Choice/Index
A11: 240 | B11: Input Data Offset (Pan) | E11: Max High+ | F11: =CEILING(MAX(OFFSET($E$33,0,0,$A$12,1),AB24)+2*F14,0.1) -> 708.3 | I11: 1 = | J11: EMA | K11: Index
A12: 78 | B12: Data Points to Plot (Zoom) | E12: Min Low- | F12: =FLOOR(MIN(OFFSET($F$33,0,0,$A$12,1),AB25)-2*F14,0.1) -> 408.9 | I12: 2 = | J12: SMA | K12: 1
B13: First: | C13: =OFFSET(B32,A12,0,1,1) -> 2012-06-05 | E13: White space %: | F13: 0.05
B14: Last: | C14: =B33 -> 2012-09-24 | E14: Allowance: | F14: =FLOOR((CEILING(MAX(OFFSET($E$33,0,0,$A$12,1)),1)-FLOOR(MIN(OFFSET($F$33,0,0,$A$12,1)),1))*F13,0.01) -> 7.3 | J14: Plot Shift Choice/Index
A15: Reversing Controls | C15: Intermediate Calculation Values | I15: 1 = | J15: Yes | K15: Index
A16: Close | B16: Price Choice | C16: Alpha | D16: 1 - Alpha | I16: 0 = | J16: No | K16: 1
A17: 12 | B17: X - Fast Period | C17: =2 / ( 1 + A17 ) -> 0.1538461538 | D17: =1-C17 -> 0.8461538462 | E17: X*Y | F17: =A17*A18 -> 312
A18: 26 | B18: Y - Slow Period | C18: =2 / ( 1 + A18 ) -> 0.07407407407 | D18: =1-C18 -> 0.9259259259 | E18: X*Z | F18: =A17*A19 -> 108
A19: 9 | B19: Z - Signal Period | C19: 0.2 | D19: 0.8 | E19: Y*Z | F19: =A18*A19 -> 234
E20: X*Y*Z | F20: =A17*A18*A19 -> 2808
A23: Help! I would like to plot data | AA23: Chart Vertical Range Help For Price
A24: From | B24: 2012-06-05 | C24: =OFFSET(InputPriceData!$A$15,MATCH(B24,OFFSET(InputPriceData!B15,1,0,InputPriceData!$B$10,1),0),0,1,1)-C25 -> 78 | E24: 52 | AA24: Max | AB24: =MAX(OFFSET($AA$33,0,0,$A$12,3)) -> 693.6943325
A25: To | B25: 2012-09-24 | C25: =OFFSET(InputPriceData!$A$15,MATCH(B25,OFFSET(InputPriceData!$B$15,1,0,InputPriceData!$B$10,1),0),0,1,1)-1 -> 240 | E25: =$A$12-$E$24+1 -> 27 | AA25: Min | AB25: =MIN(OFFSET($AA$33,0,0,$A$12,3)) -> 423.5684749
D27: Date at Cursor | AA27: Here we select the version of our calculations which will be
H28: @ Scroll Bar => | I28: =OFFSET(A32,$E$25,0,1,1)&"(RR)" -> 27(RR) | J28: =TEXT(OFFSET(D32,$E$25,0,1,1),"#,##0.00")&"(o)" -> 616.52(o) | K28: =TEXT(OFFSET(E32,$E$25,0,1,1),"#,##0.00")&"(h)" -> 621.94(h) | L28: =TEXT(OFFSET(F32,$E$25,0,1,1),"#,##0.00")&"(l)" -> 615.83(l) | M28: =TEXT(OFFSET(G32,$E$25,0,1,1),"#,##0.00")&"(c)" -> 621.53(c) | AA28: shown on the charts based on the contents of cell A20.
D29: =OFFSET($B$32,E25,0,1,1) -> 2012-08-16 | E29: Scroll Price => | AA29: and cell I16
AC30: ="--> Using " & IF($K$12=1,"EMA","SMA")& " Based Calculations "&IF(K16=1,"with Plot Shift","") & " <--" -> --> Using EMA Based Calculations with Plot Shift <-- | AG30: Green Histo | AH30: Red Hist
A31: Rel Row | D31: Price Sources | H31: $Cursor | I31: IndCursor | J31: Using | M31: MACD Value | N31: MACD Signal | O31: MACD Histo | P31: PMACD Eq | Q31: PMACD Zero | R31: PMACD Sig | U31: sMACD Value | V31: sMACD Signal | W31: sMACD Histo | X31: PsMACD Eq | Y31: PsMACD Zero | Z31: PsMACD Signal | AA31: =IF($K$12=1,P31,X31) -> PMACD Eq | AB31: =IF($K$12=1,Q31,Y31) -> PMACD Zero | AC31: =IF($K$12=1,R31,Z31) -> PMACD Sig | AD31: =IF($K$12=1,M31,U31) -> MACD Value | AE31: =IF($K$12=1,N31,V31) -> MACD Signal | AF31: =IF($K$12=1,O31,W31) -> MACD Histo | AG31: =IF($K$12=1,O31,W31) -> MACD Histo | AH31: =IF($K$12=1,O31,W31) -> MACD Histo
B32: Date | C32: Volume | D32: Open | E32: High | F32: Low | G32: Close | H32: =$F$11 -> 708.3 | I32: =MAX(OFFSET(AD33,0,0,A12,3)) -> 18.6851359 | J32: =INDEX(D32:G32,$K$8) -> Close | K32: EMA Fast | L32: EMA Slow | S32: SMA Fast | T32: SMA Slow
A33: 1 | B33: =OFFSET(InputPriceData!B$15,CalculationsAndCharts!$A33+$A$11,0,1,1) -> 2012-09-24 | C33: =OFFSET(InputPriceData!G$15,CalculationsAndCharts!$A33+$A$11,0,1,1) -> 22848800 | D33: =OFFSET(InputPriceData!C$15,CalculationsAndCharts!$A33+$A$11,IF($C$7,7,0),1,1) -> 670.87 | E33: =OFFSET(InputPriceData!D$15,CalculationsAndCharts!$A33+$A$11,IF($C$7,7,0),1,1) -> 678.94 | F33: =OFFSET(InputPriceData!E$15,CalculationsAndCharts!$A33+$A$11,IF($C$7,7,0),1,1) -> 667.1 | G33: =OFFSET(InputPriceData!F$15,CalculationsAndCharts!$A33+$A$11,IF($C$7,7,0),1,1) -> 674.71 | H33: =IF($A33=$E$25,H$32,NA()) ->  | J33: 674.71 | K33: =$C$17*$J33+$D$17*K34 -> 672.6538111 | L33: =$C$18*$J33+$D$18*L34 -> 657.769071 | M33: =K33-L33 -> 14.88474013 | N33: =$C$19*M33+$D$19*N34 -> 15.12981959 | O33: =M33-N33 -> -0.2450794636 | P33: =(K33*$C$17-L33*$C$18)/($C$17-$C$18) -> 686.4753555 | Q33: =(0+L33*$D$18-K33*$D$17)/($C$17-$C$18) -> 499.8845061 | R33: =(N33-K33*$D$17+L33*$D$18)/($C$17-$C$18) -> 689.5476017 | S33: =AVERAGE(OFFSET($J33,0,0,$A$17,1)) -> 670.785 | T33: =AVERAGE(OFFSET($J33,0,0,$A$18,1)) -> 660.4103846 | U33: =S33-T33 -> 10.37461538 | V33: =$C$19*U33+$D$19*V34 -> 12.892303 | W33: =U33-V33 -> -2.517687611 | X33: =($A$17*OFFSET(J33,$A$18-1,0,1,1)-$A$18*OFFSET(J33,$A$17-1,0,1,1))/($A$17-$A$18) -> 691.6785714 | Y33: =($F$17*U33+$A$17*OFFSET(J33,$A$18-1,0,1,1)-$A$18*OFFSET(J33,$A$17-1,0,1,1))/($A$17-$A$18) -> 460.4728571 | Z33: =(U33*($F$20-$F$17)-$F$20*AVERAGE(OFFSET(U33,0,0,$A$19,1))-OFFSET(J33,$A$17-1,0,1,1)*($F$19-$A$18)+OFFSET(J33,$A$18-1,0,1,1)*($F$18-$A$17)+$F$17*OFFSET(U33,$A$19-1,0,1,1))/($F$18-$F$19-$A$17+$A$18) -> 724.2244643 | AA33: =IF($K$12=1,IF($K$16=1,P34,P33),IF($K$16=1,X34,X33)) -> 687.0128233 | AB33: =IF($K$12=1,IF($K$16=1,Q34,Q33),IF($K$16=1,Y34,Y33)) -> 488.1191506 | AC33: =IF($K$12=1,IF($K$16=1,R34,R33),IF($K$16=1,Z34,Z33)) -> 678.5503077 | AD33: =IF($K$12=1,M33,U33) -> 14.88474013 | AE33: =IF($K$12=1,N33,V33) -> 15.12981959 | AF33: =IF($K$12=1,O33,W33) -> -0.2450794636 | AG33: =IF(AF33>0,AF33,0) -> 0 | AH33: =IF(AF33>0,0,AF33) -> -0.2450794636
A34: 2 | B34: =OFFSET(InputPriceData!B$15,CalculationsAndCharts!$A34+$A$11,0,1,1) -> 2012-09-21 | C34: =OFFSET(InputPriceData!G$15,CalculationsAndCharts!$A34+$A$11,0,1,1) -> 20413900 | D34: =OFFSET(InputPriceData!C$15,CalculationsAndCharts!$A34+$A$11,IF($C$7,7,0),1,1) -> 686.07 | E34: =OFFSET(InputPriceData!D$15,CalculationsAndCharts!$A34+$A$11,IF($C$7,7,0),1,1) -> 688.66 | F34: =OFFSET(InputPriceData!E$15,CalculationsAndCharts!$A34+$A$11,IF($C$7,7,0),1,1) -> 683.09 | G34: =OFFSET(InputPriceData!F$15,CalculationsAndCharts!$A34+$A$11,IF($C$7,7,0),1,1) -> 683.8 | J34: 683.8 | K34: =$C$17*$J34+$D$17*K35 -> 672.2799586 | L34: =$C$18*$J34+$D$18*L35 -> 656.4137967 | M34: =K34-L34 -> 15.86616192 | N34: =$C$19*$M34+$D$19*N35 -> 15.19108946 | O34: =M34-N34 -> 0.6750724696 | P34: 687.0128233 | Q34: 488.1191506 | R34: 678.5503077 | S34: =AVERAGE(OFFSET($J34,0,0,$A$17,1)) -> 669.6033333 | T34: =AVERAGE(OFFSET($J34,0,0,$A$18,1)) -> 658.365 | U34: =S34-T34 -> 11.23833333 | V34: =$C$19*U34+$D$19*V35 -> 13.5217249 | W34: =U34-V34 -> -2.283391565 | X34: 693.9585714 | Y34: 443.5042857 | Z34: 722.1675 | AA34: 685.0077319 | AB34: 484.9063273 | AC34: 673.2218555 | AD34: 15.86616192 | AE34: 15.19108946 | AF34: 0.6750724696 | AG34: 0.6750724696 | AH34: 0
A35: 3 | B35: =OFFSET(InputPriceData!B$15,CalculationsAndCharts!$A35+$A$11,0,1,1) -> 2012-09-20 | C35: =OFFSET(InputPriceData!G$15,CalculationsAndCharts!$A35+$A$11,0,1,1) -> 12020300 | D35: =OFFSET(InputPriceData!C$15,CalculationsAndCharts!$A35+$A$11,IF($C$7,7,0),1,1) -> 682.89 | E35: =OFFSET(InputPriceData!D$15,CalculationsAndCharts!$A35+$A$11,IF($C$7,7,0),1,1) -> 683.77 | F35: =OFFSET(InputPriceData!E$15,CalculationsAndCharts!$A35+$A$11,IF($C$7,7,0),1,1) -> 677.48 | G35: =OFFSET(InputPriceData!F$15,CalculationsAndCharts!$A35+$A$11,IF($C$7,7,0),1,1) -> 682.44 | J35: 682.44 | K35: 670.1854056 | L35: 654.2229004 | M35: 15.96250521 | N35: 15.02232134 | O35: 0.9401838734 | P35: 685.0077319 | Q35: 484.9063273 | R35: 673.2218555 | S35: 667.1725 | T35: 655.7630769 | U35: 11.40942308 | V35: 14.09257279 | W35: -2.683149713 | X35: 687.6128571 | Y35: 433.3457143 | Z35: 728.2485714 | AA35: 682.8067938 | AB35: 482.3385954 | AC35: 667.7076545 | AD35: 15.96250521 | AE35: 15.02232134 | AF35: 0.9401838734 | AG35: 0.9401838734 | AH35: 0
A36: 4 | B36: =OFFSET(InputPriceData!B$15,CalculationsAndCharts!$A36+$A$11,0,1,1) -> 2012-09-19 | C36: =OFFSET(InputPriceData!G$15,CalculationsAndCharts!$A36+$A$11,0,1,1) -> 11674100 | D36: =OFFSET(InputPriceData!C$15,CalculationsAndCharts!$A36+$A$11,IF($C$7,7,0),1,1) -> 683.96 | E36: =OFFSET(InputPriceData!D$15,CalculationsAndCharts!$A36+$A$11,IF($C$7,7,0),1,1) -> 687.61 | F36: =OFFSET(InputPriceData!E$15,CalculationsAndCharts!$A36+$A$11,IF($C$7,7,0),1,1) -> 683.29 | G36: =OFFSET(InputPriceData!F$15,CalculationsAndCharts!$A36+$A$11,IF($C$7,7,0),1,1) -> 685.76 | J36: 685.76 | K36: 667.9572976 | L36: 651.9655325 | M36: 15.99176511 | N36: 14.78727537 | O36: 1.204489742 | P36: 682.8067938 | Q36: 482.3385954 | R36: 667.7076545 | S36: 665.2408333 | T36: 653.2457692 | U36: 11.9950641 | V36: 14.76336022 | W36: -2.768296116 | X36: 695.4914286 | Y36: 428.1728571 | Z36: 744.2742857 | AA36: 679.0747339 | AB36: 485.2918016 | AC36: 666.8860759 | AD36: 15.99176511 | AE36: 14.78727537 | AF36: 1.204489742 | AG36: 1.204489742 | AH36: 0
A37: 5 | B37: =OFFSET(InputPriceData!B$15,CalculationsAndCharts!$A37+$A$11,0,1,1) -> 2012-09-18 | C37: =OFFSET(InputPriceData!G$15,CalculationsAndCharts!$A37+$A$11,0,1,1) -> 13339400 | D37: =OFFSET(InputPriceData!C$15,CalculationsAndCharts!$A37+$A$11,IF($C$7,7,0),1,1) -> 683.6 | E37: =OFFSET(InputPriceData!D$15,CalculationsAndCharts!$A37+$A$11,IF($C$7,7,0),1,1) -> 685.99 | F37: =OFFSET(InputPriceData!E$15,CalculationsAndCharts!$A37+$A$11,IF($C$7,7,0),1,1) -> 680.22 | G37: =OFFSET(InputPriceData!F$15,CalculationsAndCharts!$A37+$A$11,IF($C$7,7,0),1,1) -> 685.58 | J37: 685.58 | K37: 664.7204426 | L37: 649.2619751 | M37: 15.45846753 | N37: 14.48615293 | O37: 0.9723145951 | P37: 679.0747339 | Q37: 485.2918016 | R37: 666.8860759 | S37: 662.2408333 | T37: 650.5373077 | U37: 11.70352564 | V37: 15.45543425 | W37: -3.751908606 | X37: 679.2628571 | Y37: 418.4414286 | Z37: 761.5207143 | AA37: 674.458254 | AB37: 491.7970678 | AC37: 670.3441776 | AD37: 15.45846753 | AE37: 14.48615293 | AF37: 0.9723145951 | AG37: 0.9723145951 | AH37: 0
A38: 6 | B38: =OFFSET(InputPriceData!B$15,CalculationsAndCharts!$A38+$A$11,0,1,1) -> 2012-09-17 | C38: =OFFSET(InputPriceData!G$15,CalculationsAndCharts!$A38+$A$11,0,1,1) -> 14215400 | D38: =OFFSET(InputPriceData!C$15,CalculationsAndCharts!$A38+$A$11,IF($C$7,7,0),1,1) -> 683.08 | E38: =OFFSET(InputPriceData!D$15,CalculationsAndCharts!$A38+$A$11,IF($C$7,7,0),1,1) -> 683.52 | F38: =OFFSET(InputPriceData!E$15,CalculationsAndCharts!$A38+$A$11,IF($C$7,7,0),1,1) -> 678.45 | G38: =OFFSET(InputPriceData!F$15,CalculationsAndCharts!$A38+$A$11,IF($C$7,7,0),1,1) -> 683.5 | J38: 683.5 | K38: 660.9277958 | L38: 646.3565331 | M38: 14.57126272 | N38: 14.24307429 | O38: 0.3281884376 | P38: 674.458254 | Q38: 491.7970678 | R38: 670.3441776 | S38: 659.1441667 | T38: 647.5238462 | U38: 11.62032051 | V38: 16.3934114 | W38: -4.773090886 | X38: 683.7257143 | Y38: 424.7585714 | Z38: 798.0760714 | AA38: 669.3025543 | AB38: 500.8388137 | AC38: 678.3574044 | AD38: 14.57126272 | AE38: 14.24307429 | AF38: 0.3281884376 | AG38: 0.3281884376 | AH38: 0
A39: 7 | B39: =OFFSET(InputPriceData!B$15,CalculationsAndCharts!$A39+$A$11,0,1,1) -> 2012-09-14 | C39: =OFFSET(InputPriceData!G$15,CalculationsAndCharts!$A39+$A$11,0,1,1) -> 21445500 | D39: =OFFSET(InputPriceData!C$15,CalculationsAndCharts!$A39+$A$11,IF($C$7,7,0),1,1) -> 673.9 | E39: =OFFSET(InputPriceData!D$15,CalculationsAndCharts!$A39+$A$11,IF($C$7,7,0),1,1) -> 680.76 | F39: =OFFSET(InputPriceData!E$15,CalculationsAndCharts!$A39+$A$11,IF($C$7,7,0),1,1) -> 671.88 | G39: =OFFSET(InputPriceData!F$15,CalculationsAndCharts!$A39+$A$11,IF($C$7,7,0),1,1) -> 675.19 | J39: 675.19 | K39: 656.8237587 | L39: 643.3850557 | M39: 13.43870295 | N39: 14.16102718 | O39: -0.7223242272 | P39: 669.3025543 | Q39: 500.8388137 | R39: 678.3574044 | S39: 657.0025 | T39: 644.5538462 | U39: 12.44865385 | V39: 17.58668412 | W39: -5.138030274 | X39: 701.96 | Y39: 424.5328571 | Z39: 832.9275 | AA39: 665.2250967 | AB39: 506.7262595 | AC39: 686.5085627 | AD39: 13.43870295 | AE39: 14.16102718 | AF39: -0.7223242272 | AG39: 0 | AH39: -0.7223242272
A40: 8 | B40: =OFFSET(InputPriceData!B$15,CalculationsAndCharts!$A40+$A$11,0,1,1) -> 2012-09-13 | C40: =OFFSET(InputPriceData!G$15,CalculationsAndCharts!$A40+$A$11,0,1,1) -> 21370000 | D40: =OFFSET(InputPriceData!C$15,CalculationsAndCharts!$A40+$A$11,IF($C$7,7,0),1,1) -> 661.61 | E40: =OFFSET(InputPriceData!D$15,CalculationsAndCharts!$A40+$A$11,IF($C$7,7,0),1,1) -> 669.55 | F40: =OFFSET(InputPriceData!E$15,CalculationsAndCharts!$A40+$A$11,IF($C$7,7,0),1,1) -> 659.07 | G40: =OFFSET(InputPriceData!F$15,CalculationsAndCharts!$A40+$A$11,IF($C$7,7,0),1,1) -> 667.09 | J40: 667.09 | K40: 653.4844421 | L40: 640.8406602 | M40: 12.64378188 | N40: 14.34160823 | O40: -1.697826348 | P40: 665.2250967 | Q40: 506.7262595 | R40: 686.5085627 | S40: 655.6616667 | T40: 641.7715385 | U40: 13.89012821 | V40: 18.87119169 | W40: -4.981063483 | X40: 707.3142857 | Y40: 397.7628571 | Z40: 842.0482143 | AA40: 662.4042676 | AB40: 508.5911628 | AC40: 693.6943325 | AD40: 12.64378188 | AE40: 14.34160823 | AF40: -1.697826348 | AG40: 0 | AH40: -1.697826348
A41: 9 | B41: =OFFSET(InputPriceData!B$15,CalculationsAndCharts!$A41+$A$11,0,1,1) -> 2012-09-12 | C41: =OFFSET(InputPriceData!G$15,CalculationsAndCharts!$A41+$A$11,0,1,1) -> 25436900 | D41: =OFFSET(InputPriceData!C$15,CalculationsAndCharts!$A41+$A$11,IF($C$7,7,0),1,1) -> 651.33 | E41: =OFFSET(InputPriceData!D$15,CalculationsAndCharts!$A41+$A$11,IF($C$7,7,0),1,1) -> 654.31 | F41: =OFFSET(InputPriceData!E$15,CalculationsAndCharts!$A41+$A$11,IF($C$7,7,0),1,1) -> 640.73 | G41: =OFFSET(InputPriceData!F$15,CalculationsAndCharts!$A41+$A$11,IF($C$7,7,0),1,1) -> 654.2 | J41: 654.2 | K41: 651.0107043 | L41: 638.740713 | M41: 12.26999126 | N41: 14.76606482 | O41: -2.496073556 | P41: 662.4042676 | Q41: 508.5911628 | R41: 693.6943325 | S41: 655.0675 | T41: 639.34 | U41: 15.7275 | V41: 20.11645756 | W41: -4.388957559 | X41: 708.0371429 | Y41: 357.5385714 | Z41: 834.6003571 | AA41: 662.4343473 | AB41: 500.3868952 | AC41: 693.3125812 | AD41: 12.26999126 | AE41: 14.76606482 | AF41: -2.496073556 | AG41: 0 | AH41: -2.496073556
A42: 10 | B42: =OFFSET(InputPriceData!B$15,CalculationsAndCharts!$A42+$A$11,0,1,1) -> 2012-09-11 | C42: =OFFSET(InputPriceData!G$15,CalculationsAndCharts!$A42+$A$11,0,1,1) -> 17999400 | D42: =OFFSET(InputPriceData!C$15,CalculationsAndCharts!$A42+$A$11,IF($C$7,7,0),1,1) -> 649.63 | E42: =OFFSET(InputPriceData!D$15,CalculationsAndCharts!$A42+$A$11,IF($C$7,7,0),1,1) -> 654.51 | F42: =OFFSET(InputPriceData!E$15,CalculationsAndCharts!$A42+$A$11,IF($C$7,7,0),1,1) -> 641.23 | G42: =OFFSET(InputPriceData!F$15,CalculationsAndCharts!$A42+$A$11,IF($C$7,7,0),1,1) -> 645.22 | J42: 645.22 | K42: 650.4308323 | L42: 637.50397 | M42: 12.92686227 | N42: 15.39008321 | O42: -2.463220939 | P42: 662.4343473 | Q42: 500.3868952 | R42: 693.3125812 | S42: 654.5333333 | T42: 637.4653846 | U42: 17.06794872 | V42: 21.21369695 | W42: -4.145748231 | X42: 684.0728571 | Y42: 303.7014286 | Z42: 810.3325 | AA42: 664.834713 | AB42: 483.172548 | AC42: 683.8177924 | AD42: 12.92686227 | AE42: 15.39008321 | AF42: -2.463220939 | AG42: 0 | AH42: -2.463220939
A43: 11 | B43: =OFFSET(InputPriceData!B$15,CalculationsAndCharts!$A43+$A$11,0,1,1) -> 2012-09-10 | C43: =OFFSET(InputPriceData!G$15,CalculationsAndCharts!$A43+$A$11,0,1,1) -> 17428500 | D43: =OFFSET(InputPriceData!C$15,CalculationsAndCharts!$A43+$A$11,IF($C$7,7,0),1,1) -> 664.62 | E43: =OFFSET(InputPriceData!D$15,CalculationsAndCharts!$A43+$A$11,IF($C$7,7,0),1,1) -> 667.39 | F43: =OFFSET(InputPriceData!E$15,CalculationsAndCharts!$A43+$A$11,IF($C$7,7,0),1,1) -> 646.69 | G43: =OFFSET(InputPriceData!F$15,CalculationsAndCharts!$A43+$A$11,IF($C$7,7,0),1,1) -> 647.32 | J43: 647.32 | K43: 651.3782563 | L43: 636.8866876 | M43: 14.49156872 | N43: 16.00588844 | O43: -1.514319722 | P43: 664.834713 | Q43: 483.172548 | R43: 683.8177924 | S43: 654.6991667 | T43: 635.68 | U43: 19.01916667 | V43: 22.25013401 | W43: -3.23096734 | X43: 688.7042857 | Y43: 264.8485714 | Z43: 799.5789286 | AA43: 667.032784 | AB43: 465.657835 | AC43: 671.0488492 | AD43: 14.49156872 | AE43: 16.00588844 | AF43: -1.514319722 | AG43: 0 | AH43: -1.514319722
A44: 12 | B44: =OFFSET(InputPriceData!B$15,CalculationsAndCharts!$A44+$A$11,0,1,1) -> 2012-09-07 | C44: =OFFSET(InputPriceData!G$15,CalculationsAndCharts!$A44+$A$11,0,1,1) -> 11773800 | D44: =OFFSET(InputPriceData!C$15,CalculationsAndCharts!$A44+$A$11,IF($C$7,7,0),1,1) -> 662.28 | E44: =OFFSET(InputPriceData!D$15,CalculationsAndCharts!$A44+$A$11,IF($C$7,7,0),1,1) -> 666.6 | F44: =OFFSET(InputPriceData!E$15,CalculationsAndCharts!$A44+$A$11,IF($C$7,7,0),1,1) -> 660.05 | G44: =OFFSET(InputPriceData!F$15,CalculationsAndCharts!$A44+$A$11,IF($C$7,7,0),1,1) -> 664.61 | J44: 664.61 | K44: 652.1161211 | L44: 636.0520226 | M44: 16.0640985 | N44: 16.38446837 | O44: -0.3203698715 | P44: 667.032784 | Q44: 465.657835 | R44: 671.0488492 | S44: 655.1975 | T44: 633.5180769 | U44: 21.67942308 | V44: 23.05787584 | W44: -1.378452765 | X44: 706.6057143 | Y44: 223.4642857 | Z44: 778.8626786 | AA44: 664.7732633 | AB44: 463.2350509 | AC44: 669.6300815 | AD44: 16.0640985 | AE44: 16.38446837 | AF44: -0.3203698715 | AG44: 0 | AH44: -0.3203698715
A45: 13 | B45: =OFFSET(InputPriceData!B$15,CalculationsAndCharts!$A45+$A$11,0,1,1) -> 2012-09-06 | C45: =OFFSET(InputPriceData!G$15,CalculationsAndCharts!$A45+$A$11,0,1,1) -> 13971300 | D45: =OFFSET(InputPriceData!C$15,CalculationsAndCharts!$A45+$A$11,IF($C$7,7,0),1,1) -> 657.5 | E45: =OFFSET(InputPriceData!D$15,CalculationsAndCharts!$A45+$A$11,IF($C$7,7,0),1,1) -> 662.5 | F45: =OFFSET(InputPriceData!E$15,CalculationsAndCharts!$A45+$A$11,IF($C$7,7,0),1,1) -> 655.19 | G45: =OFFSET(InputPriceData!F$15,CalculationsAndCharts!$A45+$A$11,IF($C$7,7,0),1,1) -> 660.53 | J45: 660.53 | K45: 649.8445068 | L45: 633.7673844 | M45: 16.07712235 | N45: 16.46456084 | O45: -0.3874384885 | P45: 664.7732633 | Q45: 463.2350509 | R45: 669.6300815 | S45: 653.2125 | T45: 630.6542308 | U45: 22.55826923 | V45: 23.40248903 | W45: -0.8442198025 | X45: 684.1957143 | Y45: 181.4685714 | Z45: 745.7801786 | AA45: 663.014482 | AB45: 458.9917876 | AC45: 666.6010227 | AD45: 16.07712235 | AE45: 16.46456084 | AF45: -0.3874384885 | AG45: 0 | AH45: -0.3874384885
A46: 14 | B46: =OFFSET(InputPriceData!B$15,CalculationsAndCharts!$A46+$A$11,0,1,1) -> 2012-09-05 | C46: =OFFSET(InputPriceData!G$15,CalculationsAndCharts!$A46+$A$11,0,1,1) -> 12013400 | D46: =OFFSET(InputPriceData!C$15,CalculationsAndCharts!$A46+$A$11,IF($C$7,7,0),1,1) -> 659.85 | E46: =OFFSET(InputPriceData!D$15,CalculationsAndCharts!$A46+$A$11,IF($C$7,7,0),1,1) -> 660.61 | F46: =OFFSET(InputPriceData!E$15,CalculationsAndCharts!$A46+$A$11,IF($C$7,7,0),1,1) -> 654.01 | G46: =OFFSET(InputPriceData!F$15,CalculationsAndCharts!$A46+$A$11,IF($C$7,7,0),1,1) -> 654.63 | J46: 654.63 | K46: 647.9016899 | L46: 631.6263752 | M46: 16.27531465 | N46: 16.56142046 | O46: -0.2861058117 | P46: 663.014482 | Q46: 458.9917876 | R46: 666.6010227 | S46: 652.3075 | T46: 628.0953846 | U46: 24.21211538 | V46: 23.61354398 | W46: 0.5985714008 | X46: 697.3871429 | Y46: 157.8028571 | Z46: 723.8591071 | AA46: 662.3640452 | AB46: 450.6073056 | AC46: 659.1131759 | AD46: 16.27531465 | AE46: 16.56142046 | AF46: -0.2861058117 | AG46: 0 | AH46: -0.2861058117
A47: 15 | B47: =OFFSET(InputPriceData!B$15,CalculationsAndCharts!$A47+$A$11,0,1,1) -> 2012-09-04 | C47: =OFFSET(InputPriceData!G$15,CalculationsAndCharts!$A47+$A$11,0,1,1) -> 13139000 | D47: =OFFSET(InputPriceData!C$15,CalculationsAndCharts!$A47+$A$11,IF($C$7,7,0),1,1) -> 650.26 | E47: =OFFSET(InputPriceData!D$15,CalculationsAndCharts!$A47+$A$11,IF($C$7,7,0),1,1) -> 659.43 | F47: =OFFSET(InputPriceData!E$15,CalculationsAndCharts!$A47+$A$11,IF($C$7,7,0),1,1) -> 649.03 | G47: =OFFSET(InputPriceData!F$15,CalculationsAndCharts!$A47+$A$11,IF($C$7,7,0),1,1) -> 659.26 | J47: 659.26 | K47: 646.6783607 | L47: 629.7860852 | M47: 16.89227552 | N47: 16.63294692 | O47: 0.2593286021 | P47: 662.3640452 | Q47: 450.6073056 | R47: 659.1131759 | S47: 650.5075 | T47: 625.175 | U47: 25.3325 | V47: 23.46390113 | W47: 1.868598866 | X47: 679.5985714 | Y47: 115.0457143 | Z47: 673.1994643 | AA47: 660.1417923 | AB47: 447.5032605 | AC47: 655.1964134 | AD47: 16.89227552 | AE47: 16.63294692 | AF47: 0.2593286021 | AG47: 0.2593286021 | AH47: 0
A48: 16 | B48: =OFFSET(InputPriceData!B$15,CalculationsAndCharts!$A48+$A$11,0,1,1) -> 2012-08-31 | C48: =OFFSET(InputPriceData!G$15,CalculationsAndCharts!$A48+$A$11,0,1,1) -> 12082900 | D48: =OFFSET(InputPriceData!C$15,CalculationsAndCharts!$A48+$A$11,IF($C$7,7,0),1,1) -> 651.72 | E48: =OFFSET(InputPriceData!D$15,CalculationsAndCharts!$A48+$A$11,IF($C$7,7,0),1,1) -> 653.04 | F48: =OFFSET(InputPriceData!E$15,CalculationsAndCharts!$A48+$A$11,IF($C$7,7,0),1,1) -> 641.96 | G48: =OFFSET(InputPriceData!F$15,CalculationsAndCharts!$A48+$A$11,IF($C$7,7,0),1,1) -> 649.76 | J48: 649.76 | K48: 644.39079 | L48: 627.428172 | M48: 16.96261793 | N48: 16.56811477 | O48: 0.3945031604 | P48: 660.1417923 | Q48: 447.5032605 | R48: 655.1964134 | S48: 647.3633333 | T48: 621.7073077 | U48: 25.65602564 | V48: 22.99675142 | W48: 2.659274224 | X48: 666.47 | Y48: 94.70714286 | Z48: 637.9466071 | AA48: 659.9180181 | AB48: 437.1214681 | AC48: 643.5782764 | AD48: 16.96261793 | AE48: 16.56811477 | AF48: 0.3945031604 | AG48: 0.3945031604 | AH48: 0
A49: 17 | B49: =OFFSET(InputPriceData!B$15,CalculationsAndCharts!$A49+$A$11,0,1,1) -> 2012-08-30 | C49: =OFFSET(InputPriceData!G$15,CalculationsAndCharts!$A49+$A$11,0,1,1) -> 10810700 | D49: =OFFSET(InputPriceData!C$15,CalculationsAndCharts!$A49+$A$11,IF($C$7,7,0),1,1) -> 655.03 | E49: =OFFSET(InputPriceData!D$15,CalculationsAndCharts!$A49+$A$11,IF($C$7,7,0),1,1) -> 655.92 | F49: =OFFSET(InputPriceData!E$15,CalculationsAndCharts!$A49+$A$11,IF($C$7,7,0),1,1) -> 647.42 | G49: =OFFSET(InputPriceData!F$15,CalculationsAndCharts!$A49+$A$11,IF($C$7,7,0),1,1) -> 648.42 | J49: 648.42 | K49: 643.41457 | L49: 625.6416258 | M49: 17.77294416 | N49: 16.46948898 | O49: 1.303455181 | P49: 659.9180181 | Q49: 437.1214681 | R49: 643.5782764 | S49: 644.5625 | T49: 618.2203846 | U49: 26.34211538 | V49: 22.33193286 | W49: 4.010182524 | X49: 665.05 | Y49: 77.99714286 | Z49: 601.0675 | AA49: 659.8549751 | AB49: 425.62345 | AC49: 627.9953228 | AD49: 17.77294416 | AE49: 16.46948898 | AF49: 1.303455181 | AG49: 1.303455181 | AH49: 0
A50: 18 | B50: =OFFSET(InputPriceData!B$15,CalculationsAndCharts!$A50+$A$11,0,1,1) -> 2012-08-29 | C50: =OFFSET(InputPriceData!G$15,CalculationsAndCharts!$A50+$A$11,0,1,1) -> 7243100 | D50: =OFFSET(InputPriceData!C$15,CalculationsAndCharts!$A50+$A$11,IF($C$7,7,0),1,1) -> 659.54 | E50: =OFFSET(InputPriceData!D$15,CalculationsAndCharts!$A50+$A$11,IF($C$7,7,0),1,1) -> 661.9 | F50: =OFFSET(InputPriceData!E$15,CalculationsAndCharts!$A50+$A$11,IF($C$7,7,0),1,1) -> 656.95 | G50: =OFFSET(InputPriceData!F$15,CalculationsAndCharts!$A50+$A$11,IF($C$7,7,0),1,1) -> 657.8 | J50: 657.8 | K50: 642.5044918 | L50: 623.8193559 | M50: 18.6851359 | N50: 16.14362518 | O50: 2.541510723 | P50: 659.8549751 | Q50: 425.62345 | R50: 627.9953228 | S50: 641.9433333 | T50: 614.7884615 | U50: 27.15487179 | V50: 21.32938723 | W50: 5.825484565 | X50: 666.5328571 | Y50: 61.36714286 | Z50: 558.0244643 | AA50: 657.0158915 | AB50: 423.5684749 | AC50: 617.9754347 | AD50: 18.6851359 | AE50: 16.14362518 | AF50: 2.541510723 | AG50: 2.541510723 | AH50: 0
A51: 19 | B51: =OFFSET(InputPriceData!B$15,CalculationsAndCharts!$A51+$A$11,0,1,1) -> 2012-08-28 | C51: =OFFSET(InputPriceData!G$15,CalculationsAndCharts!$A51+$A$11,0,1,1) -> 9550600 | D51: =OFFSET(InputPriceData!C$15,CalculationsAndCharts!$A51+$A$11,IF($C$7,7,0),1,1) -> 659.28 | E51: =OFFSET(InputPriceData!D$15,CalculationsAndCharts!$A51+$A$11,IF($C$7,7,0),1,1) -> 660.37 | F51: =OFFSET(InputPriceData!E$15,CalculationsAndCharts!$A51+$A$11,IF($C$7,7,0),1,1) -> 655.07 | G51: =OFFSET(InputPriceData!F$15,CalculationsAndCharts!$A51+$A$11,IF($C$7,7,0),1,1) -> 659.1 | J51: 659.1 | K51: 639.7234903 | L51: 621.1009043 | M51: 18.62258594 | N51: 15.5082475 | O51: 3.114338438 | P51: 657.0158915 | Q51: 423.5684749 | R51: 617.9754347 | S51: 638.405 | T51: 611.9665385 | U51: 26.43846154 | V51: 19.87301609 | W51: 6.565445449 | X51: 641.8342857 | Y51: 52.63428571 | Z51: 513.5880357 | AA51: 653.0443209 | AB51: 425.6525834 | AC51: 610.2994289 | AD51: 18.62258594 | AE51: 15.5082475 | AF51: 3.114338438 | AG51: 3.114338438 | AH51: 0
A52: 20 | B52: =OFFSET(InputPriceData!B$15,CalculationsAndCharts!$A52+$A$11,0,1,1) -> 2012-08-27 | C52: =OFFSET(InputPriceData!G$15,CalculationsAndCharts!$A52+$A$11,0,1,1) -> 15250300 | D52: =OFFSET(InputPriceData!C$15,CalculationsAndCharts!$A52+$A$11,IF($C$7,7,0),1,1) -> 664.17 | E52: =OFFSET(InputPriceData!D$15,CalculationsAndCharts!$A52+$A$11,IF($C$7,7,0),1,1) -> 665.03 | F52: =OFFSET(InputPriceData!E$15,CalculationsAndCharts!$A52+$A$11,IF($C$7,7,0),1,1) -> 657.87 | G52: =OFFSET(InputPriceData!F$15,CalculationsAndCharts!$A52+$A$11,IF($C$7,7,0),1,1) -> 659.96 | J52: 659.96 | K52: 636.2004885 | L52: 618.0609767 | M52: 18.13951182 | N52: 14.72966289 | O52: 3.409848932 | P52: 653.0443209 | Q52: 425.6525834 | R52: 610.2994289 | S52: 634.0825 | T52: 609.2034615 | U52: 24.87903846 | V52: 18.23165473 | W52: 6.647383735 | X52: 624.3471429 | Y52: 69.9 | Z52: 492.6098214 | AA52: 647.8255625 | AB52: 432.5682625 | AC52: 606.528885 | AD52: 18.13951182 | AE52: 14.72966289 | AF52: 3.409848932 | AG52: 3.409848932 | AH52: 0
A53: 21 | B53: =OFFSET(InputPriceData!B$15,CalculationsAndCharts!$A53+$A$11,0,1,1) -> 2012-08-24 | C53: =OFFSET(InputPriceData!G$15,CalculationsAndCharts!$A53+$A$11,0,1,1) -> 15619300 | D53: =OFFSET(InputPriceData!C$15,CalculationsAndCharts!$A53+$A$11,IF($C$7,7,0),1,1) -> 644.17 | E53: =OFFSET(InputPriceData!D$15,CalculationsAndCharts!$A53+$A$11,IF($C$7,7,0),1,1) -> 653.9 | F53: =OFFSET(InputPriceData!E$15,CalculationsAndCharts!$A53+$A$11,IF($C$7,7,0),1,1) -> 640.3 | G53: =OFFSET(InputPriceData!F$15,CalculationsAndCharts!$A53+$A$11,IF($C$7,7,0),1,1) -> 647.79 | H53: =IF($A53=$E$25,H$32,NA()) ->  | J53: 647.79 | K53: 631.8805773 | L53: 614.7090548 | M53: 17.17152251 | N53: 13.87720066 | O53: 3.29432185 | P53: 647.8255625 | Q53: 432.5682625 | R53: 606.528885 | S53: 629.6091667 | T53: 606.4246154 | U53: 23.18455128 | V53: 16.56980879 | W53: 6.614742489 | X53: 622.1971429 | Y53: 105.5128571 | Z53: 491.5416071 | AA53: 644.7043754 | AB53: 432.5327 | AC53: 596.1691532 | AD53: 17.17152251 | AE53: 13.87720066 | AF53: 3.29432185 | AG53: 3.29432185 | AH53: 0
A54: 22 | B54: =OFFSET(InputPriceData!B$15,CalculationsAndCharts!$A54+$A$11,0,1,1) -> 2012-08-23 | C54: =OFFSET(InputPriceData!G$15,CalculationsAndCharts!$A54+$A$11,0,1,1) -> 15004600 | D54: =OFFSET(InputPriceData!C$15,CalculationsAndCharts!$A54+$A$11,IF($C$7,7,0),1,1) -> 650.61 | E54: =OFFSET(InputPriceData!D$15,CalculationsAndCharts!$A54+$A$11,IF($C$7,7,0),1,1) -> 654.31 | F54: =OFFSET(InputPriceData!E$15,CalculationsAndCharts!$A54+$A$11,IF($C$7,7,0),1,1) -> 645.76 | G54: =OFFSET(InputPriceData!F$15,CalculationsAndCharts!$A54+$A$11,IF($C$7,7,0),1,1) -> 647.21 | J54: 647.21 | K54: 628.987955 | L54: 612.0625792 | M54: 16.92537582 | N54: 13.05362019 | O54: 3.871755623 | P54: 644.7043754 | Q54: 432.5327 | R54: 596.1691532 | S54: 625.8641667 | T54: 604.4888462 | U54: 21.37532051 | V54: 14.91612317 | W54: 6.459197342 | X54: 607.47 | Y54: 131.1057143 | Z54: 479.1189286 | AA54: 640.9257784 | AB54: 435.0383246 | AC54: 586.5409722 | AD54: 16.92537582 | AE54: 13.05362019 | AF54: 3.871755623 | AG54: 3.871755623 | AH54: 0
A55: 23 | B55: =OFFSET(InputPriceData!B$15,CalculationsAndCharts!$A55+$A$11,0,1,1) -> 2012-08-22 | C55: =OFFSET(InputPriceData!G$15,CalculationsAndCharts!$A55+$A$11,0,1,1) -> 20190100 | D55: =OFFSET(InputPriceData!C$15,CalculationsAndCharts!$A55+$A$11,IF($C$7,7,0),1,1) -> 639.19 | E55: =OFFSET(InputPriceData!D$15,CalculationsAndCharts!$A55+$A$11,IF($C$7,7,0),1,1) -> 653.43 | F55: =OFFSET(InputPriceData!E$15,CalculationsAndCharts!$A55+$A$11,IF($C$7,7,0),1,1) -> 633.02 | G55: =OFFSET(InputPriceData!F$15,CalculationsAndCharts!$A55+$A$11,IF($C$7,7,0),1,1) -> 653.3 | J55: 653.3 | K55: 625.6748559 | L55: 609.2507855 | M55: 16.42407039 | N55: 12.08568129 | O55: 4.338389105 | P55: 640.9257784 | Q55: 435.0383246 | R55: 586.5409722 | S55: 622.2525 | T55: 602.2738462 | U55: 19.97865385 | V55: 13.30132384 | W55: 6.677330011 | X55: 616.0842857 | Y55: 170.8457143 | Z55: 476.9035714 | AA55: 634.511267 | AB55: 447.4125461 | AC55: 585.3189922 | AD55: 16.42407039 | AE55: 12.08568129 | AF55: 4.338389105 | AG55: 4.338389105 | AH55: 0
A56: 24 | B56: =OFFSET(InputPriceData!B$15,CalculationsAndCharts!$A56+$A$11,0,1,1) -> 2012-08-21 | C56: =OFFSET(InputPriceData!G$15,CalculationsAndCharts!$A56+$A$11,0,1,1) -> 29025700 | D56: =OFFSET(InputPriceData!C$15,CalculationsAndCharts!$A56+$A$11,IF($C$7,7,0),1,1) -> 655.21 | E56: =OFFSET(InputPriceData!D$15,CalculationsAndCharts!$A56+$A$11,IF($C$7,7,0),1,1) -> 659.17 | F56: =OFFSET(InputPriceData!E$15,CalculationsAndCharts!$A56+$A$11,IF($C$7,7,0),1,1) -> 635.19 | G56: =OFFSET(InputPriceData!F$15,CalculationsAndCharts!$A56+$A$11,IF($C$7,7,0),1,1) -> 640.79 | J56: 640.79 | K56: 620.6521025 | L56: 605.7268484 | M56: 14.92525408 | N56: 11.00108401 | O56: 3.924170071 | P56: 634.511267 | Q56: 447.4125461 | R56: 585.3189922 | S56: 618.2658333 | T56: 599.85 | U56: 18.41583333 | V56: 11.63199133 | W56: 6.783842001 | X56: 618.4714286 | Y56: 208.0614286 | Z56: 465.7942857 | AA56: 630.0546175 | AB56: 453.6912792 | AC56: 579.2996565 | AD56: 14.92525408 | AE56: 11.00108401 | AF56: 3.924170071 | AG56: 3.924170071 | AH56: 0
A57: 25 | B57: =OFFSET(InputPriceData!B$15,CalculationsAndCharts!$A57+$A$11,0,1,1) -> 2012-08-20 | C57: =OFFSET(InputPriceData!G$15,CalculationsAndCharts!$A57+$A$11,0,1,1) -> 21906600 | D57: =OFFSET(InputPriceData!C$15,CalculationsAndCharts!$A57+$A$11,IF($C$7,7,0),1,1) -> 634.88 | E57: =OFFSET(InputPriceData!D$15,CalculationsAndCharts!$A57+$A$11,IF($C$7,7,0),1,1) -> 649.67 | F57: =OFFSET(InputPriceData!E$15,CalculationsAndCharts!$A57+$A$11,IF($C$7,7,0),1,1) -> 634.77 | G57: =OFFSET(InputPriceData!F$15,CalculationsAndCharts!$A57+$A$11,IF($C$7,7,0),1,1) -> 649.67 | J57: 649.67 | K57: 616.9906666 | L57: 602.9217963 | M57: 14.0688703 | N57: 10.0200415 | O57: 4.048828803 | P57: 630.0546175 | Q57: 453.6912792 | R57: 579.2996565 | S57: 614.7666667 | T57: 597.9061538 | U57: 16.86051282 | V57: 9.936030832 | W57: 6.924481988 | X57: 606.1285714 | Y57: 230.38 | Z57: 434.4925 | AA57: 622.0683542 | AB57: 473.3066616 | AC57: 586.2262987 | AD57: 14.0688703 | AE57: 10.0200415 | AF57: 4.048828803 | AG57: 4.048828803 | AH57: 0
A58: 26 | B58: =OFFSET(InputPriceData!B$15,CalculationsAndCharts!$A58+$A$11,0,1,1) -> 2012-08-17 | C58: =OFFSET(InputPriceData!G$15,CalculationsAndCharts!$A58+$A$11,0,1,1) -> 15812900 | D58: =OFFSET(InputPriceData!C$15,CalculationsAndCharts!$A58+$A$11,IF($C$7,7,0),1,1) -> 625.11 | E58: =OFFSET(InputPriceData!D$15,CalculationsAndCharts!$A58+$A$11,IF($C$7,7,0),1,1) -> 633.11 | F58: =OFFSET(InputPriceData!E$15,CalculationsAndCharts!$A58+$A$11,IF($C$7,7,0),1,1) -> 623.95 | G58: =OFFSET(InputPriceData!F$15,CalculationsAndCharts!$A58+$A$11,IF($C$7,7,0),1,1) -> 633.03 | J58: 633.03 | K58: 611.0489696 | L58: 599.18194 | M58: 11.86702961 | N58: 9.007834294 | O58: 2.859195313 | P58: 622.0683542 | Q58: 473.3066616 | R58: 586.2262987 | S58: 609.8866667 | T58: 595.5484615 | U58: 14.33820513 | V58: 8.204910335 | W58: 6.133294793 | X58: 593.4585714 | Y58: 273.9214286 | Z58: 426.1725 | AA58: 616.8751475 | AB58: 484.2683074 | AC58: 588.2274306 | AD58: 11.86702961 | AE58: 9.007834294 | AF58: 2.859195313 | AG58: 2.859195313 | AH58: 0
A59: 27 | B59: =OFFSET(InputPriceData!B$15,CalculationsAndCharts!$A59+$A$11,0,1,1) -> 2012-08-16 | C59: =OFFSET(InputPriceData!G$15,CalculationsAndCharts!$A59+$A$11,0,1,1) -> 9090500 | D59: =OFFSET(InputPriceData!C$15,CalculationsAndCharts!$A59+$A$11,IF($C$7,7,0),1,1) -> 616.52 | E59: =OFFSET(InputPriceData!D$15,CalculationsAndCharts!$A59+$A$11,IF($C$7,7,0),1,1) -> 621.94 | F59: =OFFSET(InputPriceData!E$15,CalculationsAndCharts!$A59+$A$11,IF($C$7,7,0),1,1) -> 615.83 | G59: =OFFSET(InputPriceData!F$15,CalculationsAndCharts!$A59+$A$11,IF($C$7,7,0),1,1) -> 621.53 | H59: 708.3 | I59: 18.6851359 | J59: 621.53 | K59: 607.0524186 | L59: 596.4740951 | M59: 10.57832342 | N59: 8.293035466 | O59: 2.285287956 | P59: 616.8751475 | Q59: 484.2683074 | R59: 588.2274306 | S59: 606.3133333 | T59: 593.6034615 | U59: 12.70987179 | V59: 6.671586637 | W59: 6.038285158 | X59: 596.7414286 | Y59: 313.4928571 | Z59: 420.13875 | AA59: 613.6598887 | AB59: 488.92316 | AC59: 585.7203539 | AD59: 10.57832342 | AE59: 8.293035466 | AF59: 2.285287956 | AG59: 2.285287956 | AH59: 0
A60: 28 | B60: =OFFSET(InputPriceData!B$15,CalculationsAndCharts!$A60+$A$11,0,1,1) -> 2012-08-15 | C60: =OFFSET(InputPriceData!G$15,CalculationsAndCharts!$A60+$A$11,0,1,1) -> 9190800 | D60: =OFFSET(InputPriceData!C$15,CalculationsAndCharts!$A60+$A$11,IF($C$7,7,0),1,1) -> 616.61 | E60: =OFFSET(InputPriceData!D$15,CalculationsAndCharts!$A60+$A$11,IF($C$7,7,0),1,1) -> 619.25 | F60: =OFFSET(InputPriceData!E$15,CalculationsAndCharts!$A60+$A$11,IF($C$7,7,0),1,1) -> 613.14 | G60: =OFFSET(InputPriceData!F$15,CalculationsAndCharts!$A60+$A$11,IF($C$7,7,0),1,1) -> 616.15 | J60: 616.15 | K60: 604.420131 | L60: 594.4696228 | M60: 9.950508277 | N60: 7.721713477 | O60: 2.2287948 | P60: 613.6598887 | Q60: 488.92316 | R60: 585.7203539 | S60: 604.0191667 | T60: 592.3076923 | U60: 11.71147436 | V60: 5.162015348 | W60: 6.549459011 | X60: 599.28 | Y60: 338.2814286 | Z60: 403.9532143 | AA60: 611.1573601 | AB60: 491.4132712 | AC60: 581.2255815 | AD60: 9.950508277 | AE60: 7.721713477 | AF60: 2.2287948 | AG60: 2.2287948 | AH60: 0
A61: 29 | B61: =OFFSET(InputPriceData!B$15,CalculationsAndCharts!$A61+$A$11,0,1,1) -> 2012-08-14 | C61: =OFFSET(InputPriceData!G$15,CalculationsAndCharts!$A61+$A$11,0,1,1) -> 12148900 | D61: =OFFSET(InputPriceData!C$15,CalculationsAndCharts!$A61+$A$11,IF($C$7,7,0),1,1) -> 617.17 | E61: =OFFSET(InputPriceData!D$15,CalculationsAndCharts!$A61+$A$11,IF($C$7,7,0),1,1) -> 623.75 | F61: =OFFSET(InputPriceData!E$15,CalculationsAndCharts!$A61+$A$11,IF($C$7,7,0),1,1) -> 615.54 | G61: =OFFSET(InputPriceData!F$15,CalculationsAndCharts!$A61+$A$11,IF($C$7,7,0),1,1) -> 616.99 | J61: 616.99 | K61: 602.2874276 | L61: 592.7351926 | M61: 9.552235009 | N61: 7.164514777 | O61: 2.387720232 | P61: 611.1573601 | Q61: 491.4132712 | R61: 581.2255815 | S61: 600.8983333 | T61: 591.3603846 | U61: 9.537948718 | V61: 3.524650595 | W61: 6.013298123 | X61: 567.7114286 | Y61: 355.1514286 | Z61: 386.3478571 | AA61: 607.8036983 | AB61: 497.2459111 | AC61: 579.5752767 | AD61: 9.552235009 | AE61: 7.164514777 | AF61: 2.387720232 | AG61: 2.387720232 | AH61: 0
A62: 30 | B62: =OFFSET(InputPriceData!B$15,CalculationsAndCharts!$A62+$A$11,0,1,1) -> 2012-08-13 | C62: =OFFSET(InputPriceData!G$15,CalculationsAndCharts!$A62+$A$11,0,1,1) -> 9958300 | D62: =OFFSET(InputPriceData!C$15,CalculationsAndCharts!$A62+$A$11,IF($C$7,7,0),1,1) -> 608.88 | E62: =OFFSET(InputPriceData!D$15,CalculationsAndCharts!$A62+$A$11,IF($C$7,7,0),1,1) -> 615.34 | F62: =OFFSET(InputPriceData!E$15,CalculationsAndCharts!$A62+$A$11,IF($C$7,7,0),1,1) -> 608.75 | G62: =OFFSET(InputPriceData!F$15,CalculationsAndCharts!$A62+$A$11,IF($C$7,7,0),1,1) -> 615.34 | J62: 615.34 | K62: 599.6142326 | L62: 590.794808 | M62: 8.819424619 | N62: 6.567584719 | O62: 2.2518399 | P62: 607.8036983 | Q62: 497.2459111 | R62: 579.5752767 | S62: 596.9075 | T62: 590.5930769 | U62: 6.314423077 | V62: 2.021326064 | W62: 4.293097013 | X62: 545.1514286 | Y62: 404.43 | Z62: 409.3680357 | AA62: 604.1128253 | AB62: 504.7822128 | AC62: 580.054473 | AD62: 8.819424619 | AE62: 6.567584719 | AF62: 2.2518399 | AG62: 2.2518399 | AH62: 0
A63: 31 | B63: =OFFSET(InputPriceData!B$15,CalculationsAndCharts!$A63+$A$11,0,1,1) -> 2012-08-10 | C63: =OFFSET(InputPriceData!G$15,CalculationsAndCharts!$A63+$A$11,0,1,1) -> 6962100 | D63: =OFFSET(InputPriceData!C$15,CalculationsAndCharts!$A63+$A$11,IF($C$7,7,0),1,1) -> 604.31 | E63: =OFFSET(InputPriceData!D$15,CalculationsAndCharts!$A63+$A$11,IF($C$7,7,0),1,1) -> 607.29 | F63: =OFFSET(InputPriceData!E$15,CalculationsAndCharts!$A63+$A$11,IF($C$7,7,0),1,1) -> 604.3 | G63: =OFFSET(InputPriceData!F$15,CalculationsAndCharts!$A63+$A$11,IF($C$7,7,0),1,1) -> 607.23 | J63: 607.23 | K63: 596.7550022 | L63: 588.8311926 | M63: 7.923809545 | N63: 6.004624744 | O63: 1.9191848 | P63: 604.1128253 | Q63: 504.7822128 | R63: 580.054473 | S63: 592.2208333 | T63: 589.5896154 | U63: 2.631217949 | V63: 0.9480518108 | W63: 1.683166138 | X63: 533.2571429 | Y63: 474.6185714 | Z63: 465.8117857 | AA63: 601.8065427 | AB63: 507.8993875 | AC63: 577.1570596 | AD63: 7.923809545 | AE63: 6.004624744 | AF63: 1.9191848 | AG63: 1.9191848 | AH63: 0
A64: 32 | B64: =OFFSET(InputPriceData!B$15,CalculationsAndCharts!$A64+$A$11,0,1,1) -> 2012-08-09 | C64: =OFFSET(InputPriceData!G$15,CalculationsAndCharts!$A64+$A$11,0,1,1) -> 7915800 | D64: =OFFSET(InputPriceData!C$15,CalculationsAndCharts!$A64+$A$11,IF($C$7,7,0),1,1) -> 603.47 | E64: =OFFSET(InputPriceData!D$15,CalculationsAndCharts!$A64+$A$11,IF($C$7,7,0),1,1) -> 607.26 | F64: =OFFSET(InputPriceData!E$15,CalculationsAndCharts!$A64+$A$11,IF($C$7,7,0),1,1) -> 603.42 | G64: =OFFSET(InputPriceData!F$15,CalculationsAndCharts!$A64+$A$11,IF($C$7,7,0),1,1) -> 606.28 | J64: 606.28 | K64: 594.8504571 | L64: 587.359288 | M64: 7.491169075 | N64: 5.524828544 | O64: 1.966340531 | P64: 601.8065427 | Q64: 507.8993875 | R64: 577.1570596 | S64: 588.2175 | T64: 589.05 | U64: -0.8325 | V64: 0.5272602764 | W64: -1.359760276 | X64: 530.0385714 | Y64: 548.5914286 | Z64: 540.07875 | AA64: 599.2043195 | AB64: 512.3728448 | AC64: 575.4681462 | AD64: 7.491169075 | AE64: 5.524828544 | AF64: 1.966340531 | AG64: 1.966340531 | AH64: 0
A65: 33 | B65: =OFFSET(InputPriceData!B$15,CalculationsAndCharts!$A65+$A$11,0,1,1) -> 2012-08-08 | C65: =OFFSET(InputPriceData!G$15,CalculationsAndCharts!$A65+$A$11,0,1,1) -> 8739500 | D65: =OFFSET(InputPriceData!C$15,CalculationsAndCharts!$A65+$A$11,IF($C$7,7,0),1,1) -> 602.39 | E65: =OFFSET(InputPriceData!D$15,CalculationsAndCharts!$A65+$A$11,IF($C$7,7,0),1,1) -> 606.76 | F65: =OFFSET(InputPriceData!E$15,CalculationsAndCharts!$A65+$A$11,IF($C$7,7,0),1,1) -> 600.17 | G65: =OFFSET(InputPriceData!F$15,CalculationsAndCharts!$A65+$A$11,IF($C$7,7,0),1,1) -> 602.85 | J65: 602.85 | K65: 592.7723584 | L65: 585.8456311 | M65: 6.926727325 | N65: 5.033243412 | O65: 1.893483913 | P65: 599.2043195 | Q65: 512.3728448 | R65: 575.4681462 | S65: 586.3966667 | T65: 588.1530769 | U65: -1.756410256 | V65: 0.8672003454 | W65: -2.623610602 | X65: 585.69 | Y65: 624.8328571 | Z65: 627.9433929 | AA65: 596.9337827 | AB65: 516.0185253 | AC65: 573.1797833 | AD65: 6.926727325 | AE65: 5.033243412 | AF65: 1.893483913 | AG65: 1.893483913 | AH65: 0
A66: 34 | B66: =OFFSET(InputPriceData!B$15,CalculationsAndCharts!$A66+$A$11,0,1,1) -> 2012-08-07 | C66: =OFFSET(InputPriceData!G$15,CalculationsAndCharts!$A66+$A$11,0,1,1) -> 10373100 | D66: =OFFSET(InputPriceData!C$15,CalculationsAndCharts!$A66+$A$11,IF($C$7,7,0),1,1) -> 605.68 | E66: =OFFSET(InputPriceData!D$15,CalculationsAndCharts!$A66+$A$11,IF($C$7,7,0),1,1) -> 607.85 | F66: =OFFSET(InputPriceData!E$15,CalculationsAndCharts!$A66+$A$11,IF($C$7,7,0),1,1) -> 601.08 | G66: =OFFSET(InputPriceData!F$15,CalculationsAndCharts!$A66+$A$11,IF($C$7,7,0),1,1) -> 603.87 | J66: 603.87 | K66: 590.9400599 | L66: 584.4852816 | M66: 6.454778367 | N66: 4.559872433 | O66: 1.894905933 | P66: 596.9337827 | Q66: 516.0185253 | R66: 573.1797833 | S66: 585.0975 | T66: 587.1303846 | U66: -2.032884615 | V66: 1.523102996 | W66: -3.555987611 | X66: 596.6885714 | Y66: 641.9928571 | Z66: 661.9828571 | AA66: 593.8399153 | AB66: 522.9547426 | AC66: 574.1775008 | AD66: 6.454778367 | AE66: 4.559872433 | AF66: 1.894905933 | AG66: 1.894905933 | AH66: 0
A67: 35 | B67: =OFFSET(InputPriceData!B$15,CalculationsAndCharts!$A67+$A$11,0,1,1) -> 2012-08-06 | C67: =OFFSET(InputPriceData!G$15,CalculationsAndCharts!$A67+$A$11,0,1,1) -> 10789400 | D67: =OFFSET(InputPriceData!C$15,CalculationsAndCharts!$A67+$A$11,IF($C$7,7,0),1,1) -> 600.34 | E67: =OFFSET(InputPriceData!D$15,CalculationsAndCharts!$A67+$A$11,IF($C$7,7,0),1,1) -> 607.72 | F67: =OFFSET(InputPriceData!E$15,CalculationsAndCharts!$A67+$A$11,IF($C$7,7,0),1,1) -> 598.37 | G67: =OFFSET(InputPriceData!F$15,CalculationsAndCharts!$A67+$A$11,IF($C$7,7,0),1,1) -> 605.46 | J67: 605.46 | K67: 588.5891617 | L67: 582.9345041 | M67: 5.654657647 | N67: 4.08614595 | O67: 1.568511698 | P67: 593.8399153 | Q67: 522.9547426 | R67: 574.1775008 | S67: 583.7508333 | T67: 585.7496154 | U67: -1.998782051 | V67: 2.412099899 | W67: -4.41088195 | X67: 604.63 | Y67: 649.1742857 | Z67: 691.1042857 | AA67: 589.5974893 | AB67: 534.5748273 | AC67: 580.8819819 | AD67: 5.654657647 | AE67: 4.08614595 | AF67: 1.568511698 | AG67: 1.568511698 | AH67: 0
A68: 36 | B68: =OFFSET(InputPriceData!B$15,CalculationsAndCharts!$A68+$A$11,0,1,1) -> 2012-08-03 | C68: =OFFSET(InputPriceData!G$15,CalculationsAndCharts!$A68+$A$11,0,1,1) -> 12318600 | D68: =OFFSET(InputPriceData!C$15,CalculationsAndCharts!$A68+$A$11,IF($C$7,7,0),1,1) -> 596.79 | E68: =OFFSET(InputPriceData!D$15,CalculationsAndCharts!$A68+$A$11,IF($C$7,7,0),1,1) -> 601.02 | F68: =OFFSET(InputPriceData!E$15,CalculationsAndCharts!$A68+$A$11,IF($C$7,7,0),1,1) -> 594.77 | G68: =OFFSET(InputPriceData!F$15,CalculationsAndCharts!$A68+$A$11,IF($C$7,7,0),1,1) -> 598.8 | J68: 598.8 | K68: 585.5217366 | L68: 581.1324644 | M68: 4.389272182 | N68: 3.694018025 | O68: 0.6952541564 | P68: 589.5974893 | Q68: 534.5748273 | R68: 580.8819819 | S68: 583.0841667 | T68: 583.7484615 | U68: -0.6642948718 | V68: 3.514820386 | W68: -4.179115258 | X68: 635.2 | Y68: 650.0042857 | Z68: 719.9992857 | AA68: 586.2539204 | AB68: 543.777338 | AC68: 587.9056157 | AD68: 4.389272182 | AE68: 3.694018025 | AF68: 0.6952541564 | AG68: 0.6952541564 | AH68: 0
A69: 37 | B69: =OFFSET(InputPriceData!B$15,CalculationsAndCharts!$A69+$A$11,0,1,1) -> 2012-08-02 | C69: =OFFSET(InputPriceData!G$15,CalculationsAndCharts!$A69+$A$11,0,1,1) -> 11862800 | D69: =OFFSET(InputPriceData!C$15,CalculationsAndCharts!$A69+$A$11,IF($C$7,7,0),1,1) -> 586.3 | E69: =OFFSET(InputPriceData!D$15,CalculationsAndCharts!$A69+$A$11,IF($C$7,7,0),1,1) -> 593.93 | F69: =OFFSET(InputPriceData!E$15,CalculationsAndCharts!$A69+$A$11,IF($C$7,7,0),1,1) -> 583.78 | G69: =OFFSET(InputPriceData!F$15,CalculationsAndCharts!$A69+$A$11,IF($C$7,7,0),1,1) -> 591.11 | J69: 591.11 | K69: 583.1075069 | L69: 579.7190616 | M69: 3.388445319 | N69: 3.520204486 | O69: -0.131759167 | P69: 586.2539204 | Q69: 543.777338 | R69: 587.9056157 | S69: 582.3191667 | T69: 582.2073077 | U69: 0.1118589744 | V69: 4.559599201 | W69: -4.447740226 | X69: 616.0971429 | Y69: 613.6042857 | Z69: 715.6073214 | AA69: 584.2940354 | AB69: 548.6334176 | AC69: 593.1746191 | AD69: 3.388445319 | AE69: 3.520204486 | AF69: -0.131759167 | AG69: 0 | AH69: -0.131759167
A70: 38 | B70: =OFFSET(InputPriceData!B$15,CalculationsAndCharts!$A70+$A$11,0,1,1) -> 2012-08-01 | C70: =OFFSET(InputPriceData!G$15,CalculationsAndCharts!$A70+$A$11,0,1,1) -> 13732200 | D70: =OFFSET(InputPriceData!C$15,CalculationsAndCharts!$A70+$A$11,IF($C$7,7,0),1,1) -> 599 | E70: =OFFSET(InputPriceData!D$15,CalculationsAndCharts!$A70+$A$11,IF($C$7,7,0),1,1) -> 599.48 | F70: =OFFSET(InputPriceData!E$15,CalculationsAndCharts!$A70+$A$11,IF($C$7,7,0),1,1) -> 586.44 | G70: =OFFSET(InputPriceData!F$15,CalculationsAndCharts!$A70+$A$11,IF($C$7,7,0),1,1) -> 590.15 | J70: 590.15 | K70: 581.6525081 | L70: 578.8077865 | M70: 2.844721647 | N70: 3.553144278 | O70: -0.7084226314 | P70: 584.2940354 | Q70: 548.6334176 | R70: 593.1746191 | S70: 582.25 | T70: 580.8696154 | U70: 1.380384615 | V70: 5.671534257 | W70: -4.291149642 | X70: 619.38 | Y70: 588.6171429 | Z70: 724.3771429 | AA70: 582.1569598 | AB70: 554.4893822 | AC70: 601.2507296 | AD70: 2.844721647 | AE70: 3.553144278 | AF70: -0.7084226314 | AG70: 0 | AH70: -0.7084226314
A71: 39 | B71: =OFFSET(InputPriceData!B$15,CalculationsAndCharts!$A71+$A$11,0,1,1) -> 2012-07-31 | C71: =OFFSET(InputPriceData!G$15,CalculationsAndCharts!$A71+$A$11,0,1,1) -> 16511700 | D71: =OFFSET(InputPriceData!C$15,CalculationsAndCharts!$A71+$A$11,IF($C$7,7,0),1,1) -> 586.68 | E71: =OFFSET(InputPriceData!D$15,CalculationsAndCharts!$A71+$A$11,IF($C$7,7,0),1,1) -> 594.91 | F71: =OFFSET(InputPriceData!E$15,CalculationsAndCharts!$A71+$A$11,IF($C$7,7,0),1,1) -> 586.18 | G71: =OFFSET(InputPriceData!F$15,CalculationsAndCharts!$A71+$A$11,IF($C$7,7,0),1,1) -> 594 | J71: 594 | K71: 580.1075096 | L71: 577.9004094 | M71: 2.207100208 | N71: 3.730249936 | O71: -1.523149728 | P71: 582.1569598 | Q71: 554.4893822 | R71: 601.2507296 | S71: 582.2583333 | T71: 579.5215385 | U71: 2.736794872 | V71: 6.744321668 | W71: -4.007526796 | X71: 620.3785714 | Y71: 559.3871429 | Z71: 730.1157143 | AA71: 578.4815367 | AB71: 566.3324224 | AC71: 617.8672123 | AD71: 2.207100208 | AE71: 3.730249936 | AF71: -1.523149728 | AG71: 0 | AH71: -1.523149728
A72: 40 | B72: =OFFSET(InputPriceData!B$15,CalculationsAndCharts!$A72+$A$11,0,1,1) -> 2012-07-30 | C72: =OFFSET(InputPriceData!G$15,CalculationsAndCharts!$A72+$A$11,0,1,1) -> 13540800 | D72: =OFFSET(InputPriceData!C$15,CalculationsAndCharts!$A72+$A$11,IF($C$7,7,0),1,1) -> 574.7 | E72: =OFFSET(InputPriceData!D$15,CalculationsAndCharts!$A72+$A$11,IF($C$7,7,0),1,1) -> 582.99 | F72: =OFFSET(InputPriceData!E$15,CalculationsAndCharts!$A72+$A$11,IF($C$7,7,0),1,1) -> 571.69 | G72: =OFFSET(InputPriceData!F$15,CalculationsAndCharts!$A72+$A$11,IF($C$7,7,0),1,1) -> 578.7 | J72: 578.7 | K72: 577.5816023 | L72: 576.6124422 | M72: 0.9691601137 | N72: 4.111037368 | O72: -3.141877254 | P72: 578.4815367 | Q72: 566.3324224 | R72: 617.8672123 | S72: 581.7891667 | T72: 578.4492308 | U72: 3.339935897 | V72: 7.746203367 | W72: -4.406267469 | X72: 607.4414286 | Y72: 533.0085714 | Z72: 737.1726786 | AA72: 578.244447 | AB72: 566.5508857 | AC72: 627.9320945 | AD72: 0.9691601137 | AE72: 4.111037368 | AF72: -3.141877254 | AG72: 0 | AH72: -3.141877254
A73: 41 | B73: =OFFSET(InputPriceData!B$15,CalculationsAndCharts!$A73+$A$11,0,1,1) -> 2012-07-27 | C73: =OFFSET(InputPriceData!G$15,CalculationsAndCharts!$A73+$A$11,0,1,1) -> 14426300 | D73: =OFFSET(InputPriceData!C$15,CalculationsAndCharts!$A73+$A$11,IF($C$7,7,0),1,1) -> 559.23 | E73: =OFFSET(InputPriceData!D$15,CalculationsAndCharts!$A73+$A$11,IF($C$7,7,0),1,1) -> 569.75 | F73: =OFFSET(InputPriceData!E$15,CalculationsAndCharts!$A73+$A$11,IF($C$7,7,0),1,1) -> 555.9 | G73: =OFFSET(InputPriceData!F$15,CalculationsAndCharts!$A73+$A$11,IF($C$7,7,0),1,1) -> 569.1 | H73: =IF($A73=$E$25,H$32,NA()) ->  | J73: 569.1 | K73: 577.3782572 | L73: 576.4454375 | M73: 0.932819701 | N73: 4.896506682 | O73: -3.963686981 | P73: 578.244447 | Q73: 566.5508857 | R73: 627.9320945 | S73: 582.1025 | T73: 577.7996154 | U73: 4.302884615 | V73: 8.847770234 | W73: -4.544885619 | X73: 600.16 | Y73: 504.2671429 | Z73: 739.24125 | AA73: 580.6015514 | AB73: 557.4064387 | AC73: 631.2095594 | AD73: 0.932819701 | AE73: 4.896506682 | AF73: -3.963686981 | AG73: 0 | AH73: -3.963686981
A74: 42 | B74: =OFFSET(InputPriceData!B$15,CalculationsAndCharts!$A74+$A$11,0,1,1) -> 2012-07-26 | C74: =OFFSET(InputPriceData!G$15,CalculationsAndCharts!$A74+$A$11,0,1,1) -> 14522600 | D74: =OFFSET(InputPriceData!C$15,CalculationsAndCharts!$A74+$A$11,IF($C$7,7,0),1,1) -> 563.85 | E74: =OFFSET(InputPriceData!D$15,CalculationsAndCharts!$A74+$A$11,IF($C$7,7,0),1,1) -> 564.47 | F74: =OFFSET(InputPriceData!E$15,CalculationsAndCharts!$A74+$A$11,IF($C$7,7,0),1,1) -> 554.7 | G74: =OFFSET(InputPriceData!F$15,CalculationsAndCharts!$A74+$A$11,IF($C$7,7,0),1,1) -> 559.1 | J74: 559.1 | K74: 578.8833949 | L74: 577.0330725 | M74: 1.850322379 | N74: 5.887428427 | O74: -4.037106048 | P74: 580.6015514 | Q74: 557.4064387 | R74: 631.2095594 | S74: 583.6641667 | T74: 577.8211538 | U74: 5.843012821 | V74: 9.983991639 | W74: -4.140978818 | X74: 603.4228571 | Y74: 473.2071429 | Z74: 734.9396429 | AA74: 586.2064149 | AB74: 535.9048873 | AC74: 622.3600099 | AD74: 1.850322379 | AE74: 5.887428427 | AF74: -4.037106048 | AG74: 0 | AH74: -4.037106048
A75: 43 | B75: =OFFSET(InputPriceData!B$15,CalculationsAndCharts!$A75+$A$11,0,1,1) -> 2012-07-25 | C75: =OFFSET(InputPriceData!G$15,CalculationsAndCharts!$A75+$A$11,0,1,1) -> 31332600 | D75: =OFFSET(InputPriceData!C$15,CalculationsAndCharts!$A75+$A$11,IF($C$7,7,0),1,1) -> 558.69 | E75: =OFFSET(InputPriceData!D$15,CalculationsAndCharts!$A75+$A$11,IF($C$7,7,0),1,1) -> 564.86 | F75: =OFFSET(InputPriceData!E$15,CalculationsAndCharts!$A75+$A$11,IF($C$7,7,0),1,1) -> 554.36 | G75: =OFFSET(InputPriceData!F$15,CalculationsAndCharts!$A75+$A$11,IF($C$7,7,0),1,1) -> 559.19 | J75: 559.19 | K75: 582.4803758 | L75: 578.4677184 | M75: 4.012657471 | N75: 6.896704939 | O75: -2.884047468 | P75: 586.2064149 | Q75: 535.9048873 | R75: 622.3600099 | S75: 586.3658333 | T75: 578.29 | U75: 8.075833333 | V75: 11.01923634 | W75: -2.94340301 | X75: 608.86 | Y75: 428.8842857 | Z75: 707.3042857 | AA75: 592.941111 | AB75: 508.8884724 | AC75: 604.3819938 | AD75: 4.012657471 | AE75: 6.896704939 | AF75: -2.884047468 | AG75: 0 | AH75: -2.884047468
A76: 44 | B76: =OFFSET(InputPriceData!B$15,CalculationsAndCharts!$A76+$A$11,0,1,1) -> 2012-07-24 | C76: =OFFSET(InputPriceData!G$15,CalculationsAndCharts!$A76+$A$11,0,1,1) -> 20183300 | D76: =OFFSET(InputPriceData!C$15,CalculationsAndCharts!$A76+$A$11,IF($C$7,7,0),1,1) -> 590.71 | E76: =OFFSET(InputPriceData!D$15,CalculationsAndCharts!$A76+$A$11,IF($C$7,7,0),1,1) -> 592.95 | F76: =OFFSET(InputPriceData!E$15,CalculationsAndCharts!$A76+$A$11,IF($C$7,7,0),1,1) -> 582.09 | G76: =OFFSET(InputPriceData!F$15,CalculationsAndCharts!$A76+$A$11,IF($C$7,7,0),1,1) -> 584.43 | J76: 584.43 | K76: 586.7149896 | L76: 580.0099358 | M76: 6.705053789 | N76: 7.617716806 | O76: -0.912663017 | P76: 592.941111 | Q76: 508.8884724 | R76: 604.3819938 | S76: 589.52 | T76: 578.6942308 | U76: 10.82576923 | V76: 11.7550871 | W76: -0.9293178652 | X76: 620.4742857 | Y76: 379.2142857 | Z76: 664.4510714 | AA76: 594.0706887 | AB76: 500.3773614 | AC76: 598.7311035 | AD76: 6.705053789 | AE76: 7.617716806 | AF76: -0.912663017 | AG76: 0 | AH76: -0.912663017
A77: 45 | B77: =OFFSET(InputPriceData!B$15,CalculationsAndCharts!$A77+$A$11,0,1,1) -> 2012-07-23 | C77: =OFFSET(InputPriceData!G$15,CalculationsAndCharts!$A77+$A$11,0,1,1) -> 17427700 | D77: =OFFSET(InputPriceData!C$15,CalculationsAndCharts!$A77+$A$11,IF($C$7,7,0),1,1) -> 578.09 | E77: =OFFSET(InputPriceData!D$15,CalculationsAndCharts!$A77+$A$11,IF($C$7,7,0),1,1) -> 589.27 | F77: =OFFSET(InputPriceData!E$15,CalculationsAndCharts!$A77+$A$11,IF($C$7,7,0),1,1) -> 571.58 | G77: =OFFSET(InputPriceData!F$15,CalculationsAndCharts!$A77+$A$11,IF($C$7,7,0),1,1) -> 587.26 | J77: 587.26 | K77: 587.1304423 | L77: 579.6563307 | M77: 7.474111579 | N77: 7.84588256 | O77: -0.3717709806 | P77: 594.0706887 | Q77: 500.3773614 | R77: 598.7311035 | S77: 589.9216667 | T77: 577.6919231 | U77: 12.22974359 | V77: 11.98741656 | W77: 0.2423270275 | X77: 615.7185714 | Y77: 343.17 | Z77: 623.6169643 | AA77: 594.5901034 | AB77: 493.5666727 | AC77: 593.0855185 | AD77: 7.474111579 | AE77: 7.84588256 | AF77: -0.3717709806 | AG77: 0 | AH77: -0.3717709806
A78: 46 | B78: =OFFSET(InputPriceData!B$15,CalculationsAndCharts!$A78+$A$11,0,1,1) -> 2012-07-20 | C78: =OFFSET(InputPriceData!G$15,CalculationsAndCharts!$A78+$A$11,0,1,1) -> 14195400 | D78: =OFFSET(InputPriceData!C$15,CalculationsAndCharts!$A78+$A$11,IF($C$7,7,0),1,1) -> 596.2 | E78: =OFFSET(InputPriceData!D$15,CalculationsAndCharts!$A78+$A$11,IF($C$7,7,0),1,1) -> 597.57 | F78: =OFFSET(InputPriceData!E$15,CalculationsAndCharts!$A78+$A$11,IF($C$7,7,0),1,1) -> 587.13 | G78: =OFFSET(InputPriceData!F$15,CalculationsAndCharts!$A78+$A$11,IF($C$7,7,0),1,1) -> 587.71 | J78: 587.71 | K78: 587.1068863 | L78: 579.0480371 | M78: 8.058849173 | N78: 7.938825305 | O78: 0.1200238678 | P78: 594.5901034 | Q78: 493.5666727 | R78: 593.0855185 | S78: 590.4166667 | T78: 576.4834615 | U78: 13.93320513 | V78: 11.92683481 | W78: 2.006370323 | X78: 625.2228571 | Y78: 314.7114286 | Z78: 583.8646429 | AA78: 595.0220821 | AB78: 486.6865693 | AC78: 585.8292689 | AD78: 8.058849173 | AE78: 7.938825305 | AF78: 0.1200238678 | AG78: 0.1200238678 | AH78: 0
A79: 47 | B79: =OFFSET(InputPriceData!B$15,CalculationsAndCharts!$A79+$A$11,0,1,1) -> 2012-07-19 | C79: =OFFSET(InputPriceData!G$15,CalculationsAndCharts!$A79+$A$11,0,1,1) -> 15602200 | D79: =OFFSET(InputPriceData!C$15,CalculationsAndCharts!$A79+$A$11,IF($C$7,7,0),1,1) -> 594.5 | E79: =OFFSET(InputPriceData!D$15,CalculationsAndCharts!$A79+$A$11,IF($C$7,7,0),1,1) -> 598.46 | F79: =OFFSET(InputPriceData!E$15,CalculationsAndCharts!$A79+$A$11,IF($C$7,7,0),1,1) -> 589.37 | G79: =OFFSET(InputPriceData!F$15,CalculationsAndCharts!$A79+$A$11,IF($C$7,7,0),1,1) -> 597.46 | J79: 597.46 | K79: 586.9972293 | L79: 578.3550801 | M79: 8.642149168 | N79: 7.908819338 | O79: 0.7333298298 | P79: 595.0220821 | Q79: 486.6865693 | R79: 585.8292689 | S79: 590.0208333 | T79: 575.2815385 | U79: 14.73929487 | V79: 11.42524222 | W79: 3.314052647 | X79: 605.6742857 | Y79: 277.1985714 | Z79: 529.4533929 | AA79: 592.7725409 | AB79: 489.1244872 | AC79: 585.9689835 | AD79: 8.642149168 | AE79: 7.908819338 | AF79: 0.7333298298 | AG79: 0.7333298298 | AH79: 0
A80: 48 | B80: =OFFSET(InputPriceData!B$15,CalculationsAndCharts!$A80+$A$11,0,1,1) -> 2012-07-18 | C80: =OFFSET(InputPriceData!G$15,CalculationsAndCharts!$A80+$A$11,0,1,1) -> 9025000 | D80: =OFFSET(InputPriceData!C$15,CalculationsAndCharts!$A80+$A$11,IF($C$7,7,0),1,1) -> 589.94 | E80: =OFFSET(InputPriceData!D$15,CalculationsAndCharts!$A80+$A$11,IF($C$7,7,0),1,1) -> 591.64 | F80: =OFFSET(InputPriceData!E$15,CalculationsAndCharts!$A80+$A$11,IF($C$7,7,0),1,1) -> 586.99 | G80: =OFFSET(InputPriceData!F$15,CalculationsAndCharts!$A80+$A$11,IF($C$7,7,0),1,1) -> 589.62 | J80: 589.62 | K80: 585.0949073 | L80: 576.8266865 | M80: 8.26822081 | N80: 7.725486881 | O80: 0.5427339295 | P80: 592.7725409 | Q80: 489.1244872 | R80: 585.9689835 | S80: 588.2541667 | T80: 573.8542308 | U80: 14.3999359 | V80: 10.59672906 | W80: 3.803206835 | X80: 589.8971429 | Y80: 268.9842857 | Z80: 500.1192857 | AA80: 592.1361806 | AB80: 485.9719463 | AC80: 581.1155532 | AD80: 8.26822081 | AE80: 7.725486881 | AF80: 0.5427339295 | AG80: 0.5427339295 | AH80: 0
A81: 49 | B81: =OFFSET(InputPriceData!B$15,CalculationsAndCharts!$A81+$A$11,0,1,1) -> 2012-07-17 | C81: =OFFSET(InputPriceData!G$15,CalculationsAndCharts!$A81+$A$11,0,1,1) -> 10486600 | D81: =OFFSET(InputPriceData!C$15,CalculationsAndCharts!$A81+$A$11,IF($C$7,7,0),1,1) -> 594.02 | E81: =OFFSET(InputPriceData!D$15,CalculationsAndCharts!$A81+$A$11,IF($C$7,7,0),1,1) -> 594.71 | F81: =OFFSET(InputPriceData!E$15,CalculationsAndCharts!$A81+$A$11,IF($C$7,7,0),1,1) -> 586.59 | G81: =OFFSET(InputPriceData!F$15,CalculationsAndCharts!$A81+$A$11,IF($C$7,7,0),1,1) -> 590.28 | J81: 590.28 | K81: 584.2721632 | L81: 575.8032214 | M81: 8.468941767 | N81: 7.589803398 | O81: 0.8791383688 | P81: 592.1361806 | Q81: 485.9719463 | R81: 581.1155532 | S81: 586.45 | T81: 572.5415385 | U81: 13.90846154 | V81: 9.645927354 | W81: 4.262534184 | X81: 578.6671429 | Y81: 268.7071429 | Z81: 477.0798214 | AA81: 591.1049543 | AB81: 484.1157657 | AC81: 576.5042157 | AD81: 8.468941767 | AE81: 7.589803398 | AF81: 0.8791383688 | AG81: 0.8791383688 | AH81: 0
A82: 50 | B82: =OFFSET(InputPriceData!B$15,CalculationsAndCharts!$A82+$A$11,0,1,1) -> 2012-07-16 | C82: =OFFSET(InputPriceData!G$15,CalculationsAndCharts!$A82+$A$11,0,1,1) -> 10759300 | D82: =OFFSET(InputPriceData!C$15,CalculationsAndCharts!$A82+$A$11,IF($C$7,7,0),1,1) -> 588.51 | E82: =OFFSET(InputPriceData!D$15,CalculationsAndCharts!$A82+$A$11,IF($C$7,7,0),1,1) -> 594.83 | F82: =OFFSET(InputPriceData!E$15,CalculationsAndCharts!$A82+$A$11,IF($C$7,7,0),1,1) -> 588.41 | G82: =OFFSET(InputPriceData!F$15,CalculationsAndCharts!$A82+$A$11,IF($C$7,7,0),1,1) -> 590.25 | J82: 590.25 | K82: 583.1798293 | L82: 574.6450792 | M82: 8.53475009 | N82: 7.370018806 | O82: 1.164731284 | P82: 591.1049543 | Q82: 484.1157657 | R82: 576.5042157 | S82: 583.3791667 | T82: 571.5457692 | U82: 11.83339744 | V82: 8.580293808 | W82: 3.253103628 | X82: 544.0357143 | Y82: 280.32 | Z82: 465.91375 | AA82: 589.7850262 | AB82: 483.2608114 | AC82: 571.9990768 | AD82: 8.53475009 | AE82: 7.370018806 | AF82: 1.164731284 | AG82: 1.164731284 | AH82: 0
A83: 51 | B83: =OFFSET(InputPriceData!B$15,CalculationsAndCharts!$A83+$A$11,0,1,1) -> 2012-07-13 | C83: =OFFSET(InputPriceData!G$15,CalculationsAndCharts!$A83+$A$11,0,1,1) -> 11122400 | D83: =OFFSET(InputPriceData!C$15,CalculationsAndCharts!$A83+$A$11,IF($C$7,7,0),1,1) -> 586.41 | E83: =OFFSET(InputPriceData!D$15,CalculationsAndCharts!$A83+$A$11,IF($C$7,7,0),1,1) -> 590.53 | F83: =OFFSET(InputPriceData!E$15,CalculationsAndCharts!$A83+$A$11,IF($C$7,7,0),1,1) -> 583.54 | G83: =OFFSET(InputPriceData!F$15,CalculationsAndCharts!$A83+$A$11,IF($C$7,7,0),1,1) -> 588.37 | J83: 588.37 | K83: 581.8943437 | L83: 573.3966855 | M83: 8.497658166 | N83: 7.078835985 | O83: 1.418822181 | P83: 589.7850262 | Q83: 483.2608114 | R83: 571.9990768 | S83: 580.7525 | T83: 570.2296154 | U83: 10.52288462 | V83: 7.767017901 | W83: 2.755866714 | X83: 561.0442857 | Y83: 326.5342857 | Z83: 493.6 | AA83: 588.6266449 | AB83: 481.8457851 | AC83: 566.1375631 | AD83: 8.497658166 | AE83: 7.078835985 | AF83: 1.418822181 | AG83: 1.418822181 | AH83: 0
A84: 52 | B84: =OFFSET(InputPriceData!B$15,CalculationsAndCharts!$A84+$A$11,0,1,1) -> 2012-07-12 | C84: =OFFSET(InputPriceData!G$15,CalculationsAndCharts!$A84+$A$11,0,1,1) -> 15287200 | D84: =OFFSET(InputPriceData!C$15,CalculationsAndCharts!$A84+$A$11,IF($C$7,7,0),1,1) -> 583.76 | E84: =OFFSET(InputPriceData!D$15,CalculationsAndCharts!$A84+$A$11,IF($C$7,7,0),1,1) -> 586.9 | F84: =OFFSET(InputPriceData!E$15,CalculationsAndCharts!$A84+$A$11,IF($C$7,7,0),1,1) -> 576.41 | G84: =OFFSET(InputPriceData!F$15,CalculationsAndCharts!$A84+$A$11,IF($C$7,7,0),1,1) -> 582.46 | J84: 582.46 | K84: 580.7169516 | L84: 572.1988203 | M84: 8.518131265 | N84: 6.72413044 | O84: 1.794000825 | P84: 588.6266449 | Q84: 481.8457851 | R84: 566.1375631 | S84: 578.0825 | T84: 568.9761538 | U84: 9.106346154 | V84: 7.078051223 | W84: 2.028294931 | X84: 556.8014286 | Y84: 353.86 | Z84: 504.2078571 | AA84: 588.7777052 | AB84: 475.6791402 | AC84: 554.3486478 | AD84: 8.518131265 | AE84: 6.72413044 | AF84: 1.794000825 | AG84: 1.794000825 | AH84: 0
A85: 53 | B85: =OFFSET(InputPriceData!B$15,CalculationsAndCharts!$A85+$A$11,0,1,1) -> 2012-07-11 | C85: =OFFSET(InputPriceData!G$15,CalculationsAndCharts!$A85+$A$11,0,1,1) -> 16761500 | D85: =OFFSET(InputPriceData!C$15,CalculationsAndCharts!$A85+$A$11,IF($C$7,7,0),1,1) -> 589.48 | E85: =OFFSET(InputPriceData!D$15,CalculationsAndCharts!$A85+$A$11,IF($C$7,7,0),1,1) -> 590.98 | F85: =OFFSET(InputPriceData!E$15,CalculationsAndCharts!$A85+$A$11,IF($C$7,7,0),1,1) -> 580.83 | G85: =OFFSET(InputPriceData!F$15,CalculationsAndCharts!$A85+$A$11,IF($C$7,7,0),1,1) -> 587.84 | J85: 587.84 | K85: 580.4000337 | L85: 571.377926 | M85: 9.022107747 | N85: 6.275630233 | O85: 2.746477514 | P85: 588.7777052 | Q85: 475.6791402 | R85: 554.3486478 | S85: 575.8025 | T85: 567.6269231 | U85: 8.175576923 | V85: 6.57097749 | W85: 1.604599433 | X85: 561.7171429 | Y85: 379.5185714 | Z85: 515.1892857 | AA85: 587.3917828 | AB85: 474.741435 | AC85: 544.8036782 | AD85: 9.022107747 | AE85: 6.275630233 | AF85: 2.746477514 | AG85: 2.746477514 | AH85: 0
A86: 54 | B86: =OFFSET(InputPriceData!B$15,CalculationsAndCharts!$A86+$A$11,0,1,1) -> 2012-07-10 | C86: =OFFSET(InputPriceData!G$15,CalculationsAndCharts!$A86+$A$11,0,1,1) -> 18284200 | D86: =OFFSET(InputPriceData!C$15,CalculationsAndCharts!$A86+$A$11,IF($C$7,7,0),1,1) -> 601.01 | E86: =OFFSET(InputPriceData!D$15,CalculationsAndCharts!$A86+$A$11,IF($C$7,7,0),1,1) -> 602.86 | F86: =OFFSET(InputPriceData!E$15,CalculationsAndCharts!$A86+$A$11,IF($C$7,7,0),1,1) -> 588.7 | G86: =OFFSET(InputPriceData!F$15,CalculationsAndCharts!$A86+$A$11,IF($C$7,7,0),1,1) -> 591.52 | J86: 591.52 | K86: 579.0473126 | L86: 570.06096 | M86: 8.986352526 | N86: 5.589010855 | O86: 3.397341671 | P86: 587.3917828 | Q86: 474.741435 | R86: 544.8036782 | S86: 573.9925 | T86: 566.1253846 | U86: 7.867115385 | V86: 6.169827632 | W86: 1.697287753 | X86: 580.9657143 | Y86: 405.6414286 | Z86: 527.95625 | AA86: 584.6123431 | AB86: 478.8696523 | AC86: 538.2848693 | AD86: 8.986352526 | AE86: 5.589010855 | AF86: 3.397341671 | AG86: 3.397341671 | AH86: 0
A87: 55 | B87: =OFFSET(InputPriceData!B$15,CalculationsAndCharts!$A87+$A$11,0,1,1) -> 2012-07-09 | C87: =OFFSET(InputPriceData!G$15,CalculationsAndCharts!$A87+$A$11,0,1,1) -> 13550200 | D87: =OFFSET(InputPriceData!C$15,CalculationsAndCharts!$A87+$A$11,IF($C$7,7,0),1,1) -> 588.69 | E87: =OFFSET(InputPriceData!D$15,CalculationsAndCharts!$A87+$A$11,IF($C$7,7,0),1,1) -> 597.05 | F87: =OFFSET(InputPriceData!E$15,CalculationsAndCharts!$A87+$A$11,IF($C$7,7,0),1,1) -> 587.53 | G87: =OFFSET(InputPriceData!F$15,CalculationsAndCharts!$A87+$A$11,IF($C$7,7,0),1,1) -> 597.04 | J87: 597.04 | K87: 576.7795512 | L87: 568.3442368 | M87: 8.435314371 | N87: 4.739675437 | O87: 3.695638934 | P87: 584.6123431 | Q87: 478.8696523 | R87: 538.2848693 | S87: 571.5166667 | T87: 564.3588462 | U87: 7.157820513 | V87: 5.745505693 | W87: 1.412314819 | X87: 575.7128571 | Y87: 416.1957143 | Z87: 528.8792857 | AA87: 579.6397152 | AB87: 491.2973091 | AC87: 539.1306578 | AD87: 8.435314371 | AE87: 4.739675437 | AF87: 3.695638934 | AG87: 3.695638934 | AH87: 0
A88: 56 | B88: =OFFSET(InputPriceData!B$15,CalculationsAndCharts!$A88+$A$11,0,1,1) -> 2012-07-06 | C88: =OFFSET(InputPriceData!G$15,CalculationsAndCharts!$A88+$A$11,0,1,1) -> 14961800 | D88: =OFFSET(InputPriceData!C$15,CalculationsAndCharts!$A88+$A$11,IF($C$7,7,0),1,1) -> 590.43 | E88: =OFFSET(InputPriceData!D$15,CalculationsAndCharts!$A88+$A$11,IF($C$7,7,0),1,1) -> 591.74 | F88: =OFFSET(InputPriceData!E$15,CalculationsAndCharts!$A88+$A$11,IF($C$7,7,0),1,1) -> 585.07 | G88: =OFFSET(InputPriceData!F$15,CalculationsAndCharts!$A88+$A$11,IF($C$7,7,0),1,1) -> 589.25 | J88: 589.25 | K88: 573.0958332 | L88: 566.0485758 | M88: 7.047257462 | N88: 3.815765704 | O88: 3.231491759 | P88: 579.6397152 | Q88: 491.2973091 | R88: 539.1306578 | S88: 569.235 | T88: 563.0061538 | U88: 6.228846154 | V88: 5.392426989 | W88: 0.8364191653 | X88: 576.3371429 | Y88: 437.5228571 | Z88: 543.1767857 | AA88: 575.6988015 | AB88: 500.907594 | AC88: 538.6136782 | AD88: 7.047257462 | AE88: 3.815765704 | AF88: 3.231491759 | AG88: 3.231491759 | AH88: 0
A89: 57 | B89: =OFFSET(InputPriceData!B$15,CalculationsAndCharts!$A89+$A$11,0,1,1) -> 2012-07-05 | C89: =OFFSET(InputPriceData!G$15,CalculationsAndCharts!$A89+$A$11,0,1,1) -> 17299400 | D89: =OFFSET(InputPriceData!C$15,CalculationsAndCharts!$A89+$A$11,IF($C$7,7,0),1,1) -> 584.08 | E89: =OFFSET(InputPriceData!D$15,CalculationsAndCharts!$A89+$A$11,IF($C$7,7,0),1,1) -> 597.48 | F89: =OFFSET(InputPriceData!E$15,CalculationsAndCharts!$A89+$A$11,IF($C$7,7,0),1,1) -> 583.19 | G89: =OFFSET(InputPriceData!F$15,CalculationsAndCharts!$A89+$A$11,IF($C$7,7,0),1,1) -> 593.2 | J89: 593.2 | K89: 570.158712 | L89: 564.1924618 | M89: 5.966250172 | N89: 3.007892764 | O89: 2.958357408 | P89: 575.6988015 | Q89: 500.907594 | R89: 538.6136782 | S89: 567.7383333 | T89: 562.0069231 | U89: 5.731410256 | V89: 5.183322197 | W89: 0.5480880592 | X89: 578.1642857 | Y89: 450.4357143 | Z89: 557.8592857 | AA89: 569.7742345 | AB89: 518.4087925 | AC89: 546.843596 | AD89: 5.966250172 | AE89: 3.007892764 | AF89: 2.958357408 | AG89: 2.958357408 | AH89: 0
A90: 58 | B90: =OFFSET(InputPriceData!B$15,CalculationsAndCharts!$A90+$A$11,0,1,1) -> 2012-07-03 | C90: =OFFSET(InputPriceData!G$15,CalculationsAndCharts!$A90+$A$11,0,1,1) -> 8632600 | D90: =OFFSET(InputPriceData!C$15,CalculationsAndCharts!$A90+$A$11,IF($C$7,7,0),1,1) -> 578.55 | E90: =OFFSET(InputPriceData!D$15,CalculationsAndCharts!$A90+$A$11,IF($C$7,7,0),1,1) -> 583.53 | F90: =OFFSET(InputPriceData!E$15,CalculationsAndCharts!$A90+$A$11,IF($C$7,7,0),1,1) -> 577.7 | G90: =OFFSET(InputPriceData!F$15,CalculationsAndCharts!$A90+$A$11,IF($C$7,7,0),1,1) -> 582.96 | J90: 582.96 | K90: 565.9693869 | L90: 561.8718588 | M90: 4.097528137 | N90: 2.268303412 | O90: 1.829224725 | P90: 569.7742345 | Q90: 518.4087925 | R90: 546.843596 | S90: 565.78 | T90: 560.5976923 | U90: 5.182307692 | V90: 5.046300182 | W90: 0.1360075099 | X90: 580.9628571 | Y90: 465.4714286 | Z90: 580.5016071 | AA90: 565.3830347 | AB90: 531.594558 | AC90: 554.2967018 | AD90: 4.097528137 | AE90: 2.268303412 | AF90: 1.829224725 | AG90: 1.829224725 | AH90: 0
A91: 59 | B91: =OFFSET(InputPriceData!B$15,CalculationsAndCharts!$A91+$A$11,0,1,1) -> 2012-07-02 | C91: =OFFSET(InputPriceData!G$15,CalculationsAndCharts!$A91+$A$11,0,1,1) -> 14289000 | D91: =OFFSET(InputPriceData!C$15,CalculationsAndCharts!$A91+$A$11,IF($C$7,7,0),1,1) -> 568.68 | E91: =OFFSET(InputPriceData!D$15,CalculationsAndCharts!$A91+$A$11,IF($C$7,7,0),1,1) -> 577.18 | F91: =OFFSET(InputPriceData!E$15,CalculationsAndCharts!$A91+$A$11,IF($C$7,7,0),1,1) -> 567.58 | G91: =OFFSET(InputPriceData!F$15,CalculationsAndCharts!$A91+$A$11,IF($C$7,7,0),1,1) -> 576.26 | J91: 576.26 | K91: 562.8801846 | L91: 560.1848075 | M91: 2.695377058 | N91: 1.81099723 | O91: 0.8843798274 | P91: 565.3830347 | Q91: 531.594558 | R91: 554.2967018 | S91: 563.7308333 | T91: 559.2092308 | U91: 4.521602564 | V91: 5.012298305 | W91: -0.4906957409 | X91: 568.2357143 | Y91: 467.4685714 | Z91: 592.9878571 | AA91: 561.8855682 | AB91: 542.4715233 | AC91: 562.402084 | AD91: 2.695377058 | AE91: 1.81099723 | AF91: 0.8843798274 | AG91: 0.8843798274 | AH91: 0
A92: 60 | B92: =OFFSET(InputPriceData!B$15,CalculationsAndCharts!$A92+$A$11,0,1,1) -> 2012-06-29 | C92: =OFFSET(InputPriceData!G$15,CalculationsAndCharts!$A92+$A$11,0,1,1) -> 15053600 | D92: =OFFSET(InputPriceData!C$15,CalculationsAndCharts!$A92+$A$11,IF($C$7,7,0),1,1) -> 562.13 | E92: =OFFSET(InputPriceData!D$15,CalculationsAndCharts!$A92+$A$11,IF($C$7,7,0),1,1) -> 567.97 | F92: =OFFSET(InputPriceData!E$15,CalculationsAndCharts!$A92+$A$11,IF($C$7,7,0),1,1) -> 558.49 | G92: =OFFSET(InputPriceData!F$15,CalculationsAndCharts!$A92+$A$11,IF($C$7,7,0),1,1) -> 567.97 | J92: 567.97 | K92: 560.4474908 | L92: 558.8987921 | M92: 1.548698741 | N92: 1.589902274 | O92: -0.04120353236 | P92: 561.8855682 | Q92: 542.4715233 | R92: 562.402084 | S92: 562.0291667 | T92: 558.1915385 | U92: 3.837628205 | V92: 5.13497224 | W92: -1.297344035 | X92: 561.0171429 | Y92: 475.4928571 | Z92: 612.5441071 | AA92: 559.9216665 | AB92: 548.5559551 | AC92: 568.6156446 | AD92: 1.548698741 | AE92: 1.589902274 | AF92: -0.04120353236 | AG92: 0 | AH92: -0.04120353236
A93: 61 | B93: =OFFSET(InputPriceData!B$15,CalculationsAndCharts!$A93+$A$11,0,1,1) -> 2012-06-28 | C93: =OFFSET(InputPriceData!G$15,CalculationsAndCharts!$A93+$A$11,0,1,1) -> 10101300 | D93: =OFFSET(InputPriceData!C$15,CalculationsAndCharts!$A93+$A$11,IF($C$7,7,0),1,1) -> 555.98 | E93: =OFFSET(InputPriceData!D$15,CalculationsAndCharts!$A93+$A$11,IF($C$7,7,0),1,1) -> 558.24 | F93: =OFFSET(InputPriceData!E$15,CalculationsAndCharts!$A93+$A$11,IF($C$7,7,0),1,1) -> 550.08 | G93: =OFFSET(InputPriceData!F$15,CalculationsAndCharts!$A93+$A$11,IF($C$7,7,0),1,1) -> 553.43 | H93: =IF($A93=$E$25,H$32,NA()) ->  | J93: 553.43 | K93: 559.0797619 | L93: 558.1730955 | M93: 0.9066664354 | N93: 1.600203157 | O93: -0.6935367213 | P93: 559.9216665 | Q93: 548.5559551 | R93: 568.6156446 | S93: 561.07 | T93: 557.6888462 | U93: 3.381153846 | V93: 5.459308249 | W93: -2.078154403 | X93: 557.7971429 | Y93: 482.4457143 | Z93: 630.9589286 | AA93: 561.5504076 | AB93: 542.0642886 | AC93: 564.2974727 | AD93: 0.9066664354 | AE93: 1.600203157 | AF93: -0.6935367213 | AG93: 0 | AH93: -0.6935367213
A94: 62 | B94: =OFFSET(InputPriceData!B$15,CalculationsAndCharts!$A94+$A$11,0,1,1) -> 2012-06-27 | C94: =OFFSET(InputPriceData!G$15,CalculationsAndCharts!$A94+$A$11,0,1,1) -> 7249900 | D94: =OFFSET(InputPriceData!C$15,CalculationsAndCharts!$A94+$A$11,IF($C$7,7,0),1,1) -> 559.22 | E94: =OFFSET(InputPriceData!D$15,CalculationsAndCharts!$A94+$A$11,IF($C$7,7,0),1,1) -> 560.91 | F94: =OFFSET(InputPriceData!E$15,CalculationsAndCharts!$A94+$A$11,IF($C$7,7,0),1,1) -> 556.22 | G94: =OFFSET(InputPriceData!F$15,CalculationsAndCharts!$A94+$A$11,IF($C$7,7,0),1,1) -> 558.73 | J94: 558.73 | K94: 560.1069913 | L94: 558.5525431 | M94: 1.554448235 | N94: 1.773587337 | O94: -0.2191391019 | P94: 561.5504076 | Q94: 542.0642886 | R94: 564.2974727 | S94: 561.6466667 | T94: 557.2369231 | U94: 4.40974359 | V94: 5.97884685 | W94: -1.56910326 | X94: 576.3528571 | Y94: 478.0785714 | Z94: 635.5160714 | AA94: 562.0464312 | AB94: 539.2438811 | AC94: 562.1638315 | AD94: 1.554448235 | AE94: 1.773587337 | AF94: -0.2191391019 | AG94: 0 | AH94: -0.2191391019
A95: 63 | B95: =OFFSET(InputPriceData!B$15,CalculationsAndCharts!$A95+$A$11,0,1,1) -> 2012-06-26 | C95: =OFFSET(InputPriceData!G$15,CalculationsAndCharts!$A95+$A$11,0,1,1) -> 9876300 | D95: =OFFSET(InputPriceData!C$15,CalculationsAndCharts!$A95+$A$11,IF($C$7,7,0),1,1) -> 555.65 | E95: =OFFSET(InputPriceData!D$15,CalculationsAndCharts!$A95+$A$11,IF($C$7,7,0),1,1) -> 558.72 | F95: =OFFSET(InputPriceData!E$15,CalculationsAndCharts!$A95+$A$11,IF($C$7,7,0),1,1) -> 551.76 | G95: =OFFSET(InputPriceData!F$15,CalculationsAndCharts!$A95+$A$11,IF($C$7,7,0),1,1) -> 556.33 | J95: 556.33 | K95: 560.3573534 | L95: 558.5383466 | M95: 1.819006849 | N95: 1.828372112 | O95: -0.009365263647 | P95: 562.0464312 | Q95: 539.2438811 | R95: 562.1638315 | S95: 561.3766667 | T95: 556.7423077 | U95: 4.634358974 | V95: 6.371122665 | W95: -1.73676369 | X95: 563.7357143 | Y95: 460.4557143 | Z95: 623.7244643 | AA95: 563.2945714 | AB95: 533.5274499 | AC95: 556.4767503 | AD95: 1.819006849 | AE95: 1.828372112 | AF95: -0.009365263647 | AG95: 0 | AH95: -0.009365263647
A96: 64 | B96: =OFFSET(InputPriceData!B$15,CalculationsAndCharts!$A96+$A$11,0,1,1) -> 2012-06-25 | C96: =OFFSET(InputPriceData!G$15,CalculationsAndCharts!$A96+$A$11,0,1,1) -> 10870800 | D96: =OFFSET(InputPriceData!C$15,CalculationsAndCharts!$A96+$A$11,IF($C$7,7,0),1,1) -> 561.45 | E96: =OFFSET(InputPriceData!D$15,CalculationsAndCharts!$A96+$A$11,IF($C$7,7,0),1,1) -> 563.88 | F96: =OFFSET(InputPriceData!E$15,CalculationsAndCharts!$A96+$A$11,IF($C$7,7,0),1,1) -> 554.71 | G96: =OFFSET(InputPriceData!F$15,CalculationsAndCharts!$A96+$A$11,IF($C$7,7,0),1,1) -> 555.1 | J96: =INDEX(D96:G96,$K$8) -> 555.1 | K96: 561.0895995 | L96: 558.7150143 | M96: 2.374585198 | N96: 1.830713428 | O96: 0.5438717695 | P96: 563.2945714 | Q96: 533.5274499 | R96: 556.4767503 | S96: 562.0483333 | T96: 555.1842308 | U96: 6.864102564 | V96: 6.805313587 | W96: 0.05878897696 | X96: 606.0214286 | Y96: 453.05 | Z96: 623.1771429 | AA96: 565.1262767 | AB96: 525.3328784 | AC96: 546.5777236 | AD96: 2.374585198 | AE96: 1.830713428 | AF96: 0.5438717695 | AG96: 0.5438717695 | AH96: 0
A97: 65 | B97: =OFFSET(InputPriceData!B$15,CalculationsAndCharts!$A97+$A$11,0,1,1) -> 2012-06-22 | C97: =OFFSET(InputPriceData!G$15,CalculationsAndCharts!$A97+$A$11,0,1,1) -> 10159700 | D97: =OFFSET(InputPriceData!C$15,CalculationsAndCharts!$A97+$A$11,IF($C$7,7,0),1,1) -> 563.14 | E97: =OFFSET(InputPriceData!D$15,CalculationsAndCharts!$A97+$A$11,IF($C$7,7,0),1,1) -> 566.21 | F97: =OFFSET(InputPriceData!E$15,CalculationsAndCharts!$A97+$A$11,IF($C$7,7,0),1,1) -> 559.62 | G97: =OFFSET(InputPriceData!F$15,CalculationsAndCharts!$A97+$A$11,IF($C$7,7,0),1,1) -> 566.12 | J97: 566.12 | K97: 562.1786176 | L97: 559.0042154 | M97: 3.174402142 | N97: 1.694745486 | O97: 1.479656656 | P97: =(K97*$C$17-L97*$C$18)/($C$17-$C$18) -> 565.1262767 | Q97: =(0+L97*$D$18-K97*$D$17)/($C$17-$C$18) -> 525.3328784 | R97: =(N97-K97*$D$17+L97*$D$18)/($C$17-$C$18) -> 546.5777236 | S97: 562.1258333 | T97: 553.6638462 | U97: 8.461987179 | V97: 6.790616343 | W97: 1.671370837 | X97: =($A$17*OFFSET(J97,$A$18-1,0,1,1)-$A$18*OFFSET(J97,$A$17-1,0,1,1))/($A$17-$A$18) -> 590.71 | Y97: =($F$17*U97+$A$17*OFFSET(J97,$A$18-1,0,1,1)-$A$18*OFFSET(J97,$A$17-1,0,1,1))/($A$17-$A$18) -> 402.1285714 | Z97: =(U97*($F$20-$F$17)-$F$20*AVERAGE(OFFSET(U97,0,0,$A$19,1))-OFFSET(J97,$A$17-1,0,1,1)*($F$19-$A$18)+OFFSET(J97,$A$18-1,0,1,1)*($F$18-$A$17)+$F$17*OFFSET(U97,$A$19-1,0,1,1))/($F$18-$F$19-$A$17+$A$18) -> 573.4180357 | AA97: =IF($K$12=1,IF($K$16=1,P98,P97),IF($K$16=1,X98,X97)) -> 564.2728346 | AB97: =IF($K$12=1,IF($K$16=1,Q98,Q97),IF($K$16=1,Y98,Y97)) -> 526.3266017 | AC97: =IF($K$12=1,IF($K$16=1,R98,R97),IF($K$16=1,Z98,Z97)) -> 542.9343086 | AD97: =IF($K$12=1,M97,U97) -> 3.174402142 | AE97: =IF($K$12=1,N97,V97) -> 1.694745486 | AF97: =IF($K$12=1,O97,W97) -> 1.479656656 | AG97: =IF(AF97>0,AF97,0) -> 1.479656656 | AH97: =IF(AF97>0,0,AF97) -> 0
A98: 66 | B98: =OFFSET(InputPriceData!B$15,CalculationsAndCharts!$A98+$A$11,0,1,1) -> 2012-06-21 | C98: =OFFSET(InputPriceData!G$15,CalculationsAndCharts!$A98+$A$11,0,1,1) -> 11655400 | D98: =OFFSET(InputPriceData!C$15,CalculationsAndCharts!$A98+$A$11,IF($C$7,7,0),1,1) -> 569.37 | E98: =OFFSET(InputPriceData!D$15,CalculationsAndCharts!$A98+$A$11,IF($C$7,7,0),1,1) -> 572.07 | F98: =OFFSET(InputPriceData!E$15,CalculationsAndCharts!$A98+$A$11,IF($C$7,7,0),1,1) -> 561.59 | G98: =OFFSET(InputPriceData!F$15,CalculationsAndCharts!$A98+$A$11,IF($C$7,7,0),1,1) -> 561.81 | J98: 561.81 | K98: =$C$17*$J98+$D$17*K99 -> 561.4620026 | L98: =$C$18*$J98+$D$18*L99 -> 558.4349527 | M98: =K98-L98 -> 3.02704992 | N98: =$C$19*$M98+$D$19*N99 -> 1.324831322 | O98: =M98-N98 -> 1.702218599 | P98: 564.2728346 | Q98: 526.3266017 | R98: 542.9343086 | S98: =AVERAGE(OFFSET($J98,0,0,$A$17,1)) -> 561.2641667 | T98: =AVERAGE(OFFSET($J98,0,0,$A$18,1)) -> 552.3165385 | U98: =S98-T98 -> 8.947628205 | V98: =$C$19*U98+$D$19*V99 -> 6.372773634 | W98: =U98-V98 -> 2.574854571 | X98: 576.9428571 | Y98: 377.5385714 | Z98: 543.5901786 | AA98: 564.4015274 | AB98: 523.8637671 | AC98: 535.1368425 | AD98: 3.02704992 | AE98: 1.324831322 | AF98: 1.702218599 | AG98: 1.702218599 | AH98: 0
A99: 67 | B99: =OFFSET(InputPriceData!B$15,CalculationsAndCharts!$A99+$A$11,0,1,1) -> 2012-06-20 | C99: =OFFSET(InputPriceData!G$15,CalculationsAndCharts!$A99+$A$11,0,1,1) -> 12819400 | D99: =OFFSET(InputPriceData!C$15,CalculationsAndCharts!$A99+$A$11,IF($C$7,7,0),1,1) -> 572.06 | E99: =OFFSET(InputPriceData!D$15,CalculationsAndCharts!$A99+$A$11,IF($C$7,7,0),1,1) -> 573.07 | F99: =OFFSET(InputPriceData!E$15,CalculationsAndCharts!$A99+$A$11,IF($C$7,7,0),1,1) -> 564.86 | G99: =OFFSET(InputPriceData!F$15,CalculationsAndCharts!$A99+$A$11,IF($C$7,7,0),1,1) -> 569.66 | J99: 569.66 | K99: 561.3987303 | L99: 558.1649489 | M99: 3.233781449 | N99: 0.8992766722 | O99: 2.334504777 | P99: 564.4015274 | Q99: 523.8637671 | R99: 535.1368425 | S99: 560.0616667 | T99: 551.4003846 | U99: 8.661282051 | V99: 5.729059991 | W99: 2.93222206 | X99: 555.4285714 | Y99: 362.4057143 | Z99: 520.5542857 | AA99: 562.3586366 | AB99: 529.1222397 | AC99: 533.0791439 | AD99: 3.233781449 | AE99: 0.8992766722 | AF99: 2.334504777 | AG99: 2.334504777 | AH99: 0
A100: 68 | B100: =OFFSET(InputPriceData!B$15,CalculationsAndCharts!$A100+$A$11,0,1,1) -> 2012-06-19 | C100: =OFFSET(InputPriceData!G$15,CalculationsAndCharts!$A100+$A$11,0,1,1) -> 12907300 | D100: =OFFSET(InputPriceData!C$15,CalculationsAndCharts!$A100+$A$11,IF($C$7,7,0),1,1) -> 567.39 | E100: =OFFSET(InputPriceData!D$15,CalculationsAndCharts!$A100+$A$11,IF($C$7,7,0),1,1) -> 573.81 | F100: =OFFSET(InputPriceData!E$15,CalculationsAndCharts!$A100+$A$11,IF($C$7,7,0),1,1) -> 567.1 | G100: =OFFSET(InputPriceData!F$15,CalculationsAndCharts!$A100+$A$11,IF($C$7,7,0),1,1) -> 571.29 | J100: 571.29 | K100: 559.8966813 | L100: 557.2453448 | M100: 2.651336507 | N100: 0.3156504779 | O100: 2.335686029 | P100: 562.3586366 | Q100: 529.1222397 | R100: 533.0791439 | S100: 558.3233333 | T100: 550.3711538 | U100: 7.952179487 | V100: 4.996004476 | W100: 2.956175011 | X100: 553.8571429 | Y100: 376.6371429 | Z100: 526.4333929 | AA100: 559.406894 | AB100: 538.0536031 | AC100: 534.6906341 | AD100: 2.651336507 | AE100: 0.3156504779 | AF100: 2.335686029 | AG100: 2.335686029 | AH100: 0
A101: 69 | B101: =OFFSET(InputPriceData!B$15,CalculationsAndCharts!$A101+$A$11,0,1,1) -> 2012-06-18 | C101: =OFFSET(InputPriceData!G$15,CalculationsAndCharts!$A101+$A$11,0,1,1) -> 15729000 | D101: =OFFSET(InputPriceData!C$15,CalculationsAndCharts!$A101+$A$11,IF($C$7,7,0),1,1) -> 555.29 | E101: =OFFSET(InputPriceData!D$15,CalculationsAndCharts!$A101+$A$11,IF($C$7,7,0),1,1) -> 571.75 | F101: =OFFSET(InputPriceData!E$15,CalculationsAndCharts!$A101+$A$11,IF($C$7,7,0),1,1) -> 554.71 | G101: =OFFSET(InputPriceData!F$15,CalculationsAndCharts!$A101+$A$11,IF($C$7,7,0),1,1) -> 569.7 | J101: 569.7 | K101: 557.8251688 | L101: 556.1217724 | M101: 1.703396431 | N101: -0.2682710292 | O101: 1.97166746 | P101: 559.406894 | Q101: 538.0536031 | R101: 534.6906341 | S101: 556.1816667 | T101: 549.5969231 | U101: 6.58474359 | V101: 4.256960723 | W101: 2.327782867 | X101: 540.8157143 | Y101: 394.07 | Z101: 531.6269643 | AA101: 556.2516605 | AB101: 548.346709 | AC101: 538.8046751 | AD101: 1.703396431 | AE101: -0.2682710292 | AF101: 1.97166746 | AG101: 1.97166746 | AH101: 0
A102: 70 | B102: =OFFSET(InputPriceData!B$15,CalculationsAndCharts!$A102+$A$11,0,1,1) -> 2012-06-15 | C102: =OFFSET(InputPriceData!G$15,CalculationsAndCharts!$A102+$A$11,0,1,1) -> 11973400 | D102: =OFFSET(InputPriceData!C$15,CalculationsAndCharts!$A102+$A$11,IF($C$7,7,0),1,1) -> 555.33 | E102: =OFFSET(InputPriceData!D$15,CalculationsAndCharts!$A102+$A$11,IF($C$7,7,0),1,1) -> 558.85 | F102: =OFFSET(InputPriceData!E$15,CalculationsAndCharts!$A102+$A$11,IF($C$7,7,0),1,1) -> 553.92 | G102: =OFFSET(InputPriceData!F$15,CalculationsAndCharts!$A102+$A$11,IF($C$7,7,0),1,1) -> 558.37 | J102: 558.37 | K102: 555.6661086 | L102: 555.0355141 | M102: 0.6305944221 | N102: -0.7611878942 | O102: 1.391782316 | P102: 556.2516605 | Q102: 548.346709 | R102: 538.8046751 | S102: 555.5291667 | T102: 549.0261538 | U102: 6.503012821 | V102: 3.675015006 | W102: 2.827997814 | X102: 567.8785714 | Y102: 422.9542857 | Z102: 548.6383929 | AA102: 555.5512474 | AB102: 550.4650485 | AC102: 536.5612682 | AD102: 0.6305944221 | AE102: -0.7611878942 | AF102: 1.391782316 | AG102: 1.391782316 | AH102: 0
A103: 71 | B103: =OFFSET(InputPriceData!B$15,CalculationsAndCharts!$A103+$A$11,0,1,1) -> 2012-06-14 | C103: =OFFSET(InputPriceData!G$15,CalculationsAndCharts!$A103+$A$11,0,1,1) -> 12341900 | D103: =OFFSET(InputPriceData!C$15,CalculationsAndCharts!$A103+$A$11,IF($C$7,7,0),1,1) -> 555.56 | E103: =OFFSET(InputPriceData!D$15,CalculationsAndCharts!$A103+$A$11,IF($C$7,7,0),1,1) -> 557.76 | F103: =OFFSET(InputPriceData!E$15,CalculationsAndCharts!$A103+$A$11,IF($C$7,7,0),1,1) -> 551.69 | G103: =OFFSET(InputPriceData!F$15,CalculationsAndCharts!$A103+$A$11,IF($C$7,7,0),1,1) -> 555.84 | J103: 555.84 | K103: 555.1744919 | L103: 554.7687553 | M103: 0.4057366669 | N103: -1.109133473 | O103: 1.51487014 | P103: 555.5512474 | Q103: 550.4650485 | R103: 536.5612682 | S103: 555.9375 | T103: 548.8411538 | U103: 7.096346154 | V103: 2.968015553 | W103: 4.128330601 | X103: 571.5928571 | Y103: 413.4457143 | Z103: 516.9042857 | AA103: 555.3974656 | AB103: 550.7538011 | AC103: 532.1025259 | AD103: 0.4057366669 | AE103: -1.109133473 | AF103: 1.51487014 | AG103: 1.51487014 | AH103: 0
A104: 72 | B104: =OFFSET(InputPriceData!B$15,CalculationsAndCharts!$A104+$A$11,0,1,1) -> 2012-06-13 | C104: =OFFSET(InputPriceData!G$15,CalculationsAndCharts!$A104+$A$11,0,1,1) -> 10485000 | D104: =OFFSET(InputPriceData!C$15,CalculationsAndCharts!$A104+$A$11,IF($C$7,7,0),1,1) -> 558.76 | E104: =OFFSET(InputPriceData!D$15,CalculationsAndCharts!$A104+$A$11,IF($C$7,7,0),1,1) -> 562.61 | F104: =OFFSET(InputPriceData!E$15,CalculationsAndCharts!$A104+$A$11,IF($C$7,7,0),1,1) -> 554.73 | G104: =OFFSET(InputPriceData!F$15,CalculationsAndCharts!$A104+$A$11,IF($C$7,7,0),1,1) -> 556.46 | J104: 556.46 | K104: 555.0534905 | L104: 554.6830557 | M104: 0.3704347804 | N104: -1.487851008 | O104: 1.858285789 | P104: 555.3974656 | Q104: 550.7538011 | R104: 532.1025259 | S104: 555.9975 | T104: 548.7161538 | U104: 7.281346154 | V104: 1.935932902 | W104: 5.345413251 | X104: 559.9628571 | Y104: 397.6928571 | Z104: 465.7025 | AA104: 555.0362756 | AB104: 551.8163354 | AC104: 527.3413254 | AD104: 0.3704347804 | AE104: -1.487851008 | AF104: 1.858285789 | AG104: 1.858285789 | AH104: 0
A105: 73 | B105: =OFFSET(InputPriceData!B$15,CalculationsAndCharts!$A105+$A$11,0,1,1) -> 2012-06-12 | C105: =OFFSET(InputPriceData!G$15,CalculationsAndCharts!$A105+$A$11,0,1,1) -> 15549300 | D105: =OFFSET(InputPriceData!C$15,CalculationsAndCharts!$A105+$A$11,IF($C$7,7,0),1,1) -> 558.7 | E105: =OFFSET(InputPriceData!D$15,CalculationsAndCharts!$A105+$A$11,IF($C$7,7,0),1,1) -> 560.8 | F105: =OFFSET(InputPriceData!E$15,CalculationsAndCharts!$A105+$A$11,IF($C$7,7,0),1,1) -> 551.15 | G105: =OFFSET(InputPriceData!F$15,CalculationsAndCharts!$A105+$A$11,IF($C$7,7,0),1,1) -> 560.35 | J105: 560.35 | K105: 554.7977615 | L105: 554.5409002 | M105: 0.2568613213 | N105: -1.952422456 | O105: 2.209283777 | P105: 555.0362756 | Q105: 551.8163354 | R105: 527.3413254 | S105: 555.1975 | T105: 548.6157692 | U105: 6.581730769 | V105: 0.5995795896 | W105: 5.98215118 | X105: 540.8685714 | Y105: 394.19 | Z105: 417.6005357 | AA105: 553.5209199 | AB105: 557.1300599 | AC105: 525.7313122 | AD105: 0.2568613213 | AE105: -1.952422456 | AF105: 2.209283777 | AG105: 2.209283777 | AH105: 0
A106: 74 | B106: =OFFSET(InputPriceData!B$15,CalculationsAndCharts!$A106+$A$11,0,1,1) -> 2012-06-11 | C106: =OFFSET(InputPriceData!G$15,CalculationsAndCharts!$A106+$A$11,0,1,1) -> 21116600 | D106: =OFFSET(InputPriceData!C$15,CalculationsAndCharts!$A106+$A$11,IF($C$7,7,0),1,1) -> 571.59 | E106: =OFFSET(InputPriceData!D$15,CalculationsAndCharts!$A106+$A$11,IF($C$7,7,0),1,1) -> 572.34 | F106: =OFFSET(InputPriceData!E$15,CalculationsAndCharts!$A106+$A$11,IF($C$7,7,0),1,1) -> 554.96 | G106: =OFFSET(InputPriceData!F$15,CalculationsAndCharts!$A106+$A$11,IF($C$7,7,0),1,1) -> 555.49 | J106: 555.49 | K106: 553.7882636 | L106: 554.0761722 | M106: -0.2879086039 | N106: -2.5047434 | O106: 2.216834796 | P106: 553.5209199 | Q106: 557.1300599 | R106: 525.7313122 | S106: 554.3183333 | T106: 548.2076923 | U106: 6.110641026 | V106: -0.8959582053 | W106: 7.006599231 | X106: 549.8514286 | Y106: 413.6714286 | Z106: 387.56 | AA106: 553.0292343 | AB106: 559.09914 | AC106: 520.7529905 | AD106: -0.2879086039 | AE106: -2.5047434 | AF106: 2.216834796 | AG106: 2.216834796 | AH106: 0
A107: 75 | B107: =OFFSET(InputPriceData!B$15,CalculationsAndCharts!$A107+$A$11,0,1,1) -> 2012-06-08 | C107: =OFFSET(InputPriceData!G$15,CalculationsAndCharts!$A107+$A$11,0,1,1) -> 12411300 | D107: =OFFSET(InputPriceData!C$15,CalculationsAndCharts!$A107+$A$11,IF($C$7,7,0),1,1) -> 555.91 | E107: =OFFSET(InputPriceData!D$15,CalculationsAndCharts!$A107+$A$11,IF($C$7,7,0),1,1) -> 564.64 | F107: =OFFSET(InputPriceData!E$15,CalculationsAndCharts!$A107+$A$11,IF($C$7,7,0),1,1) -> 553.38 | G107: =OFFSET(InputPriceData!F$15,CalculationsAndCharts!$A107+$A$11,IF($C$7,7,0),1,1) -> 564.39 | J107: 564.39 | K107: 553.4788569 | L107: 553.9630659 | M107: -0.4842090015 | N107: -3.058952099 | O107: 2.574743097 | P107: 553.0292343 | Q107: 559.09914 | R107: 520.7529905 | S107: 554.2691667 | T107: 548.6061538 | U107: 5.663012821 | V107: -2.647608013 | W107: 8.310620833 | X107: 545.5142857 | Y107: 419.31 | Z107: 342.4033929 | AA107: 549.9778213 | AB107: 570.4599057 | AC107: 524.0446952 | AD107: -0.4842090015 | AE107: -3.058952099 | AF107: 2.574743097 | AG107: 2.574743097 | AH107: 0
A108: 76 | B108: =OFFSET(InputPriceData!B$15,CalculationsAndCharts!$A108+$A$11,0,1,1) -> 2012-06-07 | C108: =OFFSET(InputPriceData!G$15,CalculationsAndCharts!$A108+$A$11,0,1,1) -> 13563100 | D108: =OFFSET(InputPriceData!C$15,CalculationsAndCharts!$A108+$A$11,IF($C$7,7,0),1,1) -> 561.45 | E108: =OFFSET(InputPriceData!D$15,CalculationsAndCharts!$A108+$A$11,IF($C$7,7,0),1,1) -> 561.48 | F108: =OFFSET(InputPriceData!E$15,CalculationsAndCharts!$A108+$A$11,IF($C$7,7,0),1,1) -> 554.84 | G108: =OFFSET(InputPriceData!F$15,CalculationsAndCharts!$A108+$A$11,IF($C$7,7,0),1,1) -> 556.03 | J108: 556.03 | K108: 551.4950128 | L108: 553.1289112 | M108: -1.633898469 | N108: -3.702637873 | O108: 2.068739404 | P108: 549.9778213 | Q108: 570.4599057 | R108: 524.0446952 | S108: 552.3766667 | T108: 548.8180769 | U108: 3.558589744 | V108: -4.725263221 | W108: 8.283852965 | X108: 517.4914286 | Y108: 438.1857143 | Z108: 309.6975 | AA108: 548.6031404 | AB108: 576.5120844 | AC108: 523.6135924 | AD108: -1.633898469 | AE108: -3.702637873 | AF108: 2.068739404 | AG108: 2.068739404 | AH108: 0
A109: 77 | B109: =OFFSET(InputPriceData!B$15,CalculationsAndCharts!$A109+$A$11,0,1,1) -> 2012-06-06 | C109: =OFFSET(InputPriceData!G$15,CalculationsAndCharts!$A109+$A$11,0,1,1) -> 14337700 | D109: =OFFSET(InputPriceData!C$15,CalculationsAndCharts!$A109+$A$11,IF($C$7,7,0),1,1) -> 552.19 | E109: =OFFSET(InputPriceData!D$15,CalculationsAndCharts!$A109+$A$11,IF($C$7,7,0),1,1) -> 558.1 | F109: =OFFSET(InputPriceData!E$15,CalculationsAndCharts!$A109+$A$11,IF($C$7,7,0),1,1) -> 549.98 | G109: =OFFSET(InputPriceData!F$15,CalculationsAndCharts!$A109+$A$11,IF($C$7,7,0),1,1) -> 555.78 | J109: 555.78 | K109: 550.6704696 | L109: 552.8968241 | M109: -2.226354502 | N109: -4.219822724 | O109: 1.993468222 | P109: 548.6031404 | Q109: 576.5120844 | R109: 523.6135924 | S109: 551.53 | T109: 549.2073077 | U109: 2.322692308 | V109: -6.796226463 | W109: 9.11891877 | X109: 528.4871429 | Y109: 476.7242857 | Z109: 302.0482143 | AA109: 547.0256657 | AB109: 583.6889439 | AC109: 524.5430649 | AD109: -2.226354502 | AE109: -4.219822724 | AF109: 1.993468222 | AG109: 1.993468222 | AH109: 0
A110: 78 | B110: =OFFSET(InputPriceData!B$15,CalculationsAndCharts!$A110+$A$11,0,1,1) -> 2012-06-05 | C110: =OFFSET(InputPriceData!G$15,CalculationsAndCharts!$A110+$A$11,0,1,1) -> 13864800 | D110: =OFFSET(InputPriceData!C$15,CalculationsAndCharts!$A110+$A$11,IF($C$7,7,0),1,1) -> 545.86 | E110: =OFFSET(InputPriceData!D$15,CalculationsAndCharts!$A110+$A$11,IF($C$7,7,0),1,1) -> 550.92 | F110: =OFFSET(InputPriceData!E$15,CalculationsAndCharts!$A110+$A$11,IF($C$7,7,0),1,1) -> 543 | G110: =OFFSET(InputPriceData!F$15,CalculationsAndCharts!$A110+$A$11,IF($C$7,7,0),1,1) -> 547.38 | J110: 547.38 | K110: 549.7414641 | L110: 552.6661701 | M110: -2.924705956 | N110: -4.718189779 | O110: 1.793483823 | P110: 547.0256657 | Q110: 583.6889439 | R110: 524.5430649 | S110: 548.2 | T110: 549.6753846 | U110: -1.475384615 | V110: -9.075956155 | W110: 7.60057154 | X110: 471.1371429 | Y110: 504.0171429 | Z110: 285.5307143 | AA110: 547.4610246 | AB110: 584.0432782 | AC110: 519.276749 | AD110: -2.924705956 | AE110: -4.718189779 | AF110: 1.793483823 | AG110: 1.793483823 | AH110: 0
A111: 79 | B111: =OFFSET(InputPriceData!B$15,CalculationsAndCharts!$A111+$A$11,0,1,1) -> 2012-06-04 | C111: =OFFSET(InputPriceData!G$15,CalculationsAndCharts!$A111+$A$11,0,1,1) -> 19892700 | D111: =OFFSET(InputPriceData!C$15,CalculationsAndCharts!$A111+$A$11,IF($C$7,7,0),1,1) -> 546.09 | E111: =OFFSET(InputPriceData!D$15,CalculationsAndCharts!$A111+$A$11,IF($C$7,7,0),1,1) -> 551.92 | F111: =OFFSET(InputPriceData!E$15,CalculationsAndCharts!$A111+$A$11,IF($C$7,7,0),1,1) -> 533.44 | G111: =OFFSET(InputPriceData!F$15,CalculationsAndCharts!$A111+$A$11,IF($C$7,7,0),1,1) -> 548.8 | J111: 548.8 | K111: 550.1708212 | L111: 553.0890637 | M111: -2.918242452 | N111: -5.166560735 | O111: 2.248318283 | P111: 547.4610246 | Q111: 584.0432782 | R111: 519.276749 | S111: 545.5491667 | T111: 551.1780769 | U111: -5.628910256 | V111: -10.97609904 | W111: 5.347188784 | X111: 454.8157143 | Y111: 580.26 | Z111: 324.7083929 | AA111: 547.623086 | AB111: 585.3822536 | AC111: 513.5696555 | AD111: -2.918242452 | AE111: -5.166560735 | AF111: 2.248318283 | AG111: 2.248318283 | AH111: 0
A112: 80 | B112: =OFFSET(InputPriceData!B$15,CalculationsAndCharts!$A112+$A$11,0,1,1) -> 2012-06-01 | C112: =OFFSET(InputPriceData!G$15,CalculationsAndCharts!$A112+$A$11,0,1,1) -> 18606700 | D112: =OFFSET(InputPriceData!C$15,CalculationsAndCharts!$A112+$A$11,IF($C$7,7,0),1,1) -> 553.54 | E112: =OFFSET(InputPriceData!D$15,CalculationsAndCharts!$A112+$A$11,IF($C$7,7,0),1,1) -> 556.93 | F112: =OFFSET(InputPriceData!E$15,CalculationsAndCharts!$A112+$A$11,IF($C$7,7,0),1,1) -> 545.13 | G112: =OFFSET(InputPriceData!F$15,CalculationsAndCharts!$A112+$A$11,IF($C$7,7,0),1,1) -> 545.59 | J112: 545.59 | K112: 550.4200614 | L112: 553.4321887 | M112: -3.012127325 | N112: -5.728640306 | O112: 2.716512981 | P112: 547.623086 | Q112: 585.3822536 | R112: 513.5696555 | S112: 544.0733333 | T112: 552.8019231 | U112: -8.728589744 | V112: -12.31289624 | W112: 3.584306492 | X112: 479.7214286 | Y112: 674.2442857 | Z112: 388.8753571 | AA112: 548.7341814 | AB112: 583.3491675 | AC112: 503.0232118 | AD112: -3.012127325 | AE112: -5.728640306 | AF112: 2.716512981 | AG112: 2.716512981 | AH112: 0
A113: 81 | B113: =OFFSET(InputPriceData!B$15,CalculationsAndCharts!$A113+$A$11,0,1,1) -> 2012-05-31 | C113: =OFFSET(InputPriceData!G$15,CalculationsAndCharts!$A113+$A$11,0,1,1) -> 17559800 | D113: =OFFSET(InputPriceData!C$15,CalculationsAndCharts!$A113+$A$11,IF($C$7,7,0),1,1) -> 564.8 | E113: =OFFSET(InputPriceData!D$15,CalculationsAndCharts!$A113+$A$11,IF($C$7,7,0),1,1) -> 565.54 | F113: =OFFSET(InputPriceData!E$15,CalculationsAndCharts!$A113+$A$11,IF($C$7,7,0),1,1) -> 555.77 | G113: =OFFSET(InputPriceData!F$15,CalculationsAndCharts!$A113+$A$11,IF($C$7,7,0),1,1) -> 561.87 | H113: =IF($A113=$E$25,H$32,NA()) ->  | J113: 561.87 | K113: 551.2982544 | L113: 554.0595638 | M113: -2.76130944 | N113: -6.407768551 | O113: 3.646459112 | P113: 548.7341814 | Q113: 583.3491675 | R113: 503.0232118 | S113: 543.44 | T113: 554.6353846 | U113: -11.19538462 | V113: -13.20897286 | W113: 2.013588244 | X113: 490.6157143 | Y113: 740.1128571 | Z113: 433.0185714 | AA113: 545.6074095 | AB113: 596.4849862 | AC113: 504.731288 | AD113: -2.76130944 | AE113: -6.407768551 | AF113: 3.646459112 | AG113: 3.646459112 | AH113: 0
A114: 82 | B114: =OFFSET(InputPriceData!B$15,CalculationsAndCharts!$A114+$A$11,0,1,1) -> 2012-05-30 | C114: =OFFSET(InputPriceData!G$15,CalculationsAndCharts!$A114+$A$11,0,1,1) -> 18908200 | D114: =OFFSET(InputPriceData!C$15,CalculationsAndCharts!$A114+$A$11,IF($C$7,7,0),1,1) -> 553.57 | E114: =OFFSET(InputPriceData!D$15,CalculationsAndCharts!$A114+$A$11,IF($C$7,7,0),1,1) -> 564.07 | F114: =OFFSET(InputPriceData!E$15,CalculationsAndCharts!$A114+$A$11,IF($C$7,7,0),1,1) -> 551.01 | G114: =OFFSET(InputPriceData!F$15,CalculationsAndCharts!$A114+$A$11,IF($C$7,7,0),1,1) -> 563.27 | J114: 563.27 | K114: 549.3761188 | L114: 553.434729 | M114: -4.05861011 | N114: -7.319383329 | O114: 3.26077322 | P114: 545.6074095 | Q114: 596.4849862 | R114: 504.731288 | S114: 541.8591667 | T114: 553.9826923 | U114: -12.12352564 | V114: -13.71236992 | W114: 1.588844279 | X114: 541.1857143 | Y114: 811.3671429 | Z114: 489.4771429 | AA114: 541.4661492 | AB114: 614.1475767 | AC114: 512.1748482 | AD114: -4.05861011 | AE114: -7.319383329 | AF114: 3.26077322 | AG114: 3.26077322 | AH114: 0
A115: 83 | B115: =OFFSET(InputPriceData!B$15,CalculationsAndCharts!$A115+$A$11,0,1,1) -> 2012-05-29 | C115: =OFFSET(InputPriceData!G$15,CalculationsAndCharts!$A115+$A$11,0,1,1) -> 13589600 | D115: =OFFSET(InputPriceData!C$15,CalculationsAndCharts!$A115+$A$11,IF($C$7,7,0),1,1) -> 555.23 | E115: =OFFSET(InputPriceData!D$15,CalculationsAndCharts!$A115+$A$11,IF($C$7,7,0),1,1) -> 558.24 | F115: =OFFSET(InputPriceData!E$15,CalculationsAndCharts!$A115+$A$11,IF($C$7,7,0),1,1) -> 549.79 | G115: =OFFSET(InputPriceData!F$15,CalculationsAndCharts!$A115+$A$11,IF($C$7,7,0),1,1) -> 556.56 | J115: 556.56 | K115: 546.8499586 | L115: 552.6479073 | M115: -5.797948636 | N115: -8.134576634 | O115: 2.336627998 | P115: 541.4661492 | Q115: 614.1475767 | R115: 512.1748482 | S115: 540.85 | T115: 553.7034615 | U115: -12.85346154 | V115: -14.10958099 | W115: 1.256119451 | X115: 547.0028571 | Y115: 833.4514286 | Z115: 502.2776786 | AA115: 538.3519421 | AB115: 629.2414275 | AC115: 519.9458738 | AD115: -5.797948636 | AE115: -8.134576634 | AF115: 2.336627998 | AG115: 2.336627998 | AH115: 0
A116: 84 | B116: =OFFSET(InputPriceData!B$15,CalculationsAndCharts!$A116+$A$11,0,1,1) -> 2012-05-25 | C116: =OFFSET(InputPriceData!G$15,CalculationsAndCharts!$A116+$A$11,0,1,1) -> 11732400 | D116: =OFFSET(InputPriceData!C$15,CalculationsAndCharts!$A116+$A$11,IF($C$7,7,0),1,1) -> 549.1 | E116: =OFFSET(InputPriceData!D$15,CalculationsAndCharts!$A116+$A$11,IF($C$7,7,0),1,1) -> 550.32 | F116: =OFFSET(InputPriceData!E$15,CalculationsAndCharts!$A116+$A$11,IF($C$7,7,0),1,1) -> 543.14 | G116: =OFFSET(InputPriceData!F$15,CalculationsAndCharts!$A116+$A$11,IF($C$7,7,0),1,1) -> 546.86 | J116: 546.86 | K116: 545.0844966 | L116: 552.3349399 | M116: -7.250443284 | N116: -8.718733634 | O116: 1.46829035 | P116: 538.3519421 | Q116: 629.2414275 | R116: 519.9458738 | S116: 540.7083333 | T116: 553.73 | U116: -13.02166667 | V116: -14.42361085 | W116: 1.401944186 | X116: 552.8114286 | Y116: 843.0085714 | Z116: 506.3148214 | AA116: 537.3226531 | AB116: 637.7494855 | AC116: 523.8524146 | AD116: -7.250443284 | AE116: -8.718733634 | AF116: 1.46829035 | AG116: 1.46829035 | AH116: 0
A117: 85 | B117: =OFFSET(InputPriceData!B$15,CalculationsAndCharts!$A117+$A$11,0,1,1) -> 2012-05-24 | C117: =OFFSET(InputPriceData!G$15,CalculationsAndCharts!$A117+$A$11,0,1,1) -> 17722500 | D117: =OFFSET(InputPriceData!C$15,CalculationsAndCharts!$A117+$A$11,IF($C$7,7,0),1,1) -> 560.06 | E117: =OFFSET(InputPriceData!D$15,CalculationsAndCharts!$A117+$A$11,IF($C$7,7,0),1,1) -> 560.67 | F117: =OFFSET(InputPriceData!E$15,CalculationsAndCharts!$A117+$A$11,IF($C$7,7,0),1,1) -> 545.82 | G117: =OFFSET(InputPriceData!F$15,CalculationsAndCharts!$A117+$A$11,IF($C$7,7,0),1,1) -> 549.8 | J117: 549.8 | K117: 544.7616778 | L117: 552.772935 | M117: -8.011257278 | N117: -9.085806221 | O117: 1.074548943 | P117: 537.3226531 | Q117: 637.7494855 | R117: 523.8524146 | S117: 541.2666667 | T117: 554.6707692 | U117: -13.40410256 | V117: -14.7740969 | W117: 1.369994335 | X117: 538.3371429 | Y117: 837.0571429 | Z117: 495.2866071 | AA117: 535.3351221 | AB117: 650.2268323 | AC117: 532.9622018 | AD117: -8.011257278 | AE117: -9.085806221 | AF117: 1.074548943 | AG117: 1.074548943 | AH117: 0
A118: 86 | B118: =OFFSET(InputPriceData!B$15,CalculationsAndCharts!$A118+$A$11,0,1,1) -> 2012-05-23 | C118: =OFFSET(InputPriceData!G$15,CalculationsAndCharts!$A118+$A$11,0,1,1) -> 20889200 | D118: =OFFSET(InputPriceData!C$15,CalculationsAndCharts!$A118+$A$11,IF($C$7,7,0),1,1) -> 542.2 | E118: =OFFSET(InputPriceData!D$15,CalculationsAndCharts!$A118+$A$11,IF($C$7,7,0),1,1) -> 557.08 | F118: =OFFSET(InputPriceData!E$15,CalculationsAndCharts!$A118+$A$11,IF($C$7,7,0),1,1) -> 538.05 | G118: =OFFSET(InputPriceData!F$15,CalculationsAndCharts!$A118+$A$11,IF($C$7,7,0),1,1) -> 554.9 | J118: 554.9 | K118: 543.8456192 | L118: 553.0107698 | M118: -9.16515067 | N118: -9.354443457 | O118: 0.1892927875 | P118: 535.3351221 | Q118: 650.2268323 | R118: 532.9622018 | S118: 541.4991667 | T118: 556.28 | U118: -14.78083333 | V118: -15.11659548 | W118: 0.3357621496 | X118: 519.1185714 | Y118: 848.52 | Z118: 505.3326786 | AA118: 531.5992535 | AB118: 669.7917102 | AC118: 551.9338496 | AD118: -9.16515067 | AE118: -9.354443457 | AF118: 0.1892927875 | AG118: 0.1892927875 | AH118: 0
A119: 87 | B119: =OFFSET(InputPriceData!B$15,CalculationsAndCharts!$A119+$A$11,0,1,1) -> 2012-05-22 | C119: =OFFSET(InputPriceData!G$15,CalculationsAndCharts!$A119+$A$11,0,1,1) -> 24816800 | D119: =OFFSET(InputPriceData!C$15,CalculationsAndCharts!$A119+$A$11,IF($C$7,7,0),1,1) -> 553.91 | E119: =OFFSET(InputPriceData!D$15,CalculationsAndCharts!$A119+$A$11,IF($C$7,7,0),1,1) -> 558.13 | F119: =OFFSET(InputPriceData!E$15,CalculationsAndCharts!$A119+$A$11,IF($C$7,7,0),1,1) -> 537.41 | G119: =OFFSET(InputPriceData!F$15,CalculationsAndCharts!$A119+$A$11,IF($C$7,7,0),1,1) -> 541.68 | J119: 541.68 | K119: 541.8357318 | L119: 552.8596314 | M119: -11.02389968 | N119: -9.401766654 | O119: -1.622133026 | P119: 531.5992535 | Q119: 669.7917102 | R119: 551.9338496 | S119: 541.4116667 | T119: 557.7442308 | U119: -16.3325641 | V119: -15.20053602 | W119: -1.132028082 | X119: 520.3185714 | Y119: 884.3014286 | Z119: 546.84 | AA119: 530.8233738 | AB119: 679.8724567 | AC119: 567.0982452 | AD119: -11.02389968 | AE119: -9.401766654 | AF119: -1.622133026 | AG119: 0 | AH119: -1.622133026
A120: 88 | B120: =OFFSET(InputPriceData!B$15,CalculationsAndCharts!$A120+$A$11,0,1,1) -> 2012-05-21 | C120: =OFFSET(InputPriceData!G$15,CalculationsAndCharts!$A120+$A$11,0,1,1) -> 22539500 | D120: =OFFSET(InputPriceData!C$15,CalculationsAndCharts!$A120+$A$11,IF($C$7,7,0),1,1) -> 519.83 | E120: =OFFSET(InputPriceData!D$15,CalculationsAndCharts!$A120+$A$11,IF($C$7,7,0),1,1) -> 546.12 | F120: =OFFSET(InputPriceData!E$15,CalculationsAndCharts!$A120+$A$11,IF($C$7,7,0),1,1) -> 519.39 | G120: =OFFSET(InputPriceData!F$15,CalculationsAndCharts!$A120+$A$11,IF($C$7,7,0),1,1) -> 545.87 | J120: 545.87 | K120: 541.8640466 | L120: 553.7540019 | M120: -11.88995533 | N120: -8.996233398 | O120: -2.893721933 | P120: 530.8233738 | Q120: 679.8724567 | R120: 567.0982452 | S120: 542.0833333 | T120: 558.6107692 | U120: -16.5274359 | V120: -14.917529 | W120: -1.609906898 | X120: 537.3371429 | Y120: 905.6628571 | Z120: 582.0221429 | AA120: 528.8330201 | AB120: 694.9190829 | AC120: 591.2135892 | AD120: -11.88995533 | AE120: -8.996233398 | AF120: -2.893721933 | AG120: 0 | AH120: -2.893721933
A121: 89 | B121: =OFFSET(InputPriceData!B$15,CalculationsAndCharts!$A121+$A$11,0,1,1) -> 2012-05-18 | C121: =OFFSET(InputPriceData!G$15,CalculationsAndCharts!$A121+$A$11,0,1,1) -> 26153300 | D121: =OFFSET(InputPriceData!C$15,CalculationsAndCharts!$A121+$A$11,IF($C$7,7,0),1,1) -> 519.3 | E121: =OFFSET(InputPriceData!D$15,CalculationsAndCharts!$A121+$A$11,IF($C$7,7,0),1,1) -> 528.49 | F121: =OFFSET(InputPriceData!E$15,CalculationsAndCharts!$A121+$A$11,IF($C$7,7,0),1,1) -> 507.85 | G121: =OFFSET(InputPriceData!F$15,CalculationsAndCharts!$A121+$A$11,IF($C$7,7,0),1,1) -> 515.82 | J121: 515.82 | K121: 541.1356915 | L121: 554.3847221 | M121: -13.24903065 | N121: -8.272802914 | O121: -4.976227733 | P121: 528.8330201 | Q121: 694.9190829 | R121: 591.2135892 | S121: 543.7483333 | T121: 560.255 | U121: -16.50666667 | V121: -14.51505228 | W121: -1.991614391 | X121: 546.3328571 | Y121: 914.1957143 | Z121: 596.4789286 | AA121: 534.845143 | AB121: 681.9060628 | AC121: 593.7957113 | AD121: -13.24903065 | AE121: -8.272802914 | AF121: -4.976227733 | AG121: 0 | AH121: -4.976227733
A122: 90 | B122: =OFFSET(InputPriceData!B$15,CalculationsAndCharts!$A122+$A$11,0,1,1) -> 2012-05-17 | C122: =OFFSET(InputPriceData!G$15,CalculationsAndCharts!$A122+$A$11,0,1,1) -> 25615000 | D122: =OFFSET(InputPriceData!C$15,CalculationsAndCharts!$A122+$A$11,IF($C$7,7,0),1,1) -> 530.34 | E122: =OFFSET(InputPriceData!D$15,CalculationsAndCharts!$A122+$A$11,IF($C$7,7,0),1,1) -> 532.47 | F122: =OFFSET(InputPriceData!E$15,CalculationsAndCharts!$A122+$A$11,IF($C$7,7,0),1,1) -> 515.57 | G122: =OFFSET(InputPriceData!F$15,CalculationsAndCharts!$A122+$A$11,IF($C$7,7,0),1,1) -> 515.57 | J122: 515.57 | K122: 545.7385444 | L122: 557.4698999 | M122: -11.73135542 | N122: -7.028745981 | O122: -4.702609442 | P122: 534.845143 | Q122: 681.9060628 | R122: 593.7957113 | S122: 548.255 | T122: 563.7111538 | U122: -15.45615385 | V122: -14.01714868 | W122: -1.439005169 | X122: 539.2314286 | Y122: 883.6828571 | Z122: 567.2483929 | AA122: 542.3111595 | AB122: 662.6309198 | AC122: 589.2582105 | AD122: -11.73135542 | AE122: -7.028745981 | AF122: -4.702609442 | AG122: 0 | AH122: -4.702609442
A123: 91 | B123: =OFFSET(InputPriceData!B$15,CalculationsAndCharts!$A123+$A$11,0,1,1) -> 2012-05-16 | C123: =OFFSET(InputPriceData!G$15,CalculationsAndCharts!$A123+$A$11,0,1,1) -> 20032000 | D123: =OFFSET(InputPriceData!C$15,CalculationsAndCharts!$A123+$A$11,IF($C$7,7,0),1,1) -> 538.84 | E123: =OFFSET(InputPriceData!D$15,CalculationsAndCharts!$A123+$A$11,IF($C$7,7,0),1,1) -> 541.6 | F123: =OFFSET(InputPriceData!E$15,CalculationsAndCharts!$A123+$A$11,IF($C$7,7,0),1,1) -> 526.19 | G123: =OFFSET(InputPriceData!F$15,CalculationsAndCharts!$A123+$A$11,IF($C$7,7,0),1,1) -> 531.09 | J123: 531.09 | K123: 551.2237343 | L123: 560.8218919 | M123: -9.598157513 | N123: -5.853093621 | O123: -3.745063893 | P123: 542.3111595 | Q123: 662.6309198 | R123: 589.2582105 | S123: 552.47 | T123: 567.305 | U123: -14.835 | V123: -13.65739739 | W123: -1.177602615 | X123: 529.4128571 | Y123: 860.0214286 | Z123: 539.7567857 | AA123: 547.1623856 | AB123: 651.4097603 | AC123: 589.7738137 | AD123: -9.598157513 | AE123: -5.853093621 | AF123: -3.745063893 | AG123: 0 | AH123: -3.745063893
A124: 92 | B124: =OFFSET(InputPriceData!B$15,CalculationsAndCharts!$A124+$A$11,0,1,1) -> 2012-05-15 | C124: =OFFSET(InputPriceData!G$15,CalculationsAndCharts!$A124+$A$11,0,1,1) -> 17012000 | D124: =OFFSET(InputPriceData!C$15,CalculationsAndCharts!$A124+$A$11,IF($C$7,7,0),1,1) -> 546.04 | E124: =OFFSET(InputPriceData!D$15,CalculationsAndCharts!$A124+$A$11,IF($C$7,7,0),1,1) -> 547.76 | F124: =OFFSET(InputPriceData!E$15,CalculationsAndCharts!$A124+$A$11,IF($C$7,7,0),1,1) -> 536.61 | G124: =OFFSET(InputPriceData!F$15,CalculationsAndCharts!$A124+$A$11,IF($C$7,7,0),1,1) -> 537.99 | J124: 537.99 | K124: 554.8844133 | L124: 563.2004432 | M124: -8.31602989 | N124: -4.916827647 | O124: -3.399202243 | P124: 547.1623856 | Q124: 651.4097603 | R124: 589.7738137 | S124: 555.5416667 | T124: 570.3857692 | U124: -14.84410256 | V124: -13.36299673 | W124: -1.481105832 | X124: 530.8871429 | Y124: 861.6985714 | Z124: 535.7214286 | AA124: 551.2136248 | AB124: 642.2373747 | AC124: 591.2542851 | AD124: -8.31602989 | AE124: -4.916827647 | AF124: -3.399202243 | AG124: 0 | AH124: -3.399202243
A125: 93 | B125: =OFFSET(InputPriceData!B$15,CalculationsAndCharts!$A125+$A$11,0,1,1) -> 2012-05-14 | C125: =OFFSET(InputPriceData!G$15,CalculationsAndCharts!$A125+$A$11,0,1,1) -> 12593800 | D125: =OFFSET(InputPriceData!C$15,CalculationsAndCharts!$A125+$A$11,IF($C$7,7,0),1,1) -> 547.13 | E125: =OFFSET(InputPriceData!D$15,CalculationsAndCharts!$A125+$A$11,IF($C$7,7,0),1,1) -> 551.94 | F125: =OFFSET(InputPriceData!E$15,CalculationsAndCharts!$A125+$A$11,IF($C$7,7,0),1,1) -> 542.3 | G125: =OFFSET(InputPriceData!F$15,CalculationsAndCharts!$A125+$A$11,IF($C$7,7,0),1,1) -> 542.9 | J125: 542.9 | K125: 557.9561248 | L125: 565.2172787 | M125: -7.261153834 | N125: -4.067027087 | O125: -3.194126747 | P125: 551.2136248 | Q125: 642.2373747 | R125: 591.2542851 | S125: 559.58 | T125: 573.4926923 | U125: -13.91269231 | V125: -12.99272027 | W125: -0.919972034 | X125: 558.7471429 | Y125: 868.8014286 | Z125: 541.4071429 | AA125: 554.8351903 | AB125: 633.9237498 | AC125: 592.9508254 | AD125: -7.261153834 | AE125: -4.067027087 | AF125: -3.194126747 | AG125: 0 | AH125: -3.194126747
A126: 94 | B126: =OFFSET(InputPriceData!B$15,CalculationsAndCharts!$A126+$A$11,0,1,1) -> 2012-05-11 | C126: =OFFSET(InputPriceData!G$15,CalculationsAndCharts!$A126+$A$11,0,1,1) -> 14269500 | D126: =OFFSET(InputPriceData!C$15,CalculationsAndCharts!$A126+$A$11,IF($C$7,7,0),1,1) -> 549.5 | E126: =OFFSET(InputPriceData!D$15,CalculationsAndCharts!$A126+$A$11,IF($C$7,7,0),1,1) -> 558.71 | F126: =OFFSET(InputPriceData!E$15,CalculationsAndCharts!$A126+$A$11,IF($C$7,7,0),1,1) -> 548.86 | G126: =OFFSET(InputPriceData!F$15,CalculationsAndCharts!$A126+$A$11,IF($C$7,7,0),1,1) -> 551.16 | J126: 551.16 | K126: 560.6936021 | L126: 567.002661 | M126: -6.309058885 | N126: -3.2684954 | O126: -3.040563485 | P126: 554.8351903 | Q126: 633.9237498 | R126: 592.9508254 | S126: 563.59 | T126: 576.3153846 | U126: -12.72538462 | V126: -12.76272727 | W126: 0.03734264981 | X126: 569.36 | Y126: 852.9542857 | Z126: 524.4410714 | AA126: 557.0012582 | AB126: 630.2485596 | AC126: 598.8045439 | AD126: -6.309058885 | AE126: -3.2684954 | AF126: -3.040563485 | AG126: 0 | AH126: -3.040563485
A127: 95 | B127: =OFFSET(InputPriceData!B$15,CalculationsAndCharts!$A127+$A$11,0,1,1) -> 2012-05-10 | C127: =OFFSET(InputPriceData!G$15,CalculationsAndCharts!$A127+$A$11,0,1,1) -> 11900000 | D127: =OFFSET(InputPriceData!C$15,CalculationsAndCharts!$A127+$A$11,IF($C$7,7,0),1,1) -> 558.81 | E127: =OFFSET(InputPriceData!D$15,CalculationsAndCharts!$A127+$A$11,IF($C$7,7,0),1,1) -> 560.07 | F127: =OFFSET(InputPriceData!E$15,CalculationsAndCharts!$A127+$A$11,IF($C$7,7,0),1,1) -> 552.84 | G127: =OFFSET(InputPriceData!F$15,CalculationsAndCharts!$A127+$A$11,IF($C$7,7,0),1,1) -> 554.86 | J127: 554.86 | K127: 562.4269843 | L127: 568.2700738 | M127: -5.843089567 | N127: -2.508354529 | O127: -3.334735038 | P127: 557.0012582 | Q127: 630.2485596 | R127: 598.8045439 | S127: 567.0983333 | T127: 578.4696154 | U127: -11.37128205 | V127: -12.77206293 | W127: 1.400780876 | X127: 581.3371429 | Y127: 834.7542857 | Z127: 498.3058929 | AA127: 558.6584394 | AB127: 628.1073014 | AC127: 607.1141071 | AD127: -5.843089567 | AE127: -2.508354529 | AF127: -3.334735038 | AG127: 0 | AH127: -3.334735038
A128: 96 | B128: =OFFSET(InputPriceData!B$15,CalculationsAndCharts!$A128+$A$11,0,1,1) -> 2012-05-09 | C128: =OFFSET(InputPriceData!G$15,CalculationsAndCharts!$A128+$A$11,0,1,1) -> 17168000 | D128: =OFFSET(InputPriceData!C$15,CalculationsAndCharts!$A128+$A$11,IF($C$7,7,0),1,1) -> 548.23 | E128: =OFFSET(InputPriceData!D$15,CalculationsAndCharts!$A128+$A$11,IF($C$7,7,0),1,1) -> 558.23 | F128: =OFFSET(InputPriceData!E$15,CalculationsAndCharts!$A128+$A$11,IF($C$7,7,0),1,1) -> 545.46 | G128: =OFFSET(InputPriceData!F$15,CalculationsAndCharts!$A128+$A$11,IF($C$7,7,0),1,1) -> 553.56 | J128: 553.56 | K128: 563.8027996 | L128: 569.3428797 | M128: -5.540080152 | N128: -1.674670769 | O128: -3.865409383 | P128: 558.6584394 | Q128: 628.1073014 | R128: 607.1141071 | S128: 566.2683333 | T128: 580.6692308 | U128: -14.40089744 | V128: -13.12225815 | W128: -1.278639289 | X128: 487.3428571 | Y128: 808.2771429 | Z128: 463.8869643 | AA128: 561.077628 | AB128: 623.0088619 | AC128: 614.1295845 | AD128: -5.540080152 | AE128: -1.674670769 | AF128: -3.865409383 | AG128: 0 | AH128: -3.865409383
A129: 97 | B129: =OFFSET(InputPriceData!B$15,CalculationsAndCharts!$A129+$A$11,0,1,1) -> 2012-05-08 | C129: =OFFSET(InputPriceData!G$15,CalculationsAndCharts!$A129+$A$11,0,1,1) -> 17759000 | D129: =OFFSET(InputPriceData!C$15,CalculationsAndCharts!$A129+$A$11,IF($C$7,7,0),1,1) -> 553.95 | E129: =OFFSET(InputPriceData!D$15,CalculationsAndCharts!$A129+$A$11,IF($C$7,7,0),1,1) -> 555.82 | F129: =OFFSET(InputPriceData!E$15,CalculationsAndCharts!$A129+$A$11,IF($C$7,7,0),1,1) -> 543.4 | G129: =OFFSET(InputPriceData!F$15,CalculationsAndCharts!$A129+$A$11,IF($C$7,7,0),1,1) -> 552.59 | J129: 552.59 | K129: 565.6651268 | L129: 570.6055101 | M129: -4.940383333 | N129: -0.7083184233 | O129: -4.23206491 | P129: 561.077628 | Q129: 623.0088619 | R129: 614.1295845 | S129: 566.4725 | T129: 582.5188462 | U129: -16.04634615 | V129: -12.80259832 | W129: -3.243747829 | X129: 516.89 | Y129: 874.4942857 | Z129: 537.76 | AA129: 564.3241177 | AB129: 614.5212339 | AC129: 618.9049457 | AD129: -4.940383333 | AE129: -0.7083184233 | AF129: -4.23206491 | AG129: 0 | AH129: -4.23206491
A130: 98 | B130: =OFFSET(InputPriceData!B$15,CalculationsAndCharts!$A130+$A$11,0,1,1) -> 2012-05-07 | C130: =OFFSET(InputPriceData!G$15,CalculationsAndCharts!$A130+$A$11,0,1,1) -> 16432800 | D130: =OFFSET(InputPriceData!C$15,CalculationsAndCharts!$A130+$A$11,IF($C$7,7,0),1,1) -> 546.09 | E130: =OFFSET(InputPriceData!D$15,CalculationsAndCharts!$A130+$A$11,IF($C$7,7,0),1,1) -> 557.05 | F130: =OFFSET(InputPriceData!E$15,CalculationsAndCharts!$A130+$A$11,IF($C$7,7,0),1,1) -> 545.83 | G130: =OFFSET(InputPriceData!F$15,CalculationsAndCharts!$A130+$A$11,IF($C$7,7,0),1,1) -> 553.85 | J130: 553.85 | K130: 568.0424226 | L130: 572.0467509 | M130: -4.004328363 | N130: 0.3496978042 | O130: -4.354026168 | P130: 564.3241177 | Q130: 614.5212339 | R130: 618.9049457 | S130: 566.8608333 | T130: 583.6919231 | U130: -16.83108974 | V130: -11.99166137 | W130: -4.839428376 | X130: 535.1014286 | Y130: 910.1942857 | Z130: 590.9892857 | AA130: 567.9489228 | AB130: 604.0471163 | AC130: 622.076035 | AD130: -4.004328363 | AE130: 0.3496978042 | AF130: -4.354026168 | AG130: 0 | AH130: -4.354026168
A131: 99 | B131: =OFFSET(InputPriceData!B$15,CalculationsAndCharts!$A131+$A$11,0,1,1) -> 2012-05-04 | C131: =OFFSET(InputPriceData!G$15,CalculationsAndCharts!$A131+$A$11,0,1,1) -> 18928300 | D131: =OFFSET(InputPriceData!C$15,CalculationsAndCharts!$A131+$A$11,IF($C$7,7,0),1,1) -> 561.25 | E131: =OFFSET(InputPriceData!D$15,CalculationsAndCharts!$A131+$A$11,IF($C$7,7,0),1,1) -> 562.49 | F131: =OFFSET(InputPriceData!E$15,CalculationsAndCharts!$A131+$A$11,IF($C$7,7,0),1,1) -> 549.66 | G131: =OFFSET(InputPriceData!F$15,CalculationsAndCharts!$A131+$A$11,IF($C$7,7,0),1,1) -> 549.74 | J131: 549.74 | K131: 570.622863 | L131: 573.502491 | M131: -2.879627971 | N131: 1.438204346 | O131: -4.317832317 | P131: 567.9489228 | Q131: 604.0471163 | R131: 622.076035 | S131: 568.3166667 | T131: 585.2023077 | U131: -16.88564103 | V131: -10.78180427 | W131: -6.103836753 | X131: 552.6342857 | Y131: 928.9428571 | Z131: 634.3166071 | AA131: 573.5062715 | AB131: 585.8381935 | AC131: 617.3988903 | AD131: -2.879627971 | AE131: 1.438204346 | AF131: -4.317832317 | AG131: 0 | AH131: -4.317832317
A132: 100 | B132: =OFFSET(InputPriceData!B$15,CalculationsAndCharts!$A132+$A$11,0,1,1) -> 2012-05-03 | C132: =OFFSET(InputPriceData!G$15,CalculationsAndCharts!$A132+$A$11,0,1,1) -> 13948200 | D132: =OFFSET(InputPriceData!C$15,CalculationsAndCharts!$A132+$A$11,IF($C$7,7,0),1,1) -> 574.29 | E132: =OFFSET(InputPriceData!D$15,CalculationsAndCharts!$A132+$A$11,IF($C$7,7,0),1,1) -> 575.17 | F132: =OFFSET(InputPriceData!E$15,CalculationsAndCharts!$A132+$A$11,IF($C$7,7,0),1,1) -> 564.37 | G132: =OFFSET(InputPriceData!F$15,CalculationsAndCharts!$A132+$A$11,IF($C$7,7,0),1,1) -> 565.85 | J132: 565.85 | K132: 574.4197472 | L132: 575.4034903 | M132: -0.9837430634 | N132: 2.517662425 | O132: -3.501405489 | P132: 573.5062715 | Q132: 585.8381935 | R132: 617.3988903 | S132: 571.8083333 | T132: 587.1611538 | U132: -15.35282051 | V132: -9.255845085 | W132: -6.096975428 | X132: 583.9 | Y132: 926.0485714 | Z132: 663.0028571 | AA132: 575.80156 | AB132: 578.181922 | AC132: 620.7157735 | AD132: -0.9837430634 | AE132: 2.517662425 | AF132: -3.501405489 | AG132: 0 | AH132: -3.501405489
A133: 101 | B133: =OFFSET(InputPriceData!B$15,CalculationsAndCharts!$A133+$A$11,0,1,1) -> 2012-05-02 | C133: =OFFSET(InputPriceData!G$15,CalculationsAndCharts!$A133+$A$11,0,1,1) -> 15263900 | D133: =OFFSET(InputPriceData!C$15,CalculationsAndCharts!$A133+$A$11,IF($C$7,7,0),1,1) -> 564.32 | E133: =OFFSET(InputPriceData!D$15,CalculationsAndCharts!$A133+$A$11,IF($C$7,7,0),1,1) -> 571.28 | F133: =OFFSET(InputPriceData!E$15,CalculationsAndCharts!$A133+$A$11,IF($C$7,7,0),1,1) -> 562.98 | G133: =OFFSET(InputPriceData!F$15,CalculationsAndCharts!$A133+$A$11,IF($C$7,7,0),1,1) -> 569.9 | H133: =IF($A133=$E$25,H$32,NA()) ->  | J133: 569.9 | K133: 575.9778831 | L133: 576.1677695 | M133: -0.1898864276 | N133: 3.393013798 | O133: -3.582900225 | P133: 575.80156 | Q133: 578.181922 | R133: 620.7157735 | S133: 574.0683333 | T133: 588.3826923 | U133: -14.31435897 | V133: -7.731601228 | W133: -6.582757747 | X133: 588.9928571 | Y133: 907.9985714 | Z133: 686.2003571 | AA133: 577.46716 | AB133: 572.280362 | AC133: 626.0427669 | AD133: -0.1898864276 | AE133: 3.393013798 | AF133: -3.582900225 | AG133: 0 | AH133: -3.582900225
A134: 102 | B134: =OFFSET(InputPriceData!B$15,CalculationsAndCharts!$A134+$A$11,0,1,1) -> 2012-05-01 | C134: =OFFSET(InputPriceData!G$15,CalculationsAndCharts!$A134+$A$11,0,1,1) -> 21821400 | D134: =OFFSET(InputPriceData!C$15,CalculationsAndCharts!$A134+$A$11,IF($C$7,7,0),1,1) -> 568.84 | E134: =OFFSET(InputPriceData!D$15,CalculationsAndCharts!$A134+$A$11,IF($C$7,7,0),1,1) -> 580.38 | F134: =OFFSET(InputPriceData!E$15,CalculationsAndCharts!$A134+$A$11,IF($C$7,7,0),1,1) -> 565.27 | G134: =OFFSET(InputPriceData!F$15,CalculationsAndCharts!$A134+$A$11,IF($C$7,7,0),1,1) -> 566.15 | J134: 566.15 | K134: 577.0829527 | L134: 576.6691911 | M134: 0.4137616628 | N134: 4.288738854 | O134: -3.874977191 | P134: 577.46716 | Q134: 572.280362 | R134: 626.0427669 | S134: 573.5941667 | T134: 589.1680769 | U134: -15.57391026 | V134: -6.085911791 | W134: -9.487998465 | X134: 541.83 | Y134: 888.9057143 | Z134: 715.8942857 | AA134: 580.5193671 | AB134: 560.963202 | AC134: 626.8695087 | AD134: 0.4137616628 | AE134: 4.288738854 | AF134: -3.874977191 | AG134: 0 | AH134: -3.874977191
A135: 103 | B135: =OFFSET(InputPriceData!B$15,CalculationsAndCharts!$A135+$A$11,0,1,1) -> 2012-04-30 | C135: =OFFSET(InputPriceData!G$15,CalculationsAndCharts!$A135+$A$11,0,1,1) -> 18076600 | D135: =OFFSET(InputPriceData!C$15,CalculationsAndCharts!$A135+$A$11,IF($C$7,7,0),1,1) -> 581.39 | E135: =OFFSET(InputPriceData!D$15,CalculationsAndCharts!$A135+$A$11,IF($C$7,7,0),1,1) -> 581.97 | F135: =OFFSET(InputPriceData!E$15,CalculationsAndCharts!$A135+$A$11,IF($C$7,7,0),1,1) -> 567 | G135: =OFFSET(InputPriceData!F$15,CalculationsAndCharts!$A135+$A$11,IF($C$7,7,0),1,1) -> 567.95 | J135: 567.95 | K135: 579.0707623 | L135: 577.5107264 | M135: 1.560035965 | N135: 5.257483152 | O135: -3.697447187 | P135: 580.5193671 | Q135: 560.963202 | R135: 626.8695087 | S135: 575.4666667 | T135: 589.6888462 | U135: -14.22217949 | V135: -3.713912175 | W135: -10.50826731 | X135: 596.2742857 | Y135: 913.2257143 | Z135: 803.5008929 | AA135: 583.7086298 | AB135: 548.3938349 | AC135: 625.8876769 | AD135: 1.560035965 | AE135: 5.257483152 | AF135: -3.697447187 | AG135: 0 | AH135: -3.697447187
A136: 104 | B136: =OFFSET(InputPriceData!B$15,CalculationsAndCharts!$A136+$A$11,0,1,1) -> 2012-04-27 | C136: =OFFSET(InputPriceData!G$15,CalculationsAndCharts!$A136+$A$11,0,1,1) -> 14525800 | D136: =OFFSET(InputPriceData!C$15,CalculationsAndCharts!$A136+$A$11,IF($C$7,7,0),1,1) -> 588.46 | E136: =OFFSET(InputPriceData!D$15,CalculationsAndCharts!$A136+$A$11,IF($C$7,7,0),1,1) -> 589.54 | F136: =OFFSET(InputPriceData!E$15,CalculationsAndCharts!$A136+$A$11,IF($C$7,7,0),1,1) -> 584.02 | G136: =OFFSET(InputPriceData!F$15,CalculationsAndCharts!$A136+$A$11,IF($C$7,7,0),1,1) -> 586.45 | J136: 586.45 | K136: 581.0927191 | L136: 578.2755845 | M136: 2.817134642 | N136: 6.181844948 | O136: -3.364710306 | P136: 583.7086298 | Q136: 548.3938349 | R136: 625.8876769 | S136: 578.6108333 | T136: 590.2634615 | U136: -11.65262821 | V136: -1.086845347 | W136: -10.56578286 | X136: 625.2142857 | Y136: 884.9014286 | Z136: 843.7539286 | AA136: 582.4373451 | AB136: 551.135205 | AC136: 639.1738088 | AD136: 2.817134642 | AE136: 6.181844948 | AF136: -3.364710306 | AG136: 0 | AH136: -3.364710306
A137: 105 | B137: =OFFSET(InputPriceData!B$15,CalculationsAndCharts!$A137+$A$11,0,1,1) -> 2012-04-26 | C137: =OFFSET(InputPriceData!G$15,CalculationsAndCharts!$A137+$A$11,0,1,1) -> 19145300 | D137: =OFFSET(InputPriceData!C$15,CalculationsAndCharts!$A137+$A$11,IF($C$7,7,0),1,1) -> 597.41 | E137: =OFFSET(InputPriceData!D$15,CalculationsAndCharts!$A137+$A$11,IF($C$7,7,0),1,1) -> 597.82 | F137: =OFFSET(InputPriceData!E$15,CalculationsAndCharts!$A137+$A$11,IF($C$7,7,0),1,1) -> 585.6 | G137: =OFFSET(InputPriceData!F$15,CalculationsAndCharts!$A137+$A$11,IF($C$7,7,0),1,1) -> 591.02 | J137: 591.02 | K137: 580.118668 | L137: 577.6216312 | M137: 2.497036813 | N137: 7.023022525 | O137: -4.525985711 | P137: 582.4373451 | Q137: 551.135205 | R137: 639.1738088 | S137: 580.4908333 | T137: 590.2446154 | U137: -9.753782051 | V137: 1.554600368 | W137: -11.30838242 | X137: 628.7671429 | Y137: 846.1371429 | Z137: 870.2944643 | AA137: 579.6101075 | AB137: 559.7178599 | AC137: 661.9405797 | AD137: 2.497036813 | AE137: 7.023022525 | AF137: -4.525985711 | AG137: 0 | AH137: -4.525985711
A138: 106 | B138: =OFFSET(InputPriceData!B$15,CalculationsAndCharts!$A138+$A$11,0,1,1) -> 2012-04-25 | C138: =OFFSET(InputPriceData!G$15,CalculationsAndCharts!$A138+$A$11,0,1,1) -> 32349200 | D138: =OFFSET(InputPriceData!C$15,CalculationsAndCharts!$A138+$A$11,IF($C$7,7,0),1,1) -> 598.75 | E138: =OFFSET(InputPriceData!D$15,CalculationsAndCharts!$A138+$A$11,IF($C$7,7,0),1,1) -> 601.04 | F138: =OFFSET(InputPriceData!E$15,CalculationsAndCharts!$A138+$A$11,IF($C$7,7,0),1,1) -> 589.37 | G138: =OFFSET(InputPriceData!F$15,CalculationsAndCharts!$A138+$A$11,IF($C$7,7,0),1,1) -> 593.26 | J138: 593.26 | K138: 578.1366077 | L138: 576.5497617 | M138: 1.586845958 | N138: 8.154518953 | O138: -6.567672994 | P138: 579.6101075 | Q138: 559.7178599 | R138: 661.9405797 | S138: 582.1716667 | T138: 590.1796154 | U138: -8.007948718 | V138: 4.381695973 | W138: -12.38964469 | X138: 629.9271429 | Y138: 808.39 | Z138: 899.3216071 | AA138: 575.5484318 | AB138: 573.3677525 | AC138: 696.1730902 | AD138: 1.586845958 | AE138: 8.154518953 | AF138: -6.567672994 | AG138: 0 | AH138: -6.567672994
A139: 107 | B139: =OFFSET(InputPriceData!B$15,CalculationsAndCharts!$A139+$A$11,0,1,1) -> 2012-04-24 | C139: =OFFSET(InputPriceData!G$15,CalculationsAndCharts!$A139+$A$11,0,1,1) -> 38433900 | D139: =OFFSET(InputPriceData!C$15,CalculationsAndCharts!$A139+$A$11,IF($C$7,7,0),1,1) -> 547.17 | E139: =OFFSET(InputPriceData!D$15,CalculationsAndCharts!$A139+$A$11,IF($C$7,7,0),1,1) -> 552.11 | F139: =OFFSET(InputPriceData!E$15,CalculationsAndCharts!$A139+$A$11,IF($C$7,7,0),1,1) -> 539.76 | G139: =OFFSET(InputPriceData!F$15,CalculationsAndCharts!$A139+$A$11,IF($C$7,7,0),1,1) -> 544.9 | J139: 544.9 | K139: 575.3869 | L139: 575.2129427 | M139: 0.1739573257 | N139: 9.796437201 | O139: -9.622479876 | P139: 575.5484318 | Q139: 573.3677525 | R139: 696.1730902 | S139: 584.2975 | T139: 589.8465385 | U139: -5.549038462 | V139: 7.479107145 | W139: -13.02814561 | X139: 648.0585714 | Y139: 771.7228571 | Z139: 937.0042857 | AA139: 583.9868249 | AB139: 542.7193207 | AC139: 695.6808231 | AD139: 0.1739573257 | AE139: 9.796437201 | AF139: -9.622479876 | AG139: 0 | AH139: -9.622479876
A140: 108 | B140: =OFFSET(InputPriceData!B$15,CalculationsAndCharts!$A140+$A$11,0,1,1) -> 2012-04-23 | C140: =OFFSET(InputPriceData!G$15,CalculationsAndCharts!$A140+$A$11,0,1,1) -> 34518900 | D140: =OFFSET(InputPriceData!C$15,CalculationsAndCharts!$A140+$A$11,IF($C$7,7,0),1,1) -> 554.95 | E140: =OFFSET(InputPriceData!D$15,CalculationsAndCharts!$A140+$A$11,IF($C$7,7,0),1,1) -> 560.84 | F140: =OFFSET(InputPriceData!E$15,CalculationsAndCharts!$A140+$A$11,IF($C$7,7,0),1,1) -> 541.34 | G140: =OFFSET(InputPriceData!F$15,CalculationsAndCharts!$A140+$A$11,IF($C$7,7,0),1,1) -> 556.01 | J140: 556.01 | K140: 580.9299727 | L140: 577.6379781 | M140: 3.291994637 | N140: 12.20205717 | O140: -8.910062533 | P140: 583.9868249 | Q140: 542.7193207 | R140: 695.6808231 | S140: 590.2466667 | T140: 590.7926923 | U140: -0.546025641 | V140: 10.73614355 | W140: -11.28216919 | X140: 656.3957143 | Y140: 668.5642857 | Z140: 911.2005357 | AA140: 591.1183473 | AB140: 514.7424958 | AC140: 695.6274977 | AD140: 3.291994637 | AE140: 12.20205717 | AF140: -8.910062533 | AG140: 0 | AH140: -8.910062533
A141: 109 | B141: =OFFSET(InputPriceData!B$15,CalculationsAndCharts!$A141+$A$11,0,1,1) -> 2012-04-20 | C141: =OFFSET(InputPriceData!G$15,CalculationsAndCharts!$A141+$A$11,0,1,1) -> 36820900 | D141: =OFFSET(InputPriceData!C$15,CalculationsAndCharts!$A141+$A$11,IF($C$7,7,0),1,1) -> 575.14 | E141: =OFFSET(InputPriceData!D$15,CalculationsAndCharts!$A141+$A$11,IF($C$7,7,0),1,1) -> 578.3 | F141: =OFFSET(InputPriceData!E$15,CalculationsAndCharts!$A141+$A$11,IF($C$7,7,0),1,1) -> 554.76 | G141: =OFFSET(InputPriceData!F$15,CalculationsAndCharts!$A141+$A$11,IF($C$7,7,0),1,1) -> 557.25 | J141: 557.25 | K141: 585.4608768 | L141: 579.3682163 | M141: 6.09266052 | N141: 14.4295728 | O141: -8.336912284 | P141: 591.1183473 | Q141: 514.7424958 | R141: 695.6274977 | S141: 594.51 | T141: 591.3111538 | U141: 3.198846154 | V141: 13.55668584 | W141: -10.35783969 | X141: 639.4671429 | Y141: 568.1785714 | Z141: 880.3066071 | AA141: 599.3674055 | AB141: 480.8741485 | AC141: 687.886438 | AD141: 6.09266052 | AE141: 14.4295728 | AF141: -8.336912284 | AG141: 0 | AH141: -8.336912284
A142: 110 | B142: =OFFSET(InputPriceData!B$15,CalculationsAndCharts!$A142+$A$11,0,1,1) -> 2012-04-19 | C142: =OFFSET(InputPriceData!G$15,CalculationsAndCharts!$A142+$A$11,0,1,1) -> 29811400 | D142: =OFFSET(InputPriceData!C$15,CalculationsAndCharts!$A142+$A$11,IF($C$7,7,0),1,1) -> 583.75 | E142: =OFFSET(InputPriceData!D$15,CalculationsAndCharts!$A142+$A$11,IF($C$7,7,0),1,1) -> 588.14 | F142: =OFFSET(InputPriceData!E$15,CalculationsAndCharts!$A142+$A$11,IF($C$7,7,0),1,1) -> 568.48 | G142: =OFFSET(InputPriceData!F$15,CalculationsAndCharts!$A142+$A$11,IF($C$7,7,0),1,1) -> 571.32 | J142: 571.32 | K142: 590.5901272 | L142: 581.1376736 | M142: 9.452453548 | N142: 16.51380087 | O142: -7.061347326 | P142: 599.3674055 | Q142: 480.8741485 | R142: 687.886438 | S142: 599.0766667 | T142: 591.9323077 | U142: 7.144358974 | V142: 16.14614577 | W142: -9.001786792 | X142: 645.1785714 | Y142: 485.9614286 | Z142: 860.0369643 | AA142: 605.3951501 | AB142: 452.826743 | AC142: 681.9687907 | AD142: 9.452453548 | AE142: 16.51380087 | AF142: -7.061347326 | AG142: 0 | AH142: -7.061347326
A143: 111 | B143: =OFFSET(InputPriceData!B$15,CalculationsAndCharts!$A143+$A$11,0,1,1) -> 2012-04-18 | C143: =OFFSET(InputPriceData!G$15,CalculationsAndCharts!$A143+$A$11,0,1,1) -> 34090400 | D143: =OFFSET(InputPriceData!C$15,CalculationsAndCharts!$A143+$A$11,IF($C$7,7,0),1,1) -> 596.87 | E143: =OFFSET(InputPriceData!D$15,CalculationsAndCharts!$A143+$A$11,IF($C$7,7,0),1,1) -> 603.22 | F143: =OFFSET(InputPriceData!E$15,CalculationsAndCharts!$A143+$A$11,IF($C$7,7,0),1,1) -> 586.16 | G143: =OFFSET(InputPriceData!F$15,CalculationsAndCharts!$A143+$A$11,IF($C$7,7,0),1,1) -> 591.64 | J143: 591.64 | K143: 594.0937867 | L143: 581.9230875 | M143: 12.17069914 | N143: 18.27913771 | O143: -6.108438562 | P143: 605.3951501 | Q143: 452.826743 | R143: 681.9687907 | S143: 601.6041667 | T143: 591.2088462 | U143: 10.39532051 | V143: 18.39659246 | W143: -8.001271952 | X143: 643.77 | Y143: 412.1028571 | Z143: 839.2405357 | AA143: 606.9773966 | AB143: 439.0715929 | AC143: 687.3570507 | AD143: 12.17069914 | AE143: 18.27913771 | AF143: -6.108438562 | AG143: 0 | AH143: -6.108438562
A144: 112 | B144: =OFFSET(InputPriceData!B$15,CalculationsAndCharts!$A144+$A$11,0,1,1) -> 2012-04-17 | C144: =OFFSET(InputPriceData!G$15,CalculationsAndCharts!$A144+$A$11,0,1,1) -> 36626000 | D144: =OFFSET(InputPriceData!C$15,CalculationsAndCharts!$A144+$A$11,IF($C$7,7,0),1,1) -> 563.05 | E144: =OFFSET(InputPriceData!D$15,CalculationsAndCharts!$A144+$A$11,IF($C$7,7,0),1,1) -> 593.26 | F144: =OFFSET(InputPriceData!E$15,CalculationsAndCharts!$A144+$A$11,IF($C$7,7,0),1,1) -> 556.22 | G144: =OFFSET(InputPriceData!F$15,CalculationsAndCharts!$A144+$A$11,IF($C$7,7,0),1,1) -> 592.97 | J144: 592.97 | K144: 594.5399297 | L144: 581.1457345 | M144: 13.39419517 | N144: 19.80624735 | O144: -6.412052176 | P144: 606.9773966 | Q144: 439.0715929 | R144: 687.3570507 | S144: 600.8916667 | T144: 589.1015385 | U144: 11.79012821 | V144: 20.39691045 | W144: -8.606782247 | X144: 622.7242857 | Y144: 359.9728571 | Z144: 833.06125 | AA144: 608.4062655 | AB144: 425.0641963 | AC144: 693.4445676 | AD144: 13.39419517 | AE144: 19.80624735 | AF144: -6.412052176 | AG144: 0 | AH144: -6.412052176
A145: 113 | B145: =OFFSET(InputPriceData!B$15,CalculationsAndCharts!$A145+$A$11,0,1,1) -> 2012-04-16 | C145: =OFFSET(InputPriceData!G$15,CalculationsAndCharts!$A145+$A$11,0,1,1) -> 37528100 | D145: =OFFSET(InputPriceData!C$15,CalculationsAndCharts!$A145+$A$11,IF($C$7,7,0),1,1) -> 593.32 | E145: =OFFSET(InputPriceData!D$15,CalculationsAndCharts!$A145+$A$11,IF($C$7,7,0),1,1) -> 593.53 | F145: =OFFSET(InputPriceData!E$15,CalculationsAndCharts!$A145+$A$11,IF($C$7,7,0),1,1) -> 562.38 | G145: =OFFSET(InputPriceData!F$15,CalculationsAndCharts!$A145+$A$11,IF($C$7,7,0),1,1) -> 564.21 | J145: 564.21 | K145: 594.8253714 | L145: 580.1997933 | M145: 14.62557817 | N145: 21.40926039 | O145: -6.78368222 | P145: 608.4062655 | Q145: 425.0641963 | R145: 693.4445676 | S145: 600.9041667 | T145: 586.6876923 | U145: 14.21647436 | V145: 22.54860601 | W145: -8.332131655 | X145: 647.0428571 | Y145: 330.2185714 | Z145: 848.6214286 | AA145: 617.9537124 | AB145: 380.8679308 | AC145: 670.5078776 | AD145: 14.62557817 | AE145: 21.40926039 | AF145: -6.78368222 | AG145: 0 | AH145: -6.78368222
A146: 114 | B146: =OFFSET(InputPriceData!B$15,CalculationsAndCharts!$A146+$A$11,0,1,1) -> 2012-04-13 | C146: =OFFSET(InputPriceData!G$15,CalculationsAndCharts!$A146+$A$11,0,1,1) -> 30701600 | D146: =OFFSET(InputPriceData!C$15,CalculationsAndCharts!$A146+$A$11,IF($C$7,7,0),1,1) -> 606.98 | E146: =OFFSET(InputPriceData!D$15,CalculationsAndCharts!$A146+$A$11,IF($C$7,7,0),1,1) -> 607.56 | F146: =OFFSET(InputPriceData!E$15,CalculationsAndCharts!$A146+$A$11,IF($C$7,7,0),1,1) -> 586.95 | G146: =OFFSET(InputPriceData!F$15,CalculationsAndCharts!$A146+$A$11,IF($C$7,7,0),1,1) -> 588.62 | J146: 588.62 | K146: 600.3918026 | L146: 581.4789767 | M146: 18.91282588 | N146: 23.10518095 | O146: -4.192355066 | P146: 617.9537124 | Q146: 380.8679308 | R146: 670.5078776 | S146: 603.9425 | T146: 585.2607692 | U146: 18.68173077 | V146: 24.63163893 | W146: -5.949908158 | X146: 663.7214286 | Y146: 247.3857143 | Z146: 808.3680357 | AA146: 622.6119633 | AB146: 351.5342184 | AC146: 654.3127066 | AD146: 18.91282588 | AE146: 23.10518095 | AF146: -4.192355066 | AG146: 0 | AH146: -4.192355066
A147: 115 | B147: =OFFSET(InputPriceData!B$15,CalculationsAndCharts!$A147+$A$11,0,1,1) -> 2012-04-12 | C147: =OFFSET(InputPriceData!G$15,CalculationsAndCharts!$A147+$A$11,0,1,1) -> 21940600 | D147: =OFFSET(InputPriceData!C$15,CalculationsAndCharts!$A147+$A$11,IF($C$7,7,0),1,1) -> 607.85 | E147: =OFFSET(InputPriceData!D$15,CalculationsAndCharts!$A147+$A$11,IF($C$7,7,0),1,1) -> 614.01 | F147: =OFFSET(InputPriceData!E$15,CalculationsAndCharts!$A147+$A$11,IF($C$7,7,0),1,1) -> 603.47 | G147: =OFFSET(InputPriceData!F$15,CalculationsAndCharts!$A147+$A$11,IF($C$7,7,0),1,1) -> 605.68 | J147: 605.68 | K147: 602.5321304 | L147: 580.9076949 | M147: 21.62443549 | N147: 24.15326971 | O147: -2.528834224 | P147: 622.6119633 | Q147: 351.5342184 | R147: 654.3127066 | S147: 604.6916667 | T147: 582.4723077 | U147: 22.21935897 | V147: 26.11911597 | W147: -3.899756993 | X147: 667.4585714 | Y147: 172.2842857 | Z147: 764.3208929 | AA147: 623.3483932 | AB147: 334.6022551 | AC147: 645.3059291 | AD147: 21.62443549 | AE147: 24.15326971 | AF147: -2.528834224 | AG147: 0 | AH147: -2.528834224
A148: 116 | B148: =OFFSET(InputPriceData!B$15,CalculationsAndCharts!$A148+$A$11,0,1,1) -> 2012-04-11 | C148: =OFFSET(InputPriceData!G$15,CalculationsAndCharts!$A148+$A$11,0,1,1) -> 24879100 | D148: =OFFSET(InputPriceData!C$15,CalculationsAndCharts!$A148+$A$11,IF($C$7,7,0),1,1) -> 618.74 | E148: =OFFSET(InputPriceData!D$15,CalculationsAndCharts!$A148+$A$11,IF($C$7,7,0),1,1) -> 619.39 | F148: =OFFSET(InputPriceData!E$15,CalculationsAndCharts!$A148+$A$11,IF($C$7,7,0),1,1) -> 606.23 | G148: =OFFSET(InputPriceData!F$15,CalculationsAndCharts!$A148+$A$11,IF($C$7,7,0),1,1) -> 609.01 | J148: 609.01 | K148: 601.9597904 | L148: 578.9259105 | M148: 23.03387996 | N148: 24.78547827 | O148: -1.751598304 | P148: 623.3483932 | Q148: 334.6022551 | R148: 645.3059291 | S148: 603.4116667 | T148: 579.0119231 | U148: 24.39974359 | V148: 27.09405522 | W148: -2.694311626 | X148: 654.2714286 | Y148: 110.5057143 | Z148: 726.3025 | AA148: 623.1110599 | AB148: 320.2638619 | AC148: 636.4569198 | AD148: 23.03387996 | AE148: 24.78547827 | AF148: -1.751598304 | AG148: 0 | AH148: -1.751598304
A149: 117 | B149: =OFFSET(InputPriceData!B$15,CalculationsAndCharts!$A149+$A$11,0,1,1) -> 2012-04-10 | C149: =OFFSET(InputPriceData!G$15,CalculationsAndCharts!$A149+$A$11,0,1,1) -> 31775900 | D149: =OFFSET(InputPriceData!C$15,CalculationsAndCharts!$A149+$A$11,IF($C$7,7,0),1,1) -> 622.36 | E149: =OFFSET(InputPriceData!D$15,CalculationsAndCharts!$A149+$A$11,IF($C$7,7,0),1,1) -> 626.32 | F149: =OFFSET(InputPriceData!E$15,CalculationsAndCharts!$A149+$A$11,IF($C$7,7,0),1,1) -> 608.82 | G149: =OFFSET(InputPriceData!F$15,CalculationsAndCharts!$A149+$A$11,IF($C$7,7,0),1,1) -> 611.19 | J149: 611.19 | K149: 600.6779341 | L149: 576.5191833 | M149: 24.15875084 | N149: 25.22337784 | O149: -1.064627003 | P149: 623.1110599 | Q149: 320.2638619 | R149: 636.4569198 | S149: 600.9683333 | T149: 575.5319231 | U149: 25.43641026 | V149: 27.76763312 | W149: -2.331222866 | X149: 632.1128571 | Y149: 65.24428571 | Z149: 705.1425 | AA149: 622.0005572 | AB149: 308.342802 | AC149: 627.8723249 | AD149: 24.15875084 | AE149: 25.22337784 | AF149: -1.064627003 | AG149: 0 | AH149: -1.064627003
A150: 118 | B150: =OFFSET(InputPriceData!B$15,CalculationsAndCharts!$A150+$A$11,0,1,1) -> 2012-04-09 | C150: =OFFSET(InputPriceData!G$15,CalculationsAndCharts!$A150+$A$11,0,1,1) -> 21340600 | D150: =OFFSET(InputPriceData!C$15,CalculationsAndCharts!$A150+$A$11,IF($C$7,7,0),1,1) -> 608.95 | E150: =OFFSET(InputPriceData!D$15,CalculationsAndCharts!$A150+$A$11,IF($C$7,7,0),1,1) -> 622.28 | F150: =OFFSET(InputPriceData!E$15,CalculationsAndCharts!$A150+$A$11,IF($C$7,7,0),1,1) -> 608.14 | G150: =OFFSET(InputPriceData!F$15,CalculationsAndCharts!$A150+$A$11,IF($C$7,7,0),1,1) -> 618.77 | J150: 618.77 | K150: 598.7666494 | L150: 573.745518 | M150: 25.02113147 | N150: 25.48953459 | O150: -0.4684031199 | P150: 622.0005572 | Q150: 308.342802 | R150: 627.8723249 | S150: 598.61 | T150: 572.4176923 | U150: 26.19230769 | V150: 28.35043884 | W150: -2.158131146 | X150: 628.0357143 | Y150: 44.32142857 | Z150: 706.0944643 | AA150: 618.3310712 | AB150: 305.1122447 | AC150: 626.1097096 | AD150: 25.02113147 | AE150: 25.48953459 | AF150: -0.4684031199 | AG150: 0 | AH150: -0.4684031199
A151: 119 | B151: =OFFSET(InputPriceData!B$15,CalculationsAndCharts!$A151+$A$11,0,1,1) -> 2012-04-05 | C151: =OFFSET(InputPriceData!G$15,CalculationsAndCharts!$A151+$A$11,0,1,1) -> 22903500 | D151: =OFFSET(InputPriceData!C$15,CalculationsAndCharts!$A151+$A$11,IF($C$7,7,0),1,1) -> 609.77 | E151: =OFFSET(InputPriceData!D$15,CalculationsAndCharts!$A151+$A$11,IF($C$7,7,0),1,1) -> 617.24 | F151: =OFFSET(InputPriceData!E$15,CalculationsAndCharts!$A151+$A$11,IF($C$7,7,0),1,1) -> 606.29 | G151: =OFFSET(InputPriceData!F$15,CalculationsAndCharts!$A151+$A$11,IF($C$7,7,0),1,1) -> 616.29 | J151: 616.29 | K151: 595.1296766 | L151: 570.1435594 | M151: 24.98611721 | N151: 25.60663537 | O151: -0.6205181666 | P151: 618.3310712 | Q151: 305.1122447 | R151: 626.1097096 | S151: 595.8758333 | T151: 568.9853846 | U151: 26.89044872 | V151: 28.88997162 | W151: -1.999522907 | X151: 634.3285714 | Y151: 35.05571429 | Z151: 712.4914286 | AA151: 614.3392388 | AB151: 303.0711736 | AC151: 626.0132981 | AD151: 24.98611721 | AE151: 25.60663537 | AF151: -0.6205181666 | AG151: 0 | AH151: -0.6205181666
A152: 120 | B152: =OFFSET(InputPriceData!B$15,CalculationsAndCharts!$A152+$A$11,0,1,1) -> 2012-04-04 | C152: =OFFSET(InputPriceData!G$15,CalculationsAndCharts!$A152+$A$11,0,1,1) -> 20463600 | D152: =OFFSET(InputPriceData!C$15,CalculationsAndCharts!$A152+$A$11,IF($C$7,7,0),1,1) -> 607.21 | E152: =OFFSET(InputPriceData!D$15,CalculationsAndCharts!$A152+$A$11,IF($C$7,7,0),1,1) -> 608.68 | F152: =OFFSET(InputPriceData!E$15,CalculationsAndCharts!$A152+$A$11,IF($C$7,7,0),1,1) -> 600.06 | G152: =OFFSET(InputPriceData!F$15,CalculationsAndCharts!$A152+$A$11,IF($C$7,7,0),1,1) -> 607.17 | J152: 607.17 | K152: 591.2823451 | L152: 566.4518441 | M152: 24.83050093 | N152: 25.76176492 | O152: -0.9312639864 | P152: 614.3392388 | Q152: 303.0711736 | R152: 626.0132981 | S152: 593.6291667 | T152: 565.5723077 | U152: 28.05685897 | V152: 29.38985235 | W152: -1.332993377 | X152: 642.2842857 | Y152: 17.01714286 | Z152: 704.2317857 | AA152: 611.7930202 | AB152: 295.9019348 | AC152: 621.7625741 | AD152: 24.83050093 | AE152: 25.76176492 | AF152: -0.9312639864 | AG152: 0 | AH152: -0.9312639864
A153: 121 | B153: =OFFSET(InputPriceData!B$15,CalculationsAndCharts!$A153+$A$11,0,1,1) -> 2012-04-03 | C153: =OFFSET(InputPriceData!G$15,CalculationsAndCharts!$A153+$A$11,0,1,1) -> 29805700 | D153: =OFFSET(InputPriceData!C$15,CalculationsAndCharts!$A153+$A$11,IF($C$7,7,0),1,1) -> 610.09 | E153: =OFFSET(InputPriceData!D$15,CalculationsAndCharts!$A153+$A$11,IF($C$7,7,0),1,1) -> 614.86 | F153: =OFFSET(InputPriceData!E$15,CalculationsAndCharts!$A153+$A$11,IF($C$7,7,0),1,1) -> 605.43 | G153: =OFFSET(InputPriceData!F$15,CalculationsAndCharts!$A153+$A$11,IF($C$7,7,0),1,1) -> 612.05 | H153: =IF($A153=$E$25,H$32,NA()) ->  | J153: 612.05 | K153: 588.3936805 | L153: 563.1943917 | M153: 25.19928887 | N153: 25.99458091 | O153: -0.795292046 | P153: 611.7930202 | Q153: 295.9019348 | R153: 621.7625741 | S153: 591.7483333 | T153: 562.2469231 | U153: 29.50141026 | V153: 29.7231007 | W153: -0.2216904397 | X153: 639.3628571 | Y153: -18.09714286 | Z153: 671.8901786 | AA153: 607.1272209 | AB153: 296.1589146 | AC153: 624.5119423 | AD153: 25.19928887 | AE153: 25.99458091 | AF153: -0.795292046 | AG153: 0 | AH153: -0.795292046
A154: 122 | B154: =OFFSET(InputPriceData!B$15,CalculationsAndCharts!$A154+$A$11,0,1,1) -> 2012-04-02 | C154: =OFFSET(InputPriceData!G$15,CalculationsAndCharts!$A154+$A$11,0,1,1) -> 21369700 | D154: =OFFSET(InputPriceData!C$15,CalculationsAndCharts!$A154+$A$11,IF($C$7,7,0),1,1) -> 585.31 | E154: =OFFSET(InputPriceData!D$15,CalculationsAndCharts!$A154+$A$11,IF($C$7,7,0),1,1) -> 601.79 | F154: =OFFSET(InputPriceData!E$15,CalculationsAndCharts!$A154+$A$11,IF($C$7,7,0),1,1) -> 583.9 | G154: =OFFSET(InputPriceData!F$15,CalculationsAndCharts!$A154+$A$11,IF($C$7,7,0),1,1) -> 601.65 | J154: 601.65 | K154: 584.0925316 | L154: 559.285943 | M154: 24.80658854 | N154: 26.19340392 | O154: -1.386815383 | P154: 607.1272209 | Q154: 296.1589146 | R154: 624.5119423 | S154: 588.2025 | T154: 558.3730769 | U154: 29.82942308 | V154: 29.77852331 | W154: 0.05089977092 | X154: 619.36 | Y154: -45.41 | Z154: 638.82 | AA154: 604.1177502 | AB154: 290.6816936 | AC154: 623.3809018 | AD154: 24.80658854 | AE154: 26.19340392 | AF154: -1.386815383 | AG154: 0 | AH154: -1.386815383
A155: 123 | B155: =OFFSET(InputPriceData!B$15,CalculationsAndCharts!$A155+$A$11,0,1,1) -> 2012-03-30 | C155: =OFFSET(InputPriceData!G$15,CalculationsAndCharts!$A155+$A$11,0,1,1) -> 26108500 | D155: =OFFSET(InputPriceData!C$15,CalculationsAndCharts!$A155+$A$11,IF($C$7,7,0),1,1) -> 592.06 | E155: =OFFSET(InputPriceData!D$15,CalculationsAndCharts!$A155+$A$11,IF($C$7,7,0),1,1) -> 593.8 | F155: =OFFSET(InputPriceData!E$15,CalculationsAndCharts!$A155+$A$11,IF($C$7,7,0),1,1) -> 581.52 | G155: =OFFSET(InputPriceData!F$15,CalculationsAndCharts!$A155+$A$11,IF($C$7,7,0),1,1) -> 583.09 | J155: 583.09 | K155: 580.9002646 | L155: 555.8968185 | M155: 25.00344611 | N155: 26.54010777 | O155: -1.53666166 | P155: 604.1177502 | Q155: 290.6816936 | R155: 623.3809018 | S155: 585.5225 | T155: 554.7738462 | U155: 30.74865385 | V155: 29.76579836 | W155: 0.9828554829 | X155: 622.1357143 | Y155: -63.12 | Z155: 608.2089286 | AA155: 605.3699858 | AB155: 269.6539434 | AC155: 607.1689394 | AD155: 25.00344611 | AE155: 26.54010777 | AF155: -1.53666166 | AG155: 0 | AH155: -1.53666166
A156: 124 | B156: =OFFSET(InputPriceData!B$15,CalculationsAndCharts!$A156+$A$11,0,1,1) -> 2012-03-29 | C156: =OFFSET(InputPriceData!G$15,CalculationsAndCharts!$A156+$A$11,0,1,1) -> 21722800 | D156: =OFFSET(InputPriceData!C$15,CalculationsAndCharts!$A156+$A$11,IF($C$7,7,0),1,1) -> 595.96 | E156: =OFFSET(InputPriceData!D$15,CalculationsAndCharts!$A156+$A$11,IF($C$7,7,0),1,1) -> 599.64 | F156: =OFFSET(InputPriceData!E$15,CalculationsAndCharts!$A156+$A$11,IF($C$7,7,0),1,1) -> 590.56 | G156: =OFFSET(InputPriceData!F$15,CalculationsAndCharts!$A156+$A$11,IF($C$7,7,0),1,1) -> 593.12 | J156: 593.12 | K156: 580.5021309 | L156: 553.7213639 | M156: 26.78076692 | N156: 26.92427319 | O156: -0.1435062668 | P156: 605.3699858 | Q156: 269.6539434 | R156: 607.1689394 | S156: 584.715 | T156: 551.6634615 | U156: 33.05153846 | V156: 29.52008449 | W156: 3.531453969 | X156: 634.4114286 | Y156: -102.1657143 | Z156: 548.4569643 | AA156: 603.872294 | AB156: 257.4039576 | AC156: 595.3686919 | AD156: 26.78076692 | AE156: 26.92427319 | AF156: -0.1435062668 | AG156: 0 | AH156: -0.1435062668
A157: 125 | B157: =OFFSET(InputPriceData!B$15,CalculationsAndCharts!$A157+$A$11,0,1,1) -> 2012-03-28 | C157: =OFFSET(InputPriceData!G$15,CalculationsAndCharts!$A157+$A$11,0,1,1) -> 23409300 | D157: =OFFSET(InputPriceData!C$15,CalculationsAndCharts!$A157+$A$11,IF($C$7,7,0),1,1) -> 601.41 | E157: =OFFSET(InputPriceData!D$15,CalculationsAndCharts!$A157+$A$11,IF($C$7,7,0),1,1) -> 604.39 | F157: =OFFSET(InputPriceData!E$15,CalculationsAndCharts!$A157+$A$11,IF($C$7,7,0),1,1) -> 593.56 | G157: =OFFSET(InputPriceData!F$15,CalculationsAndCharts!$A157+$A$11,IF($C$7,7,0),1,1) -> 600.67 | J157: 600.67 | K157: 578.2079728 | L157: 550.569473 | M157: 27.63849978 | N157: 26.96014975 | O157: 0.6783500249 | P157: 603.872294 | Q157: 257.4039576 | R157: 595.3686919 | S157: 581.3308333 | T157: 548.0419231 | U157: 33.28891026 | V157: 28.637221 | W157: 4.651689256 | X157: 598.41 | Y157: -143.4571429 | Z157: 478.0489286 | AA157: 599.7177522 | AB157: 254.2016635 | AC157: 590.0404974 | AD157: 27.63849978 | AE157: 26.96014975 | AF157: 0.6783500249 | AG157: 0.6783500249 | AH157: 0
A158: 126 | B158: =OFFSET(InputPriceData!B$15,CalculationsAndCharts!$A158+$A$11,0,1,1) -> 2012-03-27 | C158: =OFFSET(InputPriceData!G$15,CalculationsAndCharts!$A158+$A$11,0,1,1) -> 21683200 | D158: =OFFSET(InputPriceData!C$15,CalculationsAndCharts!$A158+$A$11,IF($C$7,7,0),1,1) -> 589.54 | E158: =OFFSET(InputPriceData!D$15,CalculationsAndCharts!$A158+$A$11,IF($C$7,7,0),1,1) -> 599.36 | F158: =OFFSET(InputPriceData!E$15,CalculationsAndCharts!$A158+$A$11,IF($C$7,7,0),1,1) -> 589.42 | G158: =OFFSET(InputPriceData!F$15,CalculationsAndCharts!$A158+$A$11,IF($C$7,7,0),1,1) -> 597.61 | J158: 597.61 | K158: 574.1239679 | L158: 546.5614309 | M158: 27.56253699 | N158: 26.79056225 | O158: 0.7719747464 | P158: 599.7177522 | Q158: 254.2016635 | R158: 590.0404974 | S158: 576.0125 | T158: 544.1976923 | U158: 31.81480769 | V158: 27.47429869 | W158: 4.340509006 | X158: 567.8185714 | Y158: -141.1971429 | Z158: 448.99375 | AA158: 595.2745697 | AB158: 252.0939113 | AC158: 585.5134314 | AD158: 27.56253699 | AE158: 26.79056225 | AF158: 0.7719747464 | AG158: 0.7719747464 | AH158: 0
A159: 127 | B159: =OFFSET(InputPriceData!B$15,CalculationsAndCharts!$A159+$A$11,0,1,1) -> 2012-03-26 | C159: =OFFSET(InputPriceData!G$15,CalculationsAndCharts!$A159+$A$11,0,1,1) -> 21276500 | D159: =OFFSET(InputPriceData!C$15,CalculationsAndCharts!$A159+$A$11,IF($C$7,7,0),1,1) -> 583.33 | E159: =OFFSET(InputPriceData!D$15,CalculationsAndCharts!$A159+$A$11,IF($C$7,7,0),1,1) -> 590.49 | F159: =OFFSET(InputPriceData!E$15,CalculationsAndCharts!$A159+$A$11,IF($C$7,7,0),1,1) -> 578.92 | G159: =OFFSET(InputPriceData!F$15,CalculationsAndCharts!$A159+$A$11,IF($C$7,7,0),1,1) -> 590.32 | J159: 590.32 | K159: 569.8537802 | L159: 542.4775454 | M159: 27.37623486 | N159: 26.59756856 | O159: 0.7786663041 | P159: 595.2745697 | Q159: 252.0939113 | R159: 585.5134314 | S159: 570.3958333 | T159: 539.995 | U159: 30.40083333 | V159: 26.38917143 | W159: 4.011661899 | X159: 566.0985714 | Y159: -111.4057143 | Z159: 453.1844643 | AA159: 591.652114 | AB159: 247.1393415 | AC159: 578.1185771 | AD159: 27.37623486 | AE159: 26.59756856 | AF159: 0.7786663041 | AG159: 0.7786663041 | AH159: 0
A160: 128 | B160: =OFFSET(InputPriceData!B$15,CalculationsAndCharts!$A160+$A$11,0,1,1) -> 2012-03-23 | C160: =OFFSET(InputPriceData!G$15,CalculationsAndCharts!$A160+$A$11,0,1,1) -> 15374600 | D160: =OFFSET(InputPriceData!C$15,CalculationsAndCharts!$A160+$A$11,IF($C$7,7,0),1,1) -> 584.01 | E160: =OFFSET(InputPriceData!D$15,CalculationsAndCharts!$A160+$A$11,IF($C$7,7,0),1,1) -> 585.28 | F160: =OFFSET(InputPriceData!E$15,CalculationsAndCharts!$A160+$A$11,IF($C$7,7,0),1,1) -> 578.09 | G160: =OFFSET(InputPriceData!F$15,CalculationsAndCharts!$A160+$A$11,IF($C$7,7,0),1,1) -> 579.69 | J160: =INDEX(D160:G160,$K$8) -> 579.69 | K160: 566.1326494 | L160: 538.650149 | M160: 27.48250037 | N160: 26.40290198 | O160: 1.079598383 | P160: 591.652114 | Q160: 247.1393415 | R160: 578.1185771 | S160: 565.1283333 | T160: 536.0761538 | U160: 29.05217949 | V160: 25.38625596 | W160: 3.665923527 | X160: 560.2642857 | Y160: -87.18428571 | Z160: 456.5841071 | AA160: 589.9469124 | AB160: 235.1772276 | AC160: 562.7730789 | AD160: 27.48250037 | AE160: 26.40290198 | AF160: 1.079598383 | AG160: 1.079598383 | AH160: 0
A161: 129 | B161: =OFFSET(InputPriceData!B$15,CalculationsAndCharts!$A161+$A$11,0,1,1) -> 2012-03-22 | C161: =OFFSET(InputPriceData!G$15,CalculationsAndCharts!$A161+$A$11,0,1,1) -> 22281100 | D161: =OFFSET(InputPriceData!C$15,CalculationsAndCharts!$A161+$A$11,IF($C$7,7,0),1,1) -> 581.37 | E161: =OFFSET(InputPriceData!D$15,CalculationsAndCharts!$A161+$A$11,IF($C$7,7,0),1,1) -> 587.91 | F161: =OFFSET(InputPriceData!E$15,CalculationsAndCharts!$A161+$A$11,IF($C$7,7,0),1,1) -> 579.18 | G161: =OFFSET(InputPriceData!F$15,CalculationsAndCharts!$A161+$A$11,IF($C$7,7,0),1,1) -> 582.89 | J161: 582.89 | K161: 563.6676765 | L161: 535.3669609 | M161: 28.3007156 | N161: 26.13300239 | O161: 2.167713216 | P161: =(K161*$C$17-L161*$C$18)/($C$17-$C$18) -> 589.9469124 | Q161: =(0+L161*$D$18-K161*$D$17)/($C$17-$C$18) -> 235.1772276 | R161: =(N161-K161*$D$17+L161*$D$18)/($C$17-$C$18) -> 562.7730789 | S161: 559.8308333 | T161: 532.3961538 | U161: 27.43467949 | V161: 24.46977508 | W161: 2.964904409 | X161: =($A$17*OFFSET(J161,$A$18-1,0,1,1)-$A$18*OFFSET(J161,$A$17-1,0,1,1))/($A$17-$A$18) -> 543.6428571 | Y161: =($F$17*U161+$A$17*OFFSET(J161,$A$18-1,0,1,1)-$A$18*OFFSET(J161,$A$17-1,0,1,1))/($A$17-$A$18) -> -67.75857143 | Z161: =(U161*($F$20-$F$17)-$F$20*AVERAGE(OFFSET(U161,0,0,$A$19,1))-OFFSET(J161,$A$17-1,0,1,1)*($F$19-$A$18)+OFFSET(J161,$A$18-1,0,1,1)*($F$18-$A$17)+$F$17*OFFSET(U161,$A$19-1,0,1,1))/($F$18-$F$19-$A$17+$A$18) -> 457.6244643 | AA161: =IF($K$12=1,IF($K$16=1,P162,P161),IF($K$16=1,X162,X161)) -> 586.7369001 | AB161: =IF($K$12=1,IF($K$16=1,Q162,Q161),IF($K$16=1,Y162,Y161)) -> 228.1203151 | AC161: =IF($K$12=1,IF($K$16=1,R162,R161),IF($K$16=1,Z162,Z161)) -> 548.9227081 | AD161: =IF($K$12=1,M161,U161) -> 28.3007156 | AE161: =IF($K$12=1,N161,V161) -> 26.13300239 | AF161: =IF($K$12=1,O161,W161) -> 2.167713216 | AG161: =IF(AF161>0,AF161,0) -> 2.167713216 | AH161: =IF(AF161>0,0,AF161) -> 0
A162: 130 | B162: =OFFSET(InputPriceData!B$15,CalculationsAndCharts!$A162+$A$11,0,1,1) -> 2012-03-21 | C162: =OFFSET(InputPriceData!G$15,CalculationsAndCharts!$A162+$A$11,0,1,1) -> 23001500 | D162: =OFFSET(InputPriceData!C$15,CalculationsAndCharts!$A162+$A$11,IF($C$7,7,0),1,1) -> 586.19 | E162: =OFFSET(InputPriceData!D$15,CalculationsAndCharts!$A162+$A$11,IF($C$7,7,0),1,1) -> 592.91 | F162: =OFFSET(InputPriceData!E$15,CalculationsAndCharts!$A162+$A$11,IF($C$7,7,0),1,1) -> 584.9 | G162: =OFFSET(InputPriceData!F$15,CalculationsAndCharts!$A162+$A$11,IF($C$7,7,0),1,1) -> 585.96 | J162: 585.96 | K162: =$C$17*$J162+$D$17*K163 -> 560.1727086 | L162: =$C$18*$J162+$D$18*L163 -> 531.5651178 | M162: =K162-L162 -> 28.60759082 | N162: =$C$19*$M162+$D$19*N163 -> 25.59107408 | O162: =M162-N162 -> 3.01651674 | P162: 586.7369001 | Q162: 228.1203151 | R162: 548.9227081 | S162: =AVERAGE(OFFSET($J162,0,0,$A$17,1)) -> 554.2325 | T162: =AVERAGE(OFFSET($J162,0,0,$A$18,1)) -> 529.0342308 | U162: =S162-T162 -> 25.19826923 | V162: =$C$19*U162+$D$19*V163 -> 23.72854898 | W162: =U162-V162 -> 1.469720255 | X162: 533.05 | Y162: -28.51142857 | Z162: 483.9739286 | AA162: 581.7353658 | AB162: 227.343415 | AC162: 538.69226 | AD162: 28.60759082 | AE162: 25.59107408 | AF162: 3.01651674 | AG162: 3.01651674 | AH162: 0
A163: 131 | B163: =OFFSET(InputPriceData!B$15,CalculationsAndCharts!$A163+$A$11,0,1,1) -> 2012-03-20 | C163: =OFFSET(InputPriceData!G$15,CalculationsAndCharts!$A163+$A$11,0,1,1) -> 29166500 | D163: =OFFSET(InputPriceData!C$15,CalculationsAndCharts!$A163+$A$11,IF($C$7,7,0),1,1) -> 583.06 | E163: =OFFSET(InputPriceData!D$15,CalculationsAndCharts!$A163+$A$11,IF($C$7,7,0),1,1) -> 590.24 | F163: =OFFSET(InputPriceData!E$15,CalculationsAndCharts!$A163+$A$11,IF($C$7,7,0),1,1) -> 575.25 | G163: =OFFSET(InputPriceData!F$15,CalculationsAndCharts!$A163+$A$11,IF($C$7,7,0),1,1) -> 589.33 | J163: 589.33 | K163: 555.4841102 | L163: 527.2135272 | M163: 28.27058297 | N163: 24.8369449 | O163: 3.433638068 | P163: 581.7353658 | Q163: 227.343415 | R163: 538.69226 | S163: 548.6133333 | T163: 525.2976923 | U163: 23.31564103 | V163: 23.36111891 | W163: -0.04547788689 | X163: 544.0042857 | Y163: 24.39857143 | Z163: 532.2721429 | AA163: 574.481693 | AB163: 234.9380492 | AC163: 535.5261178 | AD163: 28.27058297 | AE163: 24.8369449 | AF163: 3.433638068 | AG163: 3.433638068 | AH163: 0
A164: 132 | B164: =OFFSET(InputPriceData!B$15,CalculationsAndCharts!$A164+$A$11,0,1,1) -> 2012-03-19 | C164: =OFFSET(InputPriceData!G$15,CalculationsAndCharts!$A164+$A$11,0,1,1) -> 32187000 | D164: =OFFSET(InputPriceData!C$15,CalculationsAndCharts!$A164+$A$11,IF($C$7,7,0),1,1) -> 581.94 | E164: =OFFSET(InputPriceData!D$15,CalculationsAndCharts!$A164+$A$11,IF($C$7,7,0),1,1) -> 585.25 | F164: =OFFSET(InputPriceData!E$15,CalculationsAndCharts!$A164+$A$11,IF($C$7,7,0),1,1) -> 572.88 | G164: =OFFSET(InputPriceData!F$15,CalculationsAndCharts!$A164+$A$11,IF($C$7,7,0),1,1) -> 584.6 | J164: 584.6 | K164: 549.330312 | L164: 522.2442094 | M164: 27.08610264 | N164: 23.97853538 | O164: 3.107567258 | P164: 574.481693 | Q164: 234.9380492 | R164: 535.5261178 | S164: 543.6875 | T164: 521.0880769 | U164: 22.59942308 | V164: 23.37248838 | W164: -0.7730653073 | X164: 573.3685714 | Y164: 69.72428571 | Z164: 580.2482143 | AA164: 566.7465443 | AB164: 245.0563562 | AC164: 535.9055309 | AD164: 27.08610264 | AE164: 23.97853538 | AF164: 3.107567258 | AG164: 3.107567258 | AH164: 0
A165: 133 | B165: =OFFSET(InputPriceData!B$15,CalculationsAndCharts!$A165+$A$11,0,1,1) -> 2012-03-16 | C165: =OFFSET(InputPriceData!G$15,CalculationsAndCharts!$A165+$A$11,0,1,1) -> 29481700 | D165: =OFFSET(InputPriceData!C$15,CalculationsAndCharts!$A165+$A$11,IF($C$7,7,0),1,1) -> 568.67 | E165: =OFFSET(InputPriceData!D$15,CalculationsAndCharts!$A165+$A$11,IF($C$7,7,0),1,1) -> 573.03 | F165: =OFFSET(InputPriceData!E$15,CalculationsAndCharts!$A165+$A$11,IF($C$7,7,0),1,1) -> 562.14 | G165: =OFFSET(InputPriceData!F$15,CalculationsAndCharts!$A165+$A$11,IF($C$7,7,0),1,1) -> 569.5 | J165: 569.5 | K165: 542.9176415 | L165: 517.2557461 | M165: 25.66189535 | N165: 23.20164357 | O165: 2.46025178 | P165: 566.7465443 | Q165: 245.0563562 | R165: 535.9055309 | S165: 539.0983333 | T165: 517.0507692 | U165: 22.0475641 | V165: 23.56575471 | W165: -1.518190609 | X165: 572.3014286 | Y165: 80.95571429 | Z165: 598.9089286 | AA165: 561.3064593 | AB165: 247.8098119 | AC165: 530.9487333 | AD165: 25.66189535 | AE165: 23.20164357 | AF165: 2.46025178 | AG165: 2.46025178 | AH165: 0
A166: 134 | B166: =OFFSET(InputPriceData!B$15,CalculationsAndCharts!$A166+$A$11,0,1,1) -> 2012-03-15 | C166: =OFFSET(InputPriceData!G$15,CalculationsAndCharts!$A166+$A$11,0,1,1) -> 41418500 | D166: =OFFSET(InputPriceData!C$15,CalculationsAndCharts!$A166+$A$11,IF($C$7,7,0),1,1) -> 583.15 | E166: =OFFSET(InputPriceData!D$15,CalculationsAndCharts!$A166+$A$11,IF($C$7,7,0),1,1) -> 583.54 | F166: =OFFSET(InputPriceData!E$15,CalculationsAndCharts!$A166+$A$11,IF($C$7,7,0),1,1) -> 562.67 | G166: =OFFSET(InputPriceData!F$15,CalculationsAndCharts!$A166+$A$11,IF($C$7,7,0),1,1) -> 569.49 | J166: 569.49 | K166: 538.0844854 | L166: 513.0762058 | M166: 25.00827956 | N166: 22.58658062 | O166: 2.42169894 | P166: 561.3064593 | Q166: 247.8098119 | R166: 530.9487333 | S166: 535.6025 | T166: 512.9776923 | U166: 22.62480769 | V166: 23.94530236 | W166: -1.320494671 | X166: 582.3642857 | Y166: 78.15428571 | Z166: 606.71875 | AA166: 554.484875 | AB166: 255.9933526 | AC166: 531.5428425 | AD166: 25.00827956 | AE166: 22.58658062 | AF166: 2.42169894 | AG166: 2.42169894 | AH166: 0
A167: 135 | B167: =OFFSET(InputPriceData!B$15,CalculationsAndCharts!$A167+$A$11,0,1,1) -> 2012-03-14 | C167: =OFFSET(InputPriceData!G$15,CalculationsAndCharts!$A167+$A$11,0,1,1) -> 50673000 | D167: =OFFSET(InputPriceData!C$15,CalculationsAndCharts!$A167+$A$11,IF($C$7,7,0),1,1) -> 562.19 | E167: =OFFSET(InputPriceData!D$15,CalculationsAndCharts!$A167+$A$11,IF($C$7,7,0),1,1) -> 578.4 | F167: =OFFSET(InputPriceData!E$15,CalculationsAndCharts!$A167+$A$11,IF($C$7,7,0),1,1) -> 559.61 | G167: =OFFSET(InputPriceData!F$15,CalculationsAndCharts!$A167+$A$11,IF($C$7,7,0),1,1) -> 573.4 | J167: 573.4 | K167: 532.3743918 | L167: 508.5631023 | M167: 23.81128953 | N167: 21.98115589 | O167: 1.830133644 | P167: 554.484875 | Q167: 255.9933526 | R167: 531.5428425 | S167: 531.5375 | T167: 508.6111538 | U167: 22.92634615 | V167: 24.27542603 | W167: -1.349079877 | X167: 576.21 | Y167: 65.28 | Z167: 605.1623214 | AA167: 544.9157273 | AB167: 274.9084777 | AC167: 544.7224594 | AD167: 23.81128953 | AE167: 21.98115589 | AF167: 1.830133644 | AG167: 1.830133644 | AH167: 0
A168: 136 | B168: =OFFSET(InputPriceData!B$15,CalculationsAndCharts!$A168+$A$11,0,1,1) -> 2012-03-13 | C168: =OFFSET(InputPriceData!G$15,CalculationsAndCharts!$A168+$A$11,0,1,1) -> 24673400 | D168: =OFFSET(InputPriceData!C$15,CalculationsAndCharts!$A168+$A$11,IF($C$7,7,0),1,1) -> 542.24 | E168: =OFFSET(InputPriceData!D$15,CalculationsAndCharts!$A168+$A$11,IF($C$7,7,0),1,1) -> 552.59 | F168: =OFFSET(InputPriceData!E$15,CalculationsAndCharts!$A168+$A$11,IF($C$7,7,0),1,1) -> 540.5 | G168: =OFFSET(InputPriceData!F$15,CalculationsAndCharts!$A168+$A$11,IF($C$7,7,0),1,1) -> 552.51 | J168: 552.51 | K168: 524.9151903 | L168: 503.3761505 | M168: 21.53903986 | N168: 21.52362248 | O168: 0.01541738443 | P168: 544.9157273 | Q168: 274.9084777 | R168: 544.7224594 | S168: 526.365 | T168: 503.9126923 | U168: 22.45230769 | V168: 24.612696 | W168: -2.160388308 | X168: 562.8357143 | Y168: 62.47 | Z168: 614.0416071 | AA168: 538.8895684 | AB168: 282.5027503 | AC168: 552.2684151 | AD168: 21.53903986 | AE168: 21.52362248 | AF168: 0.01541738443 | AG168: 0.01541738443 | AH168: 0
A169: 137 | B169: =OFFSET(InputPriceData!B$15,CalculationsAndCharts!$A169+$A$11,0,1,1) -> 2012-03-12 | C169: =OFFSET(InputPriceData!G$15,CalculationsAndCharts!$A169+$A$11,0,1,1) -> 14545800 | D169: =OFFSET(InputPriceData!C$15,CalculationsAndCharts!$A169+$A$11,IF($C$7,7,0),1,1) -> 533.91 | E169: =OFFSET(InputPriceData!D$15,CalculationsAndCharts!$A169+$A$11,IF($C$7,7,0),1,1) -> 536.85 | F169: =OFFSET(InputPriceData!E$15,CalculationsAndCharts!$A169+$A$11,IF($C$7,7,0),1,1) -> 531.99 | G169: =OFFSET(InputPriceData!F$15,CalculationsAndCharts!$A169+$A$11,IF($C$7,7,0),1,1) -> 536.85 | J169: 536.85 | K169: 519.8979522 | L169: 499.4454425 | M169: 20.4525097 | N169: 21.51976813 | O169: -1.067258428 | P169: 538.8895684 | Q169: 282.5027503 | R169: 552.2684151 | S169: 522.6616667 | T169: 499.8569231 | U169: 22.80474359 | V169: 25.15279308 | W169: -2.348049487 | X169: 560.3642857 | Y169: 52.14428571 | Z169: 618.9275 | AA169: 535.7239681 | AB169: 280.463182 | AC169: 553.5735584 | AD169: 20.4525097 | AE169: 21.51976813 | AF169: -1.067258428 | AG169: 0 | AH169: -1.067258428
A170: 138 | B170: =OFFSET(InputPriceData!B$15,CalculationsAndCharts!$A170+$A$11,0,1,1) -> 2012-03-09 | C170: =OFFSET(InputPriceData!G$15,CalculationsAndCharts!$A170+$A$11,0,1,1) -> 14961400 | D170: =OFFSET(InputPriceData!C$15,CalculationsAndCharts!$A170+$A$11,IF($C$7,7,0),1,1) -> 529.28 | E170: =OFFSET(InputPriceData!D$15,CalculationsAndCharts!$A170+$A$11,IF($C$7,7,0),1,1) -> 532.71 | F170: =OFFSET(InputPriceData!E$15,CalculationsAndCharts!$A170+$A$11,IF($C$7,7,0),1,1) -> 528.21 | G170: =OFFSET(InputPriceData!F$15,CalculationsAndCharts!$A170+$A$11,IF($C$7,7,0),1,1) -> 530.21 | J170: 530.21 | K170: 516.8157617 | L170: 496.4530779 | M170: 20.36268379 | N170: 21.78658274 | O170: -1.423898943 | P170: 535.7239681 | Q170: 280.463182 | R170: 553.5735584 | S170: 519.7758333 | T170: 496.2330769 | U170: 23.54275641 | V170: 25.73980545 | W170: -2.197049039 | X170: 553.2971429 | Y170: 28.63 | Z170: 613.1180357 | AA170: 533.5349442 | AB170: 274.9492139 | AC170: 552.5219879 | AD170: 20.36268379 | AE170: 21.78658274 | AF170: -1.423898943 | AG170: 0 | AH170: -1.423898943
A171: 139 | B171: =OFFSET(InputPriceData!B$15,CalculationsAndCharts!$A171+$A$11,0,1,1) -> 2012-03-08 | C171: =OFFSET(InputPriceData!G$15,CalculationsAndCharts!$A171+$A$11,0,1,1) -> 18444900 | D171: =OFFSET(InputPriceData!C$15,CalculationsAndCharts!$A171+$A$11,IF($C$7,7,0),1,1) -> 520.01 | E171: =OFFSET(InputPriceData!D$15,CalculationsAndCharts!$A171+$A$11,IF($C$7,7,0),1,1) -> 528.08 | F171: =OFFSET(InputPriceData!E$15,CalculationsAndCharts!$A171+$A$11,IF($C$7,7,0),1,1) -> 517.51 | G171: =OFFSET(InputPriceData!F$15,CalculationsAndCharts!$A171+$A$11,IF($C$7,7,0),1,1) -> 527.11 | J171: 527.11 | K171: 514.3804457 | L171: 493.7525241 | M171: 20.62792151 | N171: 22.14255747 | O171: -1.514635965 | P171: 533.5349442 | Q171: 274.9492139 | R171: 552.5219879 | S171: 517.1716667 | T171: 492.9046154 | U171: 24.26705128 | V171: 26.28906771 | W171: -2.022016427 | X171: 546.3514286 | Y171: 5.542857143 | Z171: 606.5996429 | AA171: 531.5493182 | AB171: 268.5242697 | AC171: 550.8438046 | AD171: 20.62792151 | AE171: 22.14255747 | AF171: -1.514635965 | AG171: 0 | AH171: -1.514635965
A172: 140 | B172: =OFFSET(InputPriceData!B$15,CalculationsAndCharts!$A172+$A$11,0,1,1) -> 2012-03-07 | C172: =OFFSET(InputPriceData!G$15,CalculationsAndCharts!$A172+$A$11,0,1,1) -> 28518600 | D172: =OFFSET(InputPriceData!C$15,CalculationsAndCharts!$A172+$A$11,IF($C$7,7,0),1,1) -> 522.06 | E172: =OFFSET(InputPriceData!D$15,CalculationsAndCharts!$A172+$A$11,IF($C$7,7,0),1,1) -> 523.02 | F172: =OFFSET(InputPriceData!E$15,CalculationsAndCharts!$A172+$A$11,IF($C$7,7,0),1,1) -> 508.93 | G172: =OFFSET(InputPriceData!F$15,CalculationsAndCharts!$A172+$A$11,IF($C$7,7,0),1,1) -> 516.12 | J172: 516.12 | K172: 512.0659812 | L172: 491.0839261 | M172: 20.98205515 | N172: 22.52121646 | O172: -1.539161314 | P172: 531.5493182 | Q172: 268.5242697 | R172: 550.8438046 | S172: 514.9725 | T172: 489.7061538 | U172: 25.26634615 | V172: 26.79457182 | W172: -1.528225662 | X172: 549.38 | Y172: -13.69857143 | Z172: 604.3675 | AA172: 531.9876017 | AB172: 253.0949515 | AC172: 540.2381081 | AD172: 20.98205515 | AE172: 22.52121646 | AF172: -1.539161314 | AG172: 0 | AH172: -1.539161314
A173: 141 | B173: =OFFSET(InputPriceData!B$15,CalculationsAndCharts!$A173+$A$11,0,1,1) -> 2012-03-06 | C173: =OFFSET(InputPriceData!G$15,CalculationsAndCharts!$A173+$A$11,0,1,1) -> 28937100 | D173: =OFFSET(InputPriceData!C$15,CalculationsAndCharts!$A173+$A$11,IF($C$7,7,0),1,1) -> 509.29 | E173: =OFFSET(InputPriceData!D$15,CalculationsAndCharts!$A173+$A$11,IF($C$7,7,0),1,1) -> 519.05 | F173: =OFFSET(InputPriceData!E$15,CalculationsAndCharts!$A173+$A$11,IF($C$7,7,0),1,1) -> 502.06 | G173: =OFFSET(InputPriceData!F$15,CalculationsAndCharts!$A173+$A$11,IF($C$7,7,0),1,1) -> 515.71 | H173: =IF($A173=$E$25,H$32,NA()) ->  | J173: 515.71 | K173: 511.3288869 | L173: 489.0810402 | M173: 22.24784674 | N173: 22.90600679 | O173: -0.6581600514 | P173: 531.9876017 | Q173: 253.0949515 | R173: 540.2381081 | S173: 512.6575 | T173: 486.8007692 | U173: 25.85673077 | V173: 27.17662823 | W173: -1.319897462 | X173: 529.2771429 | Y173: -46.95857143 | Z173: 584.4657143 | AA173: 532.4295186 | AB173: 236.8173498 | AC173: 526.0231329 | AD173: 22.24784674 | AE173: 22.90600679 | AF173: -0.6581600514 | AG173: 0 | AH173: -0.6581600514
A174: 142 | B174: =OFFSET(InputPriceData!B$15,CalculationsAndCharts!$A174+$A$11,0,1,1) -> 2012-03-05 | C174: =OFFSET(InputPriceData!G$15,CalculationsAndCharts!$A174+$A$11,0,1,1) -> 28897300 | D174: =OFFSET(InputPriceData!C$15,CalculationsAndCharts!$A174+$A$11,IF($C$7,7,0),1,1) -> 530.45 | E174: =OFFSET(InputPriceData!D$15,CalculationsAndCharts!$A174+$A$11,IF($C$7,7,0),1,1) -> 532.46 | F174: =OFFSET(InputPriceData!E$15,CalculationsAndCharts!$A174+$A$11,IF($C$7,7,0),1,1) -> 511.57 | G174: =OFFSET(InputPriceData!F$15,CalculationsAndCharts!$A174+$A$11,IF($C$7,7,0),1,1) -> 518.53 | J174: 518.53 | K174: 510.5323209 | L174: 486.9507234 | M174: 23.58159751 | N174: 23.07054681 | O174: 0.5110507054 | P174: 532.4295186 | Q174: 236.8173498 | R174: 526.0231329 | S174: 510.3841667 | T174: 483.6965385 | U174: 26.68762821 | V174: 27.5066026 | W174: -0.8189743912 | X174: 534.2271429 | Y174: -60.52571429 | Z174: 580.2373214 | AA174: 531.9710267 | AB174: 222.9178312 | AC174: 510.522018 | AD174: 23.58159751 | AE174: 23.07054681 | AF174: 0.5110507054 | AG174: 0.5110507054 | AH174: 0
A175: 143 | B175: =OFFSET(InputPriceData!B$15,CalculationsAndCharts!$A175+$A$11,0,1,1) -> 2012-03-02 | C175: =OFFSET(InputPriceData!G$15,CalculationsAndCharts!$A175+$A$11,0,1,1) -> 15418300 | D175: =OFFSET(InputPriceData!C$15,CalculationsAndCharts!$A175+$A$11,IF($C$7,7,0),1,1) -> 529.31 | E175: =OFFSET(InputPriceData!D$15,CalculationsAndCharts!$A175+$A$11,IF($C$7,7,0),1,1) -> 531.8 | F175: =OFFSET(InputPriceData!E$15,CalculationsAndCharts!$A175+$A$11,IF($C$7,7,0),1,1) -> 527.63 | G175: =OFFSET(InputPriceData!F$15,CalculationsAndCharts!$A175+$A$11,IF($C$7,7,0),1,1) -> 530.22 | J175: 530.22 | K175: 509.0781974 | L175: 484.4243812 | M175: 24.65381617 | N175: 22.94278413 | O175: 1.711032037 | P175: 531.9710267 | Q175: 222.9178312 | R175: 510.522018 | S175: 507.5075 | T175: 480.385 | U175: 27.1225 | V175: 27.71134619 | W175: -0.5888461941 | X175: 528.2214286 | Y175: -76.22285714 | Z175: 569.2846429 | AA175: 527.9596276 | AB175: 221.1668045 | AC175: 503.4087391 | AD175: 24.65381617 | AE175: 22.94278413 | AF175: 1.711032037 | AG175: 1.711032037 | AH175: 0
A176: 144 | B176: =OFFSET(InputPriceData!B$15,CalculationsAndCharts!$A176+$A$11,0,1,1) -> 2012-03-01 | C176: =OFFSET(InputPriceData!G$15,CalculationsAndCharts!$A176+$A$11,0,1,1) -> 24402500 | D176: =OFFSET(InputPriceData!C$15,CalculationsAndCharts!$A176+$A$11,IF($C$7,7,0),1,1) -> 533.13 | E176: =OFFSET(InputPriceData!D$15,CalculationsAndCharts!$A176+$A$11,IF($C$7,7,0),1,1) -> 533.17 | F176: =OFFSET(InputPriceData!E$15,CalculationsAndCharts!$A176+$A$11,IF($C$7,7,0),1,1) -> 523.99 | G176: =OFFSET(InputPriceData!F$15,CalculationsAndCharts!$A176+$A$11,IF($C$7,7,0),1,1) -> 529.53 | J176: 529.53 | K176: 505.2342333 | L176: 480.7607317 | M176: 24.47350156 | N176: 22.51502612 | O176: 1.95847544 | P176: 527.9596276 | Q176: 221.1668045 | R176: 503.4087391 | S176: 504.6125 | T176: 476.6996154 | U176: 27.91288462 | V176: 27.85855774 | W176: 0.0543268728 | X176: 547.8342857 | Y176: -74.22428571 | Z176: 572.4826786 | AA176: 523.0631927 | AB176: 222.7371769 | AC176: 498.8413893 | AD176: 24.47350156 | AE176: 22.51502612 | AF176: 1.95847544 | AG176: 1.95847544 | AH176: 0
A177: 145 | B177: =OFFSET(InputPriceData!B$15,CalculationsAndCharts!$A177+$A$11,0,1,1) -> 2012-02-29 | C177: =OFFSET(InputPriceData!G$15,CalculationsAndCharts!$A177+$A$11,0,1,1) -> 34000400 | D177: =OFFSET(InputPriceData!C$15,CalculationsAndCharts!$A177+$A$11,IF($C$7,7,0),1,1) -> 526.69 | E177: =OFFSET(InputPriceData!D$15,CalculationsAndCharts!$A177+$A$11,IF($C$7,7,0),1,1) -> 532.58 | F177: =OFFSET(InputPriceData!E$15,CalculationsAndCharts!$A177+$A$11,IF($C$7,7,0),1,1) -> 521 | G177: =OFFSET(InputPriceData!F$15,CalculationsAndCharts!$A177+$A$11,IF($C$7,7,0),1,1) -> 527.55 | J177: 527.55 | K177: 500.8168212 | L177: 476.8591903 | M177: 23.95763089 | N177: 22.02540726 | O177: 1.932223634 | P177: 523.0631927 | Q177: 222.7371769 | R177: 498.8413893 | S177: 501.2191667 | T177: 472.0588462 | U177: 29.16032051 | V177: 27.84497602 | W177: 1.315344488 | X177: 557.33 | Y177: -92.52857143 | Z177: 549.4301786 | AA177: 517.4548239 | AB177: 227.2239842 | AC177: 497.2727457 | AD177: 23.95763089 | AE177: 22.02540726 | AF177: 1.932223634 | AG177: 1.932223634 | AH177: 0
A178: 146 | B178: =OFFSET(InputPriceData!B$15,CalculationsAndCharts!$A178+$A$11,0,1,1) -> 2012-02-28 | C178: =OFFSET(InputPriceData!G$15,CalculationsAndCharts!$A178+$A$11,0,1,1) -> 21442400 | D178: =OFFSET(InputPriceData!C$15,CalculationsAndCharts!$A178+$A$11,IF($C$7,7,0),1,1) -> 513.46 | E178: =OFFSET(InputPriceData!D$15,CalculationsAndCharts!$A178+$A$11,IF($C$7,7,0),1,1) -> 520.71 | F178: =OFFSET(InputPriceData!E$15,CalculationsAndCharts!$A178+$A$11,IF($C$7,7,0),1,1) -> 511.41 | G178: =OFFSET(InputPriceData!F$15,CalculationsAndCharts!$A178+$A$11,IF($C$7,7,0),1,1) -> 520.71 | J178: 520.71 | K178: 495.9562432 | L178: 472.8039255 | M178: 23.1523177 | N178: 21.54235135 | O178: 1.609966352 | P178: 517.4548239 | Q178: 227.2239842 | R178: 497.2727457 | S178: 497.2466667 | T178: 467.7561538 | U178: 29.49051282 | V178: 27.5161399 | W178: 1.974372918 | X178: 534.9085714 | Y178: -122.3085714 | Z178: 509.3489286 | AA178: 512.3336722 | AB178: 230.4791602 | AC178: 495.4824022 | AD178: 23.1523177 | AE178: 21.54235135 | AF178: 1.609966352 | AG178: 1.609966352 | AH178: 0
A179: 147 | B179: =OFFSET(InputPriceData!B$15,CalculationsAndCharts!$A179+$A$11,0,1,1) -> 2012-02-27 | C179: =OFFSET(InputPriceData!G$15,CalculationsAndCharts!$A179+$A$11,0,1,1) -> 19556500 | D179: =OFFSET(InputPriceData!C$15,CalculationsAndCharts!$A179+$A$11,IF($C$7,7,0),1,1) -> 507 | E179: =OFFSET(InputPriceData!D$15,CalculationsAndCharts!$A179+$A$11,IF($C$7,7,0),1,1) -> 513.99 | F179: =OFFSET(InputPriceData!E$15,CalculationsAndCharts!$A179+$A$11,IF($C$7,7,0),1,1) -> 502.11 | G179: =OFFSET(InputPriceData!F$15,CalculationsAndCharts!$A179+$A$11,IF($C$7,7,0),1,1) -> 511.33 | J179: 511.33 | K179: 491.4555602 | L179: 468.9714396 | M179: 22.48412061 | N179: 21.13985976 | O179: 1.344260848 | P179: 512.3336722 | Q179: 230.4791602 | R179: 495.4824022 | S179: 493.8233333 | T179: 463.4503846 | U179: 30.37294872 | V179: 27.02254667 | W179: 3.350402045 | X179: 540.3757143 | Y179: -136.5071429 | Z179: 481.8332143 | AA179: 508.5113487 | AB179: 229.4754881 | AC179: 490.2659126 | AD179: 22.48412061 | AE179: 21.13985976 | AF179: 1.344260848 | AG179: 1.344260848 | AH179: 0
A180: 148 | B180: =OFFSET(InputPriceData!B$15,CalculationsAndCharts!$A180+$A$11,0,1,1) -> 2012-02-24 | C180: =OFFSET(InputPriceData!G$15,CalculationsAndCharts!$A180+$A$11,0,1,1) -> 14824000 | D180: =OFFSET(InputPriceData!C$15,CalculationsAndCharts!$A180+$A$11,IF($C$7,7,0),1,1) -> 505.41 | E180: =OFFSET(InputPriceData!D$15,CalculationsAndCharts!$A180+$A$11,IF($C$7,7,0),1,1) -> 508.55 | F180: =OFFSET(InputPriceData!E$15,CalculationsAndCharts!$A180+$A$11,IF($C$7,7,0),1,1) -> 504.4 | G180: =OFFSET(InputPriceData!F$15,CalculationsAndCharts!$A180+$A$11,IF($C$7,7,0),1,1) -> 508.07 | J180: 508.07 | K180: 487.8420256 | L180: 465.5827547 | M180: 22.25927093 | N180: 20.80379455 | O180: 1.45547638 | P180: 508.5113487 | Q180: 229.4754881 | R180: 490.2659126 | S180: 489.8458333 | T180: 459.7842308 | U180: 30.06160256 | V180: 26.18494616 | W180: 3.876656403 | X180: 504.3914286 | Y180: -165.5528571 | Z180: 434.84375 | AA180: 504.5746179 | AB180: 229.0341394 | AC180: 485.2632049 | AD180: 22.25927093 | AE180: 20.80379455 | AF180: 1.45547638 | AG180: 1.45547638 | AH180: 0
A181: 149 | B181: =OFFSET(InputPriceData!B$15,CalculationsAndCharts!$A181+$A$11,0,1,1) -> 2012-02-23 | C181: =OFFSET(InputPriceData!G$15,CalculationsAndCharts!$A181+$A$11,0,1,1) -> 20286700 | D181: =OFFSET(InputPriceData!C$15,CalculationsAndCharts!$A181+$A$11,IF($C$7,7,0),1,1) -> 500.95 | E181: =OFFSET(InputPriceData!D$15,CalculationsAndCharts!$A181+$A$11,IF($C$7,7,0),1,1) -> 503.62 | F181: =OFFSET(InputPriceData!E$15,CalculationsAndCharts!$A181+$A$11,IF($C$7,7,0),1,1) -> 495.52 | G181: =OFFSET(InputPriceData!F$15,CalculationsAndCharts!$A181+$A$11,IF($C$7,7,0),1,1) -> 502.22 | J181: 502.22 | K181: 484.1642121 | L181: 462.1837751 | M181: 21.98043703 | N181: 20.43992546 | O181: 1.540511579 | P181: 504.5746179 | Q181: 229.0341394 | R181: 485.2632049 | S181: 485.5033333 | T181: 456.2942308 | U181: 29.20910256 | V181: 25.21578206 | W181: 3.993320503 | X181: 489.0714286 | Y181: -161.8742857 | Z181: 416.4776786 | AA181: 501.2174872 | AB181: 226.6795215 | AC181: 478.0807337 | AD181: 21.98043703 | AE181: 20.43992546 | AF181: 1.540511579 | AG181: 1.540511579 | AH181: 0
A182: 150 | B182: =OFFSET(InputPriceData!B$15,CalculationsAndCharts!$A182+$A$11,0,1,1) -> 2012-02-22 | C182: =OFFSET(InputPriceData!G$15,CalculationsAndCharts!$A182+$A$11,0,1,1) -> 17260800 | D182: =OFFSET(InputPriceData!C$15,CalculationsAndCharts!$A182+$A$11,IF($C$7,7,0),1,1) -> 499 | E182: =OFFSET(InputPriceData!D$15,CalculationsAndCharts!$A182+$A$11,IF($C$7,7,0),1,1) -> 501.34 | F182: =OFFSET(InputPriceData!E$15,CalculationsAndCharts!$A182+$A$11,IF($C$7,7,0),1,1) -> 495.1 | G182: =OFFSET(InputPriceData!F$15,CalculationsAndCharts!$A182+$A$11,IF($C$7,7,0),1,1) -> 498.96 | J182: 498.96 | K182: 480.8813416 | L182: 458.9808771 | M182: 21.90046451 | N182: 20.05479756 | O182: 1.845666944 | P182: 501.2174872 | Q182: 226.6795215 | R182: 478.0807337 | S182: 481.255 | T182: 452.8642308 | U182: 28.39076923 | V182: 24.21745193 | W182: 4.173317296 | X182: 483.9828571 | Y182: -148.7257143 | Z182: 405.6807143 | AA182: 497.8480951 | AB182: 224.4220342 | AC182: 470.0390582 | AD182: 21.90046451 | AE182: 20.05479756 | AF182: 1.845666944 | AG182: 1.845666944 | AH182: 0
A183: 151 | B183: =OFFSET(InputPriceData!B$15,CalculationsAndCharts!$A183+$A$11,0,1,1) -> 2012-02-21 | C183: =OFFSET(InputPriceData!G$15,CalculationsAndCharts!$A183+$A$11,0,1,1) -> 21628400 | D183: =OFFSET(InputPriceData!C$15,CalculationsAndCharts!$A183+$A$11,IF($C$7,7,0),1,1) -> 492.97 | E183: =OFFSET(InputPriceData!D$15,CalculationsAndCharts!$A183+$A$11,IF($C$7,7,0),1,1) -> 500.72 | F183: =OFFSET(InputPriceData!E$15,CalculationsAndCharts!$A183+$A$11,IF($C$7,7,0),1,1) -> 490.28 | G183: =OFFSET(InputPriceData!F$15,CalculationsAndCharts!$A183+$A$11,IF($C$7,7,0),1,1) -> 500.72 | J183: 500.72 | K183: 477.5943128 | L183: 455.7825473 | M183: 21.81176554 | N183: 19.59338083 | O183: 2.218384713 | P183: 497.8480951 | Q183: 224.4220342 | R183: 470.0390582 | S183: 476.93 | T183: 449.3769231 | U183: 27.55307692 | V183: 23.17412261 | W183: 4.378954312 | X183: 480.2914286 | Y183: -133.7485714 | Z183: 396.76875 | AA183: 493.0772987 | AB183: 227.2939391 | AC183: 465.9587038 | AD183: 21.81176554 | AE183: 19.59338083 | AF183: 2.218384713 | AG183: 2.218384713 | AH183: 0
A184: 152 | B184: =OFFSET(InputPriceData!B$15,CalculationsAndCharts!$A184+$A$11,0,1,1) -> 2012-02-17 | C184: =OFFSET(InputPriceData!G$15,CalculationsAndCharts!$A184+$A$11,0,1,1) -> 19135900 | D184: =OFFSET(InputPriceData!C$15,CalculationsAndCharts!$A184+$A$11,IF($C$7,7,0),1,1) -> 489.3 | E184: =OFFSET(InputPriceData!D$15,CalculationsAndCharts!$A184+$A$11,IF($C$7,7,0),1,1) -> 493.83 | F184: =OFFSET(InputPriceData!E$15,CalculationsAndCharts!$A184+$A$11,IF($C$7,7,0),1,1) -> 486.57 | G184: =OFFSET(InputPriceData!F$15,CalculationsAndCharts!$A184+$A$11,IF($C$7,7,0),1,1) -> 488.34 | J184: 488.34 | K184: 473.3896424 | L184: 452.1875511 | M184: 21.20209136 | N184: 19.03878465 | O184: 2.163306711 | P184: 493.0772987 | Q184: 227.2939391 | R184: 465.9587038 | S184: 472.0891667 | T184: 445.8807692 | U184: 26.20839744 | V184: 22.07938403 | W184: 4.129013403 | X184: 470.7528571 | Y184: -113.32 | Z184: 387.7535714 | AA184: 490.520576 | AB184: 222.5566405 | AC184: 454.4417564 | AD184: 21.20209136 | AE184: 19.03878465 | AF184: 2.163306711 | AG184: 2.163306711 | AH184: 0
A185: 153 | B185: =OFFSET(InputPriceData!B$15,CalculationsAndCharts!$A185+$A$11,0,1,1) -> 2012-02-16 | C185: =OFFSET(InputPriceData!G$15,CalculationsAndCharts!$A185+$A$11,0,1,1) -> 33734000 | D185: =OFFSET(InputPriceData!C$15,CalculationsAndCharts!$A185+$A$11,IF($C$7,7,0),1,1) -> 478.01 | E185: =OFFSET(InputPriceData!D$15,CalculationsAndCharts!$A185+$A$11,IF($C$7,7,0),1,1) -> 491.04 | F185: =OFFSET(InputPriceData!E$15,CalculationsAndCharts!$A185+$A$11,IF($C$7,7,0),1,1) -> 473.28 | G185: =OFFSET(InputPriceData!F$15,CalculationsAndCharts!$A185+$A$11,IF($C$7,7,0),1,1) -> 488.43 | J185: 488.43 | K185: 470.6713956 | L185: 449.2953551 | M185: 21.37604044 | N185: 18.49795797 | O185: 2.878082471 | P185: 490.520576 | Q185: 222.5566405 | R185: 454.4417564 | S185: 468.3666667 | T185: 442.9042308 | U185: 25.4624359 | V185: 21.04713068 | W185: 4.415305215 | X185: 471.7157143 | Y185: -95.73285714 | Z185: 375.9885714 | AA185: 487.2006779 | AB185: 220.4660645 | AC185: 443.3314756 | AD185: 21.37604044 | AE185: 18.49795797 | AF185: 2.878082471 | AG185: 2.878082471 | AH185: 0
A186: 154 | B186: =OFFSET(InputPriceData!B$15,CalculationsAndCharts!$A186+$A$11,0,1,1) -> 2012-02-15 | C186: =OFFSET(InputPriceData!G$15,CalculationsAndCharts!$A186+$A$11,0,1,1) -> 53790000 | D186: =OFFSET(InputPriceData!C$15,CalculationsAndCharts!$A186+$A$11,IF($C$7,7,0),1,1) -> 500.14 | E186: =OFFSET(InputPriceData!D$15,CalculationsAndCharts!$A186+$A$11,IF($C$7,7,0),1,1) -> 511.84 | F186: =OFFSET(InputPriceData!E$15,CalculationsAndCharts!$A186+$A$11,IF($C$7,7,0),1,1) -> 483.25 | G186: =OFFSET(InputPriceData!F$15,CalculationsAndCharts!$A186+$A$11,IF($C$7,7,0),1,1) -> 484.01 | J186: 484.01 | K186: 467.4425584 | L186: 446.1645835 | M186: 21.27797486 | N186: 17.77843735 | O186: 3.499537509 | P186: 487.2006779 | Q186: 220.4660645 | R186: 443.3314756 | S186: 464.66 | T186: 439.95 | U186: 24.71 | V186: 19.94330438 | W186: 4.766695622 | X186: 471.6614286 | Y186: -79.01857143 | Z186: 361.1101786 | AA186: 484.2026891 | AB186: 217.2753866 | AC186: 429.1734971 | AD186: 21.27797486 | AE186: 17.77843735 | AF186: 3.499537509 | AG186: 3.499537509 | AH186: 0
A187: 155 | B187: =OFFSET(InputPriceData!B$15,CalculationsAndCharts!$A187+$A$11,0,1,1) -> 2012-02-14 | C187: =OFFSET(InputPriceData!G$15,CalculationsAndCharts!$A187+$A$11,0,1,1) -> 16442800 | D187: =OFFSET(InputPriceData!C$15,CalculationsAndCharts!$A187+$A$11,IF($C$7,7,0),1,1) -> 490.81 | E187: =OFFSET(InputPriceData!D$15,CalculationsAndCharts!$A187+$A$11,IF($C$7,7,0),1,1) -> 495.58 | F187: =OFFSET(InputPriceData!E$15,CalculationsAndCharts!$A187+$A$11,IF($C$7,7,0),1,1) -> 488.22 | G187: =OFFSET(InputPriceData!F$15,CalculationsAndCharts!$A187+$A$11,IF($C$7,7,0),1,1) -> 495.48 | J187: 495.48 | K187: 464.4302963 | L187: 443.1369502 | M187: 21.29334607 | N187: 16.90355297 | O187: 4.389793095 | P187: 484.2026891 | Q187: 217.2753866 | R187: 429.1734971 | S187: 461.0408333 | T187: 437.1092308 | U187: 23.93160256 | V187: 18.75163047 | W187: 5.179972091 | X187: 466.6628571 | Y187: -66.67 | Z187: 342.1748214 | AA187: 477.2034715 | AB187: 228.5526975 | AC187: 426.69351 | AD187: 21.29334607 | AE187: 16.90355297 | AF187: 4.389793095 | AG187: 4.389793095 | AH187: 0
A188: 156 | B188: =OFFSET(InputPriceData!B$15,CalculationsAndCharts!$A188+$A$11,0,1,1) -> 2012-02-13 | C188: =OFFSET(InputPriceData!G$15,CalculationsAndCharts!$A188+$A$11,0,1,1) -> 18472000 | D188: =OFFSET(InputPriceData!C$15,CalculationsAndCharts!$A188+$A$11,IF($C$7,7,0),1,1) -> 485.82 | E188: =OFFSET(InputPriceData!D$15,CalculationsAndCharts!$A188+$A$11,IF($C$7,7,0),1,1) -> 490.01 | F188: =OFFSET(InputPriceData!E$15,CalculationsAndCharts!$A188+$A$11,IF($C$7,7,0),1,1) -> 483.45 | G188: =OFFSET(InputPriceData!F$15,CalculationsAndCharts!$A188+$A$11,IF($C$7,7,0),1,1) -> 488.81 | J188: 488.81 | K188: 458.7848956 | L188: 438.9495062 | M188: 19.83538938 | N188: 15.8061047 | O188: 4.029284678 | P188: 477.2034715 | Q188: 228.5526975 | R188: 426.69351 | S188: 456.0008333 | T188: 433.8526923 | U188: 22.14814103 | V188: 17.45663745 | W188: 4.691503576 | X188: 455.7342857 | Y188: -37.85285714 | Z188: 340.5130357 | AA188: 470.3791105 | AB188: 240.159226 | AC188: 425.6725481 | AD188: 19.83538938 | AE188: 15.8061047 | AF188: 4.029284678 | AG188: 4.029284678 | AH188: 0
A189: 157 | B189: =OFFSET(InputPriceData!B$15,CalculationsAndCharts!$A189+$A$11,0,1,1) -> 2012-02-10 | C189: =OFFSET(InputPriceData!G$15,CalculationsAndCharts!$A189+$A$11,0,1,1) -> 22546500 | D189: =OFFSET(InputPriceData!C$15,CalculationsAndCharts!$A189+$A$11,IF($C$7,7,0),1,1) -> 477.49 | E189: =OFFSET(InputPriceData!D$15,CalculationsAndCharts!$A189+$A$11,IF($C$7,7,0),1,1) -> 483.96 | F189: =OFFSET(InputPriceData!E$15,CalculationsAndCharts!$A189+$A$11,IF($C$7,7,0),1,1) -> 475.14 | G189: =OFFSET(InputPriceData!F$15,CalculationsAndCharts!$A189+$A$11,IF($C$7,7,0),1,1) -> 479.88 | J189: 479.88 | K189: 453.3257857 | L189: 434.9606667 | M189: 18.36511899 | N189: 14.79878353 | O189: 3.566335462 | P189: 470.3791105 | Q189: 240.159226 | R189: 425.6725481 | S189: 451.3025 | T189: 430.6892308 | U189: 20.61326923 | V189: 16.28376156 | W189: 4.329507675 | X189: 454.6042857 | Y189: -4.777142857 | Z189: 346.6057143 | AA189: 464.4047573 | AB189: 249.6601155 | AC189: 423.996797 | AD189: 18.36511899 | AE189: 14.79878353 | AF189: 3.566335462 | AG189: 3.566335462 | AH189: 0
A190: 158 | B190: =OFFSET(InputPriceData!B$15,CalculationsAndCharts!$A190+$A$11,0,1,1) -> 2012-02-09 | C190: =OFFSET(InputPriceData!G$15,CalculationsAndCharts!$A190+$A$11,0,1,1) -> 31579100 | D190: =OFFSET(InputPriceData!C$15,CalculationsAndCharts!$A190+$A$11,IF($C$7,7,0),1,1) -> 467.56 | E190: =OFFSET(InputPriceData!D$15,CalculationsAndCharts!$A190+$A$11,IF($C$7,7,0),1,1) -> 483.11 | F190: =OFFSET(InputPriceData!E$15,CalculationsAndCharts!$A190+$A$11,IF($C$7,7,0),1,1) -> 467.37 | G190: =OFFSET(InputPriceData!F$15,CalculationsAndCharts!$A190+$A$11,IF($C$7,7,0),1,1) -> 479.63 | J190: 479.63 | K190: 448.4977468 | L190: 431.3671201 | M190: 17.1306267 | N190: 13.90719967 | O190: 3.223427031 | P190: 464.4047573 | Q190: 249.6601155 | R190: 423.996797 | S190: 447.5125 | T190: 427.6973077 | U190: 19.81519231 | V190: 15.20138464 | W190: 4.61380767 | X190: 462.0942857 | Y190: 20.49857143 | Z190: 346.9673214 | AA190: 457.0734954 | AB190: 264.8853582 | AC190: 429.1200496 | AD190: 17.1306267 | AE190: 13.90719967 | AF190: 3.223427031 | AG190: 3.223427031 | AH190: 0
A191: 159 | B191: =OFFSET(InputPriceData!B$15,CalculationsAndCharts!$A191+$A$11,0,1,1) -> 2012-02-08 | C191: =OFFSET(InputPriceData!G$15,CalculationsAndCharts!$A191+$A$11,0,1,1) -> 14567500 | D191: =OFFSET(InputPriceData!C$15,CalculationsAndCharts!$A191+$A$11,IF($C$7,7,0),1,1) -> 457.59 | E191: =OFFSET(InputPriceData!D$15,CalculationsAndCharts!$A191+$A$11,IF($C$7,7,0),1,1) -> 463.71 | F191: =OFFSET(InputPriceData!E$15,CalculationsAndCharts!$A191+$A$11,IF($C$7,7,0),1,1) -> 456.81 | G191: =OFFSET(InputPriceData!F$15,CalculationsAndCharts!$A191+$A$11,IF($C$7,7,0),1,1) -> 463.6 | J191: 463.6 | K191: 442.8373371 | L191: 427.5060897 | M191: 15.33124741 | N191: 13.10134291 | O191: 2.229904507 | P191: 457.0734954 | Q191: 264.8853582 | R191: 429.1200496 | S191: 441.6158333 | T191: 424.6323077 | U191: 16.98352564 | V191: 14.04793272 | W191: 2.935592921 | X191: 416.5242857 | Y191: 38.03428571 | Z191: 340.1441071 | AA191: 452.4743431 | AB191: 271.4118628 | AC191: 428.6581928 | AD191: 15.33124741 | AE191: 13.10134291 | AF191: 2.229904507 | AG191: 2.229904507 | AH191: 0
A192: 160 | B192: =OFFSET(InputPriceData!B$15,CalculationsAndCharts!$A192+$A$11,0,1,1) -> 2012-02-07 | C192: =OFFSET(InputPriceData!G$15,CalculationsAndCharts!$A192+$A$11,0,1,1) -> 11293700 | D192: =OFFSET(InputPriceData!C$15,CalculationsAndCharts!$A192+$A$11,IF($C$7,7,0),1,1) -> 452.48 | E192: =OFFSET(InputPriceData!D$15,CalculationsAndCharts!$A192+$A$11,IF($C$7,7,0),1,1) -> 456.85 | F192: =OFFSET(InputPriceData!E$15,CalculationsAndCharts!$A192+$A$11,IF($C$7,7,0),1,1) -> 451.83 | G192: =OFFSET(InputPriceData!F$15,CalculationsAndCharts!$A192+$A$11,IF($C$7,7,0),1,1) -> 455.96 | J192: 455.96 | K192: 439.0623075 | L192: 424.6185769 | M192: 14.44373062 | N192: 12.54386678 | O192: 1.899863842 | P192: 452.4743431 | Q192: 271.4118628 | R192: 428.6581928 | S192: 437.6225 | T192: 421.9507692 | U192: 15.67173077 | V192: 13.31403449 | W192: 2.35769628 | X192: 434.3657143 | Y192: 85.11 | Z192: 369.8171429 | AA192: 448.8773982 | AB192: 274.8975197 | AC192: 426.1898121 | AD192: 14.44373062 | AE192: 12.54386678 | AF192: 1.899863842 | AG192: 1.899863842 | AH192: 0
A193: 161 | B193: =OFFSET(InputPriceData!B$15,CalculationsAndCharts!$A193+$A$11,0,1,1) -> 2012-02-06 | C193: =OFFSET(InputPriceData!G$15,CalculationsAndCharts!$A193+$A$11,0,1,1) -> 8907600 | D193: =OFFSET(InputPriceData!C$15,CalculationsAndCharts!$A193+$A$11,IF($C$7,7,0),1,1) -> 445.8 | E193: =OFFSET(InputPriceData!D$15,CalculationsAndCharts!$A193+$A$11,IF($C$7,7,0),1,1) -> 452.22 | F193: =OFFSET(InputPriceData!E$15,CalculationsAndCharts!$A193+$A$11,IF($C$7,7,0),1,1) -> 445.63 | G193: =OFFSET(InputPriceData!F$15,CalculationsAndCharts!$A193+$A$11,IF($C$7,7,0),1,1) -> 451.24 | H193: =IF($A193=$E$25,H$32,NA()) ->  | J193: 451.24 | K193: 435.9899998 | L193: 422.111263 | M193: 13.87873674 | N193: 12.06890082 | O193: 1.809835924 | P193: 448.8773982 | Q193: 274.8975197 | R193: 426.1898121 | S193: 433.6891667 | T193: 419.5676923 | U193: 14.12147436 | V193: 12.72461042 | W193: 1.396863939 | X193: 421.4114286 | Y193: 106.7042857 | Z193: 379.0155357 | AA193: 445.6938445 | AB193: 277.2601215 | AC193: 422.8805174 | AD193: 13.87873674 | AE193: 12.06890082 | AF193: 1.809835924 | AG193: 1.809835924 | AH193: 0
A194: 162 | B194: =OFFSET(InputPriceData!B$15,CalculationsAndCharts!$A194+$A$11,0,1,1) -> 2012-02-03 | C194: =OFFSET(InputPriceData!G$15,CalculationsAndCharts!$A194+$A$11,0,1,1) -> 10235700 | D194: =OFFSET(InputPriceData!C$15,CalculationsAndCharts!$A194+$A$11,IF($C$7,7,0),1,1) -> 444.75 | E194: =OFFSET(InputPriceData!D$15,CalculationsAndCharts!$A194+$A$11,IF($C$7,7,0),1,1) -> 447.37 | F194: =OFFSET(InputPriceData!E$15,CalculationsAndCharts!$A194+$A$11,IF($C$7,7,0),1,1) -> 443.05 | G194: =OFFSET(InputPriceData!F$15,CalculationsAndCharts!$A194+$A$11,IF($C$7,7,0),1,1) -> 447.06 | J194: 447.06 | K194: 433.2172725 | L194: 419.7809641 | M194: 13.43630839 | N194: 11.61644184 | O194: 1.819866548 | P194: 445.6938445 | Q194: 277.2601215 | R194: 422.8805174 | S194: 430.7533333 | T194: 417.2734615 | U194: 13.47987179 | V194: 12.37539443 | W194: 1.10447736 | X194: 436.9414286 | Y194: 136.5328571 | Z194: 402.2235714 | AA194: 442.8663438 | AB194: 278.626277 | AC194: 418.5433411 | AD194: 13.43630839 | AE194: 11.61644184 | AF194: 1.819866548 | AG194: 1.819866548 | AH194: 0
A195: 163 | B195: =OFFSET(InputPriceData!B$15,CalculationsAndCharts!$A195+$A$11,0,1,1) -> 2012-02-02 | C195: =OFFSET(InputPriceData!G$15,CalculationsAndCharts!$A195+$A$11,0,1,1) -> 6671300 | D195: =OFFSET(InputPriceData!C$15,CalculationsAndCharts!$A195+$A$11,IF($C$7,7,0),1,1) -> 443.39 | E195: =OFFSET(InputPriceData!D$15,CalculationsAndCharts!$A195+$A$11,IF($C$7,7,0),1,1) -> 444.62 | F195: =OFFSET(InputPriceData!E$15,CalculationsAndCharts!$A195+$A$11,IF($C$7,7,0),1,1) -> 441.52 | G195: =OFFSET(InputPriceData!F$15,CalculationsAndCharts!$A195+$A$11,IF($C$7,7,0),1,1) -> 442.63 | J195: 442.63 | K195: 430.7004129 | L195: 417.5986412 | M195: 13.10177171 | N195: 11.1614752 | O195: 1.940296506 | P195: 442.8663438 | Q195: 278.626277 | R195: 418.5433411 | S195: 428.2758333 | T195: 415.2853846 | U195: 12.99044872 | V195: 12.09927509 | W195: 0.8911736229 | X195: 436.1528571 | Y195: 146.6514286 | Z195: 409.0891071 | AA195: 440.5427142 | AB195: 278.3899332 | AC195: 412.2262467 | AD195: 13.10177171 | AE195: 11.1614752 | AF195: 1.940296506 | AG195: 1.940296506 | AH195: 0
A196: 164 | B196: =OFFSET(InputPriceData!B$15,CalculationsAndCharts!$A196+$A$11,0,1,1) -> 2012-02-01 | C196: =OFFSET(InputPriceData!G$15,CalculationsAndCharts!$A196+$A$11,0,1,1) -> 9644500 | D196: =OFFSET(InputPriceData!C$15,CalculationsAndCharts!$A196+$A$11,IF($C$7,7,0),1,1) -> 445.83 | E196: =OFFSET(InputPriceData!D$15,CalculationsAndCharts!$A196+$A$11,IF($C$7,7,0),1,1) -> 446.39 | F196: =OFFSET(InputPriceData!E$15,CalculationsAndCharts!$A196+$A$11,IF($C$7,7,0),1,1) -> 443.05 | G196: =OFFSET(InputPriceData!F$15,CalculationsAndCharts!$A196+$A$11,IF($C$7,7,0),1,1) -> 443.67 | J196: 443.67 | K196: 428.5313971 | L196: 415.5961325 | M196: 12.93526458 | N196: 10.67640108 | O196: 2.258863501 | P196: 440.5427142 | Q196: 278.3899332 | R196: 412.2262467 | S196: 425.81 | T196: 413.3480769 | U196: 12.46192308 | V196: 11.87648169 | W196: 0.5854413877 | X196: 430.8514286 | Y196: 153.1285714 | Z196: 417.3317857 | AA196: 437.3198602 | AB196: 281.5172191 | AC196: 408.2744157 | AD196: 12.93526458 | AE196: 10.67640108 | AF196: 2.258863501 | AG196: 2.258863501 | AH196: 0
A197: 165 | B197: =OFFSET(InputPriceData!B$15,CalculationsAndCharts!$A197+$A$11,0,1,1) -> 2012-01-31 | C197: =OFFSET(InputPriceData!G$15,CalculationsAndCharts!$A197+$A$11,0,1,1) -> 13988700 | D197: =OFFSET(InputPriceData!C$15,CalculationsAndCharts!$A197+$A$11,IF($C$7,7,0),1,1) -> 443.08 | E197: =OFFSET(InputPriceData!D$15,CalculationsAndCharts!$A197+$A$11,IF($C$7,7,0),1,1) -> 445.66 | F197: =OFFSET(InputPriceData!E$15,CalculationsAndCharts!$A197+$A$11,IF($C$7,7,0),1,1) -> 440.63 | G197: =OFFSET(InputPriceData!F$15,CalculationsAndCharts!$A197+$A$11,IF($C$7,7,0),1,1) -> 443.95 | J197: 443.95 | K197: 425.7789238 | L197: 413.3502231 | M197: 12.42870072 | N197: 10.1116852 | O197: 2.317015515 | P197: 437.3198602 | Q197: 281.5172191 | R197: 408.2744157 | S197: 422.8616667 | T197: 411.1919231 | U197: 11.66974359 | V197: 11.73012134 | W197: -0.0603777526 | X197: 426.0157143 | Y197: 165.9471429 | Z197: 434.2555357 | AA197: 433.2213104 | AB197: 288.1473589 | AC197: 407.6431944 | AD197: 12.42870072 | AE197: 10.1116852 | AF197: 2.317015515 | AG197: 2.317015515 | AH197: 0
A198: 166 | B198: =OFFSET(InputPriceData!B$15,CalculationsAndCharts!$A198+$A$11,0,1,1) -> 2012-01-30 | C198: =OFFSET(InputPriceData!G$15,CalculationsAndCharts!$A198+$A$11,0,1,1) -> 13547900 | D198: =OFFSET(InputPriceData!C$15,CalculationsAndCharts!$A198+$A$11,IF($C$7,7,0),1,1) -> 433.48 | E198: =OFFSET(InputPriceData!D$15,CalculationsAndCharts!$A198+$A$11,IF($C$7,7,0),1,1) -> 441.45 | F198: =OFFSET(InputPriceData!E$15,CalculationsAndCharts!$A198+$A$11,IF($C$7,7,0),1,1) -> 433.17 | G198: =OFFSET(InputPriceData!F$15,CalculationsAndCharts!$A198+$A$11,IF($C$7,7,0),1,1) -> 440.58 | J198: 440.58 | K198: 422.4750918 | L198: 410.9022409 | M198: 11.57285083 | N198: 9.532431322 | O198: 2.040419511 | P198: 433.2213104 | Q198: 288.1473589 | R198: 407.6431944 | S198: 420.0175 | T198: 408.9465385 | U198: 11.07096154 | V198: 11.74521578 | W198: -0.674254242 | X198: 430.6057143 | Y198: 183.8814286 | Z198: 459.4189286 | AA198: 429.0774696 | AB198: 295.5060485 | AC198: 408.607355 | AD198: 11.57285083 | AE198: 9.532431322 | AF198: 2.040419511 | AG198: 2.040419511 | AH198: 0
A199: 167 | B199: =OFFSET(InputPriceData!B$15,CalculationsAndCharts!$A199+$A$11,0,1,1) -> 2012-01-27 | C199: =OFFSET(InputPriceData!G$15,CalculationsAndCharts!$A199+$A$11,0,1,1) -> 10703900 | D199: =OFFSET(InputPriceData!C$15,CalculationsAndCharts!$A199+$A$11,IF($C$7,7,0),1,1) -> 432.14 | E199: =OFFSET(InputPriceData!D$15,CalculationsAndCharts!$A199+$A$11,IF($C$7,7,0),1,1) -> 436.17 | F199: =OFFSET(InputPriceData!E$15,CalculationsAndCharts!$A199+$A$11,IF($C$7,7,0),1,1) -> 431.59 | G199: =OFFSET(InputPriceData!F$15,CalculationsAndCharts!$A199+$A$11,IF($C$7,7,0),1,1) -> 435 | J199: 435 | K199: 419.1832903 | L199: 408.5280202 | M199: 10.65527006 | N199: 9.022326444 | O199: 1.632943617 | P199: 429.0774696 | Q199: 295.5060485 | R199: 408.607355 | S199: 417.5483333 | T199: 406.8119231 | U199: 10.73641026 | V199: 11.91377934 | W199: -1.177369085 | X199: 433.1242857 | Y199: 193.8557143 | Z199: 476.7091071 | AA199: 425.4978405 | AB199: 301.4285789 | AC199: 409.4123567 | AD199: 10.65527006 | AE199: 9.022326444 | AF199: 1.632943617 | AG199: 1.632943617 | AH199: 0
A200: 168 | B200: =OFFSET(InputPriceData!B$15,CalculationsAndCharts!$A200+$A$11,0,1,1) -> 2012-01-26 | C200: =OFFSET(InputPriceData!G$15,CalculationsAndCharts!$A200+$A$11,0,1,1) -> 11570900 | D200: =OFFSET(InputPriceData!C$15,CalculationsAndCharts!$A200+$A$11,IF($C$7,7,0),1,1) -> 436.06 | E200: =OFFSET(InputPriceData!D$15,CalculationsAndCharts!$A200+$A$11,IF($C$7,7,0),1,1) -> 436.48 | F200: =OFFSET(InputPriceData!E$15,CalculationsAndCharts!$A200+$A$11,IF($C$7,7,0),1,1) -> 430.98 | G200: =OFFSET(InputPriceData!F$15,CalculationsAndCharts!$A200+$A$11,IF($C$7,7,0),1,1) -> 432.43 | J200: 432.43 | K200: 416.3075249 | L200: 406.4102618 | M200: 9.897263038 | N200: 8.61409054 | O200: 1.283172498 | P200: 425.4978405 | Q200: 301.4285789 | R200: 409.4123567 | S200: 415.6 | T200: 404.3780769 | U200: 11.22192308 | V200: 12.20812161 | W200: -0.9861985352 | X200: 445.82 | Y200: 195.7314286 | Z200: 485.4228571 | AA200: 421.7773999 | AB200: 308.3607383 | AC200: 412.3231452 | AD200: 9.897263038 | AE200: 8.61409054 | AF200: 1.283172498 | AG200: 1.283172498 | AH200: 0
A201: 169 | B201: =OFFSET(InputPriceData!B$15,CalculationsAndCharts!$A201+$A$11,0,1,1) -> 2012-01-25 | C201: =OFFSET(InputPriceData!G$15,CalculationsAndCharts!$A201+$A$11,0,1,1) -> 34225500 | D201: =OFFSET(InputPriceData!C$15,CalculationsAndCharts!$A201+$A$11,IF($C$7,7,0),1,1) -> 441.97 | E201: =OFFSET(InputPriceData!D$15,CalculationsAndCharts!$A201+$A$11,IF($C$7,7,0),1,1) -> 441.98 | F201: =OFFSET(InputPriceData!E$15,CalculationsAndCharts!$A201+$A$11,IF($C$7,7,0),1,1) -> 431.55 | G201: =OFFSET(InputPriceData!F$15,CalculationsAndCharts!$A201+$A$11,IF($C$7,7,0),1,1) -> 434.4 | J201: 434.4 | K201: 413.3761657 | L201: 404.3286828 | M201: 9.047482976 | N201: 8.293297415 | O201: 0.7541855606 | P201: 421.7773999 | Q201: 308.3607383 | R201: 412.3231452 | S201: 413.7433333 | T201: 401.9984615 | U201: 11.74487179 | V201: 12.45467125 | W201: -0.7097994511 | X201: 444.0842857 | Y201: 182.3414286 | Z201: 476.2492857 | AA201: 416.6392754 | AB201: 320.9833384 | AC201: 422.5821816 | AD201: 9.047482976 | AE201: 8.293297415 | AF201: 0.7541855606 | AG201: 0.7541855606 | AH201: 0
A202: 170 | B202: =OFFSET(InputPriceData!B$15,CalculationsAndCharts!$A202+$A$11,0,1,1) -> 2012-01-24 | C202: =OFFSET(InputPriceData!G$15,CalculationsAndCharts!$A202+$A$11,0,1,1) -> 19558500 | D202: =OFFSET(InputPriceData!C$15,CalculationsAndCharts!$A202+$A$11,IF($C$7,7,0),1,1) -> 413.43 | E202: =OFFSET(InputPriceData!D$15,CalculationsAndCharts!$A202+$A$11,IF($C$7,7,0),1,1) -> 413.43 | F202: =OFFSET(InputPriceData!E$15,CalculationsAndCharts!$A202+$A$11,IF($C$7,7,0),1,1) -> 408.03 | G202: =OFFSET(InputPriceData!F$15,CalculationsAndCharts!$A202+$A$11,IF($C$7,7,0),1,1) -> 408.87 | J202: 408.87 | K202: 409.5536504 | L202: 401.9229774 | M202: 7.630673035 | N202: 8.104751025 | O202: -0.4740779903 | P202: 416.6392754 | Q202: 320.9833384 | R202: 422.5821816 | S202: 411.7775 | T202: 399.4653846 | U202: 12.31211538 | V202: 12.63212111 | W202: -0.3200057241 | X202: 447.0414286 | Y202: 172.6571429 | Z202: 469.3328571 | AA202: 417.3950615 | AB202: 313.214063 | AC202: 416.2986328 | AD202: 7.630673035 | AE202: 8.104751025 | AF202: -0.4740779903 | AG202: 0 | AH202: -0.4740779903
A203: 171 | B203: =OFFSET(InputPriceData!B$15,CalculationsAndCharts!$A203+$A$11,0,1,1) -> 2012-01-23 | C203: =OFFSET(InputPriceData!G$15,CalculationsAndCharts!$A203+$A$11,0,1,1) -> 10930800 | D203: =OFFSET(InputPriceData!C$15,CalculationsAndCharts!$A203+$A$11,IF($C$7,7,0),1,1) -> 411.07 | E203: =OFFSET(InputPriceData!D$15,CalculationsAndCharts!$A203+$A$11,IF($C$7,7,0),1,1) -> 416.69 | F203: =OFFSET(InputPriceData!E$15,CalculationsAndCharts!$A203+$A$11,IF($C$7,7,0),1,1) -> 410.71 | G203: =OFFSET(InputPriceData!F$15,CalculationsAndCharts!$A203+$A$11,IF($C$7,7,0),1,1) -> 415.68 | J203: 415.68 | K203: 409.6779505 | L203: 401.3672156 | M203: 8.310734921 | N203: 8.223270523 | O203: 0.08746439782 | P203: 417.3950615 | Q203: 313.214063 | R203: 416.2986328 | S203: 411.585 | T203: 397.9607692 | U203: 13.62423077 | V203: 12.71212254 | W203: 0.9121082295 | X203: 438.1114286 | Y203: 134.4857143 | Z203: 431.2298214 | AA203: 416.3536821 | AB203: 311.4990015 | AC203: 414.3094641 | AD203: 8.310734921 | AE203: 8.223270523 | AF203: 0.08746439782 | AG203: 0.08746439782 | AH203: 0
A204: 172 | B204: =OFFSET(InputPriceData!B$15,CalculationsAndCharts!$A204+$A$11,0,1,1) -> 2012-01-20 | C204: =OFFSET(InputPriceData!G$15,CalculationsAndCharts!$A204+$A$11,0,1,1) -> 14784800 | D204: =OFFSET(InputPriceData!C$15,CalculationsAndCharts!$A204+$A$11,IF($C$7,7,0),1,1) -> 415.75 | E204: =OFFSET(InputPriceData!D$15,CalculationsAndCharts!$A204+$A$11,IF($C$7,7,0),1,1) -> 415.76 | F204: =OFFSET(InputPriceData!E$15,CalculationsAndCharts!$A204+$A$11,IF($C$7,7,0),1,1) -> 408.23 | G204: =OFFSET(InputPriceData!F$15,CalculationsAndCharts!$A204+$A$11,IF($C$7,7,0),1,1) -> 408.76 | J204: 408.76 | K204: 408.5866688 | L204: 400.2221928 | M204: 8.364475947 | N204: 8.201404423 | O204: 0.1630715234 | P204: 416.3536821 | Q204: 311.4990015 | R204: 414.3094641 | S204: 410.4525 | T204: 396.5169231 | U204: 13.93557692 | V204: 12.48409548 | W204: 1.451481441 | X204: 422.6185714 | Y204: 112.0542857 | Z204: 403.2166071 | AA204: 416.9271408 | AB204: 303.9053194 | AC204: 406.2047275 | AD204: 8.364475947 | AE204: 8.201404423 | AF204: 0.1630715234 | AG204: 0.1630715234 | AH204: 0
... 669 more rows
